Workbook

Sheet ES(36)
B2: Excel Business Statistical Analysis:
B8: Sampling & Sampling Distribution of Sample Means, Theory
B12: Excel Business Statistics 36
B17: Excel Statistical Analysis 24: Build Discrete Probability Distribution, Expected Value, S. Deviation
B18: =LEN(B17) -> 100
C19: =LEN(C18) -> 0
H23: Microsoft 365 Excel

Sheet ES(37)
B2: Excel Business Statistical Analysis:
F8: Building Sampling Distribution of Sample Means (Xbar)
B12: Excel Business Statistics 37
B17: Excel Statistical Analysis 24: Build Discrete Probability Distribution, Expected Value, S. Deviation
B18: =LEN(B17) -> 100
C19: =LEN(C18) -> 0
H23: Microsoft 365 Excel

Sheet ES(38)
B2: Excel Business Statistical Analysis:
B8: Normal Curve to Test Reasonableness of Proportions
B12: Excel Business Statistics 38
B17: Excel Statistical Analysis 24: Build Discrete Probability Distribution, Expected Value, S. Deviation
B18: =LEN(B17) -> 100
C19: =LEN(C18) -> 0
H23: Microsoft 365 Excel

Sheet TopicsCh(7)
B2: Chapter 7
B4: Sampling Distribution of Xbar and Standard Error to Gain Real Power with Business Decision Making
B7: Video 36 | C7: Sampling and Sampling Distribution of Xbar Theory
B8: Video 37 | C8: Sampling Distribution of Xbar, Standard Error and Central Limit Theorem
B9: Video 38 | C9: Sampling Distribution of Pbar
B14: =B7:B9&": "&C7:C9&" (xx min)"&CHAR(10) -> Video 36: Sampling and Sampling Distribution of Xbar Theory (xx min)
B15: Video 37: Sampling Distribution of Xbar, Standard Error and Central Limit Theorem (xx min)
B16: Video 38: Sampling Distribution of Pbar (xx min)
B18: Excel Statistical Analysis 37: Learn Central Limit Theorem by Building Sampling Distribution of Xbar
B19: =LEN(B18) -> 100
B20: *

Sheet Notes
A1: Chapter 7:
A2: Population:
A3: All elements of interest
A4: Sample:
A5: A subset of the population
A6: Why do we sample instead of look at whole population?
A7: 1) Some populations are impossible to check
A8: Can’t count all the fish in the ocean
A9: 2) The cost of studying all the items in a population
A10: General Mills hires firm to test a new cereal:
A11: Sample test: cost ≈ $40,000
A12: Population test: cost ≈ $1,000,000,000
A13: 3) Contacting the whole population would often be time-consuming
A14: Political polls can be completed in one or two days
A15: Polling all the USA voters would take nearly 200 years!
A16: 4) The destructive nature of certain tests
A17: Test each bottle of wine?!!?
A18: Testing all seeds from Burpee è there’d be none left
A19: 5] The sample results are usually adequate
A20: Consumer price index constructed from a sample is an excellent estimate for a consumer price index that could be constructed from the population
A22: Why do we need sample data?
A23: We select samples to collect data to answer research question about a population
A24: What do community college presidents think of the new federal proposal to rate colleges?
A25: Is the filling machine filling accurately?
A26: Do Highline College students think that advising should be mandatory?
A27: What is the mean annual accounting salary in Seattle?
A29: Samples are only estimates:
A30: In point estimation we use the data from the sample to compute a value of a sample statistic that serves as an estimate of a population parameter.
A31: We refer to Xbar as the point estimator of the population mean = m = mu.
A32: We refer to s as the point estimator of the population standard deviation = s = sigma.
A33: We refer to Pbar as the point estimator of the population mean p.
A35: What about Sample Error?
A36: Is the Xbar (Sample Mean) and µ (population mean, mu) always equal?
A37: Almost never!
A38: If Xbar (Sample Mean) and µ (population mean, mu) are not equal, is this okay?
A39: It depends.
A40: We will build a model to check to see if our Xbar is a "reasonable" estimate for the population mean!! :)
A42: Random Variable:
A43: Numerical Description of the outcome of an experiment
A44: If we consider the process of selecting a “Random Sample” as an experiment, the Xbar is the numerical description of the outcome of the experiment.
A45: Thus Xbar is the random variable.
A47: If the population is so big, how do we know where to go and get sample data?
A48: We must be careful!!
A49: We have to make sure that the Sampled Population is the same as the Target Population.
A51: Sampled Population:
A52: Population from which the sample is drawn
A53: Target Population:
A54: Population we want to make an inference about
A56: Sampled Population and Target Population are not always the same!
A57: Example 1: If your goal was to gather data about students attending South Community College:
A58: If you took a sample from a College Registration List, Sampled Population and Target Population are the same
A59: If you took a sample from people eating at the Culinary Arts restaurant at South Community College you might get some people who are:
A60: students at South (Target Pop)
A61: and
A62: some who are not students at South (NOT Target Pop).
A63: The Sampled Population would be people who eat at Culinary Arts Restaurant.
A64: Sampled Population NOT EQUAL TO Target Population
A65: Example 2: If you take a sample from only matinée movie-goers and you want to make inferences about all movie goers your
A66: Sampled Population (matinée) is different than your Target Population (all movie goers): they are not the same.
A67: Conclusion: When a sample is used to make inferences about the population, make sure that the sampled and target population are in close agreement.
A68: This is not a mathematical calculation, it is a judgment call.
A70: Frame:
A71: List of all elements in the population
A72: List of elements that sample will be selected from.
A73: Frames cannot always be created
A75: Finite Population
A76: A population where we can create a Frame
A77: Examples:
A78: List of student names at a college
A79: List of Sales Invoices
A80: “Sampling from a Finite Population”: Use “Simple Random Sampling” method to select a sample
A81: Infinite Population
A82: A population where we can NOT create a Frame
A83: Examples:
A84: Population too big (like all the fish in the sea)
A85: Take a sample of cereal box weights from a cereal box filling machine
A86: Customers entering a store
A87: “Sampling from an Infinite Population or Process”: Use “Random Sampling” method to select a sample
A89: Frame that CAN be constructed:
A90: Take sample at Highline Community College to see how many people have iPods
A91: Sampled Population = List of registered students
A92: Frame = List of registered students
A93: The sampled population has a finite number of elements
A94: This is called “Sampling from a Finite Population”. Use “Simple Random Sampling” method to select a sample
A95: Frame that CANNOT be constructed:
A96: Population is too big (like counting all the fish in the sea)
A97: Take a sample of cereal box weights from a cereal box filling machine
A98: Sampled Population = conceptual population of all boxes that could have been filled at that particular point in time.
A99: In this sense, the sampled population is considered infinite.
A100: Frame = impossible to construct frame from infinite population because all the elements are not present
A101: The sampled population has a conceptually infinite number of elements
A102: This is called “Sampling from an infinite Population or Process”. Use “Random Sampling” method to select a sample
A103: “Random Sampling” is the same as “Simple Random Sampling”, except for two assumptions have to hold true (more later)
A105: Processes (Sampling from an infinite Population):
A106: Examples of processes:
A107: Machine fills boxes of cereal
A108: Machine fills bags of lettuce
A109: Machines make bolts and screws for airplanes
A110: Router makes boomerangs
A111: Transactions occur at bank
A112: Calls arrive at Highline help desk
A113: Customers entering store
A114: All are viewed as coming from a process generating elements from a conceptually infinite population
A115: How a sample can help to decide whether the process is working properly:
A116: Processes not working properly (like machine filling too much) will produce
A117: sample statistics that are not close (statistically significant) to the population parameter
A118: Processes working properly (like machine filling just right) will produce
A119: sample statistics that are close (statistically insignificant) to the population parameter
A121: Simple Random Sample (for Finite Populations)
A122: Textbook: A simple random sample of size n from a finite population of size N is a sample selected such that
A123: each possible sample of size n has the same probability of being selected
A124: Each sample element has the same probability of being selected, (if TRUE, then each sample has the same chance)
A125: Think of: Uniform Distribution
A126: You have a frame and you can randomly select from frame.
A127: How to select a sample:
A128: Example 1: Select any n units in a random way
A129: Book method:
A130: Step 1: Assign Random Number to each element in population
A131: Step 2: Select “n” elements that have the “n” smallest (or largest) random numbers
A132: Using Excel’s RAND or RANDBETWEEN functions (each follows a Uniform Distribution between 0 and 1)
A133: Example 2:
A134: RAND, SMALL and VLOOKUP functions can automat the Simple Random Sample
A135: RAND function generates Radom numbers between 0 and 1 with 15 significant digits and generate these numbers based on a Uniform Distribution
A136: Example 3: Names of classmates in a hat, mix up names, select until sample size, “n” is reached
A138: Random Sample (for Infinite Population)
A139: These must hold true:
A140: 1) Each element selected comes from same population (Sampled and Targeted Populations are the same).
A141: 2) Each element is selected independently: to prevent selection bias (prevent all from similar group, similar attitudes, or choosing to get desired result)
A142: Used for Infinite Populations or Populations where it is not feasible to list all elements
A143: How to select a sample:
A144: Select any n units in a random way
A145: Examples:
A146: Machines filling boxes or bags, choose sample from same point in time
A147: This is done to make sure that each element selected in selected from the same population.
A148: People arriving at a restaurant, choose customer directly after customer who uses coupon (McDonald’s did this to simulate a random selection).
A149: This is done to make sure that each element is selected independently (without bias)
A151: Probability Sample
A152: Each possible sample has a known probability of selection and a random process is used to select the elements for the sample.
A153: Good because we have techniques to help us understand if our sample is “good”, reasonable – more later…
A154: Examples:
A155: 1) Simple Random Sample taken (for Finite populations)
A156: 2) Random Sample (for Infinite population)
A157: 3) Stratified Random Sampling (allows smaller sample size and lower cost)
A158: Population divided into mutually exclusive strata where elements in each strata are similar
A159: Each element in the strata are similar (location, age, department, major)
A160: Works best when the variation among the elements in each strata is relatively small.
A161: 4) Cluster Sampling
A162: Elements in clusters are not a like – each cluster is like a min population
A163: Helps to reduce cost.
A164: 5) Systematic Sampling
A165: Like with invoices or other ordered populations.
A167: Non-probability Sampling
A168: Not good because we can’t calculate how reasonable the sample results are
A169: Convenience Sampling
A170: Judgment Sampling
A172: Leading up to the Central Limit Theorem:
A173: If all samples of a particular size are selected from any population, the sampling distribution of the sample mean Xbar is approximately normal distribution.
A174: This approximation improves with larger samples
A176: Sampling Distribution of Xbar (SDofXbar)
A177: The sampling Distribution of Xbar is the probability distribution of all possible values of sample mean Xbar.
A178: Sample Mean of Sampling Distribution of Xbar = E(Xbar) = m = Pop Mean!!!! Called Unbiased point estimator
A179: Standard Deviation of SDofXbar = sXbar = Standard Error = (s/SQRT(n))*SQRT((N-n)/(n-1)), Don’t need SQRT((N-n)/(n-1)) if population is finite AND n/N <= 0.05
A180: If Pop is Finite AND n/N > 0.05, then use the Finite Population Correction Factor: SQRT((N-n)/(n-1))
A181: As sample size increases, Standard Error will decrease, and thus provide a higher probability that Xbar will fall within a specified distance of the population mean.
A182: Book assumes all problems use s/SQRT(n), unless otherwise stated
A183: The Sampling Distribution can be used to provide probability information about how close the sample statistic is to the population parameter
A185: Sampling Distribution of Pbar (SDofPbar)
A186: Sample Proportion = point estimator of Population Proportion = Pbar = x/n
A187: x = the number of elements in the population that posses the characteristic of interest = binomial variable (bi = 2, nominal = nominal variable)
A188: n = sample size
A189: The sampling Distribution of Pbar is the probability distribution of all possible values of sample proportion Pbar
A190: Sample Proportion of Sampling Distribution of Pbar = E(Pbar) =p = Pop Proportion!! Called Unbiased point estimator
A191: Standard Deviation of SDofPbar = sPbar = Standard Error = SQRT(p*(1-p)/n)*SQRT((N-n)/(n-1)), Don’t need SQRT((N-n)/(n-1)) if pop is finite AND n/N <= 0.05
A192: If n/N > 0.05, then use the Finite Population Correction Factor: SQRT((N-n)/(n-1))
A193: As sample size increases, Standard Error will decrease, and thus provide a higher probability that Pbar will fall within a specified distance of the population mean.
A194: Book assumes all problems use SQRT(p*(1-p)/n), unless otherwise stated
A195: The sampling Distribution of Pbar (and Binomial Distribution) can be approximated by a normal distribution whenever n*p>=5 AND n*(1-p) >=5
A197: Standard Error
A198: Standard Error stands for the Standard Deviation of a point estimator
A199: Examples:
A200: Standard Error of the Mean = sXbar = "Standard Error"
A201: Standard Error of the Proportion = sPbar = "Standard Error"
A202: Central Limit Theorem:
A203: In selecting random samples of size n from a population, the sampling distribution of the sample mean Xbar
A204: can be approximated by a normal distribution as the sample size becomes large
A205: If population distribution is symmetrical but not normal, the distribution will converge toward normal when n > 10
A206: Skewed or thick-tailed distributions converge toward normal when n > 30
A207: Heavily skew distributions converge n > 50
A209: Use of Central Limit Theorem:
A210: We can reason about the Sampling Distribution of Xbar with absolutely no information about the shape of the original distribution from which the sample is taken
A211: This means that:
A212: We can take one sample and compare it to the Standard Normal Curve (NORM.S.DIST) or Normal Curve (NORM.DIST) to see if our sample result is reasonable.
A213: If the sample mean seems reasonable, the original process or claim is reasonable
A214: If the sample mean does not seem reasonable, the original process or claim is not reasonable
A215: The Sampling Distribution can be used to provide probability information about how close the sample statistic is to the population parameter
A217: Statistical Inference:
A218: The process of using data obtained from a sample to make estimates or test hypotheses about characteristics of the population (like mean).
A219: Draw reasonable conclusions about population from statistics
A221: Infer:
A222: Conclude from evidence

Sheet Sample
A1: Population (Pop) = all the items: | F1: Sample = subset of all Pop items:
A3: Sales Rep | B3: Sales | F3: Sales Rep | G3: Sales
A4: Jo | B4: 185 | F4: =A6 -> Chin | G4: =B6 -> 210
A5: Sioux | B5: 250 | F5: =A10 -> Kip | G5: =B10 -> 370
A6: Chin | B6: 210 | F6: =A4 -> Jo | G6: =B4 -> 185
A7: Sheliadawn | B7: 310
A8: Gigi | B8: 298 | F8: Sample Size = n = | I8: 3
A9: Tyrone | B9: 402 | F9: Sample Mean = Xbar = Point Esimator of Pop Mean =
A10: Kip | B10: 370
F11: Sample Error = Xbar - mu (µ)
A12: Pop Size = N = | D12: =COUNTA(A4:A10) -> 7
A13: Pop Mean = mu = µ = | D13: =AVERAGE(B4:B10) -> 289.2857143
A14: Pop Standard Deviation = Sigma = s = | D14: =_xlfn.STDEV.P(B4:B10) -> 74.09398334

Sheet Sample (an)
A1: Population (Pop) = all the items: | F1: Sample = subset of all Pop items:
A3: Sales Rep | B3: Sales | F3: Sales Rep | G3: Sales
A4: Jo | B4: 185 | F4: =A6 -> Chin | G4: =B6 -> 210
A5: Sioux | B5: 250 | F5: =A10 -> Kip | G5: =B10 -> 370
A6: Chin | B6: 210 | F6: =A4 -> Jo | G6: =B4 -> 185
A7: Sheliadawn | B7: 310
A8: Gigi | B8: 298 | F8: Sample Size = n = | I8: 3
A9: Tyrone | B9: 402 | F9: Sample Mean = Xbar = Point Esimator of Pop Mean =
A10: Kip | B10: 370
F11: Sample Error = Xbar - mu (µ)
A12: Pop Size = N =
A13: Pop Mean = mu = µ =
A14: Pop Standard Deviation = Sigma = s =

Sheet All Possible Samples
A1: Pop Size = N = | C1: =COUNTA(A6:A12) -> 7
A2: Sample Size = n = | C2: 3
A3: Number of Samples Possible: | C3: =COMBIN(C1,C2) -> 35 | L3: =RAND() -> 0.3285091618
A5: Sales Rep | B5: Sales | D5: Sales Rep 1 | E5: Sales Rep 2 | F5: Sales Rep 3 | G5: Sales 1 | H5: Sales 2 | I5: Sales 3 | J5: Xbar | K5: P(Sample)
A6: Jo | B6: 185 | D6: Jo | E6: Sioux | F6: Chin
A7: Sioux | B7: 250 | D7: Jo | E7: Sioux | F7: Sheliadawn
A8: Chin | B8: 210 | D8: Jo | E8: Sioux | F8: Gigi
A9: Sheliadawn | B9: 310 | D9: Jo | E9: Sioux | F9: Tyrone
A10: Gigi | B10: 298 | D10: Jo | E10: Sioux | F10: Kip
A11: Tyrone | B11: 402 | D11: Jo | E11: Chin | F11: Sheliadawn
A12: Kip | B12: 370 | D12: Jo | E12: Chin | F12: Gigi
D13: Jo | E13: Chin | F13: Tyrone
D14: Jo | E14: Chin | F14: Kip
D15: Jo | E15: Sheliadawn | F15: Gigi
D16: Jo | E16: Sheliadawn | F16: Tyrone
D17: Jo | E17: Sheliadawn | F17: Kip
D18: Jo | E18: Gigi | F18: Tyrone
D19: Jo | E19: Gigi | F19: Kip
D20: Jo | E20: Tyrone | F20: Kip
D21: Sioux | E21: Chin | F21: Sheliadawn
D22: Sioux | E22: Chin | F22: Gigi
D23: Sioux | E23: Chin | F23: Tyrone
D24: Sioux | E24: Chin | F24: Kip
D25: Sioux | E25: Sheliadawn | F25: Gigi
D26: Sioux | E26: Sheliadawn | F26: Tyrone
D27: Sioux | E27: Sheliadawn | F27: Kip
D28: Sioux | E28: Gigi | F28: Tyrone
D29: Sioux | E29: Gigi | F29: Kip
D30: Sioux | E30: Tyrone | F30: Kip
D31: Chin | E31: Sheliadawn | F31: Gigi
D32: Chin | E32: Sheliadawn | F32: Tyrone
D33: Chin | E33: Sheliadawn | F33: Kip
D34: Chin | E34: Gigi | F34: Tyrone
D35: Chin | E35: Gigi | F35: Kip
D36: Chin | E36: Tyrone | F36: Kip
D37: Sheliadawn | E37: Gigi | F37: Tyrone
D38: Sheliadawn | E38: Gigi | F38: Kip
D39: Sheliadawn | E39: Tyrone | F39: Kip
D40: Gigi | E40: Tyrone | F40: Kip
K41: =SUM(K6:K40) -> 0

Sheet All Possible Samples (an)
A1: Pop Size = N = | C1: =COUNTA(A6:A12) -> 7
A2: Sample Size = n = | C2: 3
A3: Number of Samples Possible: | C3: =COMBIN(C1,C2) -> 35 | L3: =RAND() -> 0.3972038231
A5: Sales Rep | B5: Sales | D5: Sales Rep 1 | E5: Sales Rep 2 | F5: Sales Rep 3 | G5: Sales 1 | H5: Sales 2 | I5: Sales 3 | J5: Xbar | K5: P(Sample)
A6: Jo | B6: 185 | D6: Jo | E6: Sioux | F6: Chin | G6: =_xlfn.XLOOKUP(D6:F40,A6:A12,B6:B12) -> 185 | H6: 250 | I6: 210 | J6: =AVERAGE(G6:I6) -> 215 | K6: =1/$C$3 -> 0.02857142857
A7: Sioux | B7: 250 | D7: Jo | E7: Sioux | F7: Sheliadawn | G7: 185 | H7: 250 | I7: 310 | J7: =AVERAGE(G7:I7) -> 248.3333333 | K7: =1/$C$3 -> 0.02857142857
A8: Chin | B8: 210 | D8: Jo | E8: Sioux | F8: Gigi | G8: 185 | H8: 250 | I8: 298 | J8: 244.3333333 | K8: 0.02857142857
A9: Sheliadawn | B9: 310 | D9: Jo | E9: Sioux | F9: Tyrone | G9: 185 | H9: 250 | I9: 402 | J9: 279 | K9: 0.02857142857
A10: Gigi | B10: 298 | D10: Jo | E10: Sioux | F10: Kip | G10: 185 | H10: 250 | I10: 370 | J10: 268.3333333 | K10: 0.02857142857
A11: Tyrone | B11: 402 | D11: Jo | E11: Chin | F11: Sheliadawn | G11: 185 | H11: 210 | I11: 310 | J11: 235 | K11: 0.02857142857
A12: Kip | B12: 370 | D12: Jo | E12: Chin | F12: Gigi | G12: 185 | H12: 210 | I12: 298 | J12: 231 | K12: 0.02857142857
D13: Jo | E13: Chin | F13: Tyrone | G13: 185 | H13: 210 | I13: 402 | J13: 265.6666667 | K13: 0.02857142857
D14: Jo | E14: Chin | F14: Kip | G14: 185 | H14: 210 | I14: 370 | J14: 255 | K14: 0.02857142857
D15: Jo | E15: Sheliadawn | F15: Gigi | G15: 185 | H15: 310 | I15: 298 | J15: 264.3333333 | K15: 0.02857142857
D16: Jo | E16: Sheliadawn | F16: Tyrone | G16: 185 | H16: 310 | I16: 402 | J16: 299 | K16: 0.02857142857
D17: Jo | E17: Sheliadawn | F17: Kip | G17: 185 | H17: 310 | I17: 370 | J17: 288.3333333 | K17: 0.02857142857
D18: Jo | E18: Gigi | F18: Tyrone | G18: 185 | H18: 298 | I18: 402 | J18: 295 | K18: 0.02857142857
D19: Jo | E19: Gigi | F19: Kip | G19: 185 | H19: 298 | I19: 370 | J19: 284.3333333 | K19: 0.02857142857
D20: Jo | E20: Tyrone | F20: Kip | G20: 185 | H20: 402 | I20: 370 | J20: 319 | K20: 0.02857142857
D21: Sioux | E21: Chin | F21: Sheliadawn | G21: 250 | H21: 210 | I21: 310 | J21: 256.6666667 | K21: 0.02857142857
D22: Sioux | E22: Chin | F22: Gigi | G22: 250 | H22: 210 | I22: 298 | J22: 252.6666667 | K22: 0.02857142857
D23: Sioux | E23: Chin | F23: Tyrone | G23: 250 | H23: 210 | I23: 402 | J23: 287.3333333 | K23: 0.02857142857
D24: Sioux | E24: Chin | F24: Kip | G24: 250 | H24: 210 | I24: 370 | J24: 276.6666667 | K24: 0.02857142857
D25: Sioux | E25: Sheliadawn | F25: Gigi | G25: 250 | H25: 310 | I25: 298 | J25: 286 | K25: 0.02857142857
D26: Sioux | E26: Sheliadawn | F26: Tyrone | G26: 250 | H26: 310 | I26: 402 | J26: 320.6666667 | K26: 0.02857142857
D27: Sioux | E27: Sheliadawn | F27: Kip | G27: 250 | H27: 310 | I27: 370 | J27: 310 | K27: 0.02857142857
D28: Sioux | E28: Gigi | F28: Tyrone | G28: 250 | H28: 298 | I28: 402 | J28: 316.6666667 | K28: 0.02857142857
D29: Sioux | E29: Gigi | F29: Kip | G29: 250 | H29: 298 | I29: 370 | J29: 306 | K29: 0.02857142857
D30: Sioux | E30: Tyrone | F30: Kip | G30: 250 | H30: 402 | I30: 370 | J30: 340.6666667 | K30: 0.02857142857
D31: Chin | E31: Sheliadawn | F31: Gigi | G31: 210 | H31: 310 | I31: 298 | J31: 272.6666667 | K31: 0.02857142857
D32: Chin | E32: Sheliadawn | F32: Tyrone | G32: 210 | H32: 310 | I32: 402 | J32: 307.3333333 | K32: 0.02857142857
D33: Chin | E33: Sheliadawn | F33: Kip | G33: 210 | H33: 310 | I33: 370 | J33: 296.6666667 | K33: 0.02857142857
D34: Chin | E34: Gigi | F34: Tyrone | G34: 210 | H34: 298 | I34: 402 | J34: 303.3333333 | K34: 0.02857142857
D35: Chin | E35: Gigi | F35: Kip | G35: 210 | H35: 298 | I35: 370 | J35: 292.6666667 | K35: 0.02857142857
D36: Chin | E36: Tyrone | F36: Kip | G36: 210 | H36: 402 | I36: 370 | J36: 327.3333333 | K36: 0.02857142857
D37: Sheliadawn | E37: Gigi | F37: Tyrone | G37: 310 | H37: 298 | I37: 402 | J37: 336.6666667 | K37: 0.02857142857
D38: Sheliadawn | E38: Gigi | F38: Kip | G38: 310 | H38: 298 | I38: 370 | J38: 326 | K38: 0.02857142857
D39: Sheliadawn | E39: Tyrone | F39: Kip | G39: 310 | H39: 402 | I39: 370 | J39: 360.6666667 | K39: 0.02857142857
D40: Gigi | E40: Tyrone | F40: Kip | G40: 298 | H40: 402 | I40: 370 | J40: 356.6666667 | K40: 0.02857142857
K41: =SUM(K6:K40) -> 1

Sheet Simple Random Sample
A1: Finite Population Frame: | E1: Sample Size = n = | F1: 3
E2: Pop size | F2: =ROWS(B6:C12) -> 7
A3: Selecting Simple Random Sample Method #1:
A5: RAND | B5: Sales Rep | C5: Sales | E5: Sales Rep | F5: Sales
B6: Sioux | C6: 250
B7: Jo | C7: 185
B8: Chin | C8: 210
B9: Sheliadawn | C9: 310
B10: Gigi | C10: 298 | E10: Xbar
B11: Kip | C11: 370
B12: Tyrone | C12: 402
A14: Our Rule:
A15: 1) Add new column with RAND function to our proper data set
A16: 2) Click on Sort A to Z button 5 times.
A17: 3) Copy and paste top 3 records
A19: Note: RAND or RANDARRAY:
A20: 1) Generates a 15 digit number between 0 and 1 using a uniform distribution. RAND generates: 0 <= Number < 1.
A21: 2) RAND is a volatile function, which means it recalculates after any action you make in Excel (like hit Enter)
A22: 3) F9 key tells RAND function to recalculate.

Sheet Simple Random Sample (an)
A1: Finite Population Frame: | E1: Sample Size = n = | F1: 3
E2: Pop size | F2: =ROWS(B6:C12) -> 7
A3: Selecting Simple Random Sample Method #1:
A5: RAND | B5: Sales Rep | C5: Sales | E5: Sales Rep | F5: Sales | H5: RAND | I5: Sales Rep | J5: Sales | L5: Sales Rep | M5: Sales
A6: =_xlfn.RANDARRAY(F2) -> 0.9986008271 | B6: Sioux | C6: 250 | E6: Sioux | F6: 250 | H6: =SMALL(_xlfn.ANCHORARRAY(A6),_xlfn.SEQUENCE(F1)) -> 0.1364667073 | I6: =_xlfn._xlws.FILTER(B6:C12,ISNUMBER(_xlfn.XMATCH(_xlfn.ANCHORARRAY(A6),_xlfn.ANCHORARRAY(H6)))) -> Sheliadawn | J6: 310 | L6: =_xlfn.LET(_xlpm.ra,_xlfn.RANDARRAY(F2),_xlfn._xlws.FILTER(B6:C12,ISNUMBER(_xlfn.XMATCH(_xlpm.ra,SMALL(_xlpm.ra,_xlfn.SEQUENCE(F1)))))) -> Chin | M6: 210
A7: 0.7312083599 | B7: Jo | C7: 185 | E7: Jo | F7: 185 | H7: 0.4357752035 | I7: Gigi | J7: 298 | L7: Kip | M7: 370
A8: 0.7364688568 | B8: Chin | C8: 210 | E8: Chin | F8: 210 | H8: 0.4505574561 | I8: Tyrone | J8: 402 | L8: Tyrone | M8: 402
A9: 0.1364667073 | B9: Sheliadawn | C9: 310
A10: 0.4505574561 | B10: Gigi | C10: 298 | E10: Xbar | F10: =AVERAGE(F6:F8) -> 215 | I10: Xbar | J10: =AVERAGE(J6:J8) -> 336.6666667 | L10: Xbar | M10: =AVERAGE(M6:M8) -> 327.3333333
A11: 0.7510631103 | B11: Kip | C11: 370
A12: 0.4357752035 | B12: Tyrone | C12: 402
A14: Our Rule:
A15: 1) Add new column with RAND function to our proper data set
A16: 2) Click on Sort A to Z button 5 times.
A17: 3) Copy and paste top 3 records
A19: Note: RAND or RANDARRAY:
A20: 1) Generates a 15 digit number between 0 and 1 using a uniform distribution. RAND generates: 0 <= Number < 1.
A21: 2) RAND is a volatile function, which means it recalculates after any action you make in Excel (like hit Enter)
A22: 3) F9 key tells RAND function to recalculate.

Sheet SDofXbar
B2: Pop Size = N = | D2: =COUNTA(B7:B13) -> 7 | O2: Low | P2: =_xlfn.FLOOR.MATH(MIN(C7:C13),P4) -> 175
B3: Sample Size = n = | D3: 3 | O3: High | P3: =_xlfn.CEILING.MATH(MAX(C7:C13),P4) -> 425
B4: Number of Samples Possible: | O4: Increment | P4: 25
R5: Frequency | S5: Frequency
B6: Sales Rep | C6: Sales = x | F6: Sales Rep 1 | G6: Sales Rep 2 | H6: Sales Rep 3 | I6: Sales 1 | J6: Sales 2 | K6: Sales 3 | L6: Sample Mean Xbar (Random Variable Xbar) | M6: P(Sample) | O6: Lower | P6: Upper | Q6: Category | R6: Frequency Population Distibution | S6: Frequency Sampling Distribution of Xbar
B7: Jo | C7: 185 | F7: Jo | G7: Sioux | H7: Chin
B8: Sioux | C8: 250 | F8: Jo | G8: Sioux | H8: Sheliadawn
B9: Chin | C9: 210 | F9: Jo | G9: Sioux | H9: Gigi
B10: Sheliadawn | C10: 310 | F10: Jo | G10: Sioux | H10: Tyrone
B11: Gigi | C11: 298 | F11: Jo | G11: Sioux | H11: Kip
B12: Tyrone | C12: 402 | F12: Jo | G12: Chin | H12: Sheliadawn
B13: Kip | C13: 370 | F13: Jo | G13: Chin | H13: Gigi
F14: Jo | G14: Chin | H14: Tyrone
B15: Pop Stand. Dev. = Sigma = | F15: Jo | G15: Chin | H15: Kip
B16: Pop Mean = µ = | F16: Jo | G16: Sheliadawn | H16: Gigi
B17: Mean of all the Means = | F17: Jo | G17: Sheliadawn | H17: Tyrone | Q17: Total:
B18: Expected Value (Xbar) = | F18: Jo | G18: Sheliadawn | H18: Kip
B19: E(Xbar) = | F19: Jo | G19: Gigi | H19: Tyrone
B20: µXbar = | F20: Jo | G20: Gigi | H20: Kip
B21: This is called "unbiased" | F21: Jo | G21: Tyrone | H21: Kip
B22: Because point estimator = pop parameter | F22: Sioux | G22: Chin | H22: Sheliadawn
F23: Sioux | G23: Chin | H23: Gigi
B24: Conclusion #1: µ = E(Xbar) | F24: Sioux | G24: Chin | H24: Tyrone
F25: Sioux | G25: Chin | H25: Kip
B26: What is Standard Deviation for SDofXbar? | F26: Sioux | G26: Sheliadawn | H26: Gigi
F27: Sioux | G27: Sheliadawn | H27: Tyrone
B28: SigmaXbar = | F28: Sioux | G28: Sheliadawn | H28: Kip
F29: Sioux | G29: Gigi | H29: Tyrone
B30: But what if we do not have SDofXbar? | F30: Sioux | G30: Gigi | H30: Kip
B31: Here is formula: | F31: Sioux | G31: Tyrone | H31: Kip
F32: Chin | G32: Sheliadawn | H32: Gigi
F33: Chin | G33: Sheliadawn | H33: Tyrone
F34: Chin | G34: Sheliadawn | H34: Kip | O34: Conclusion #2: Sampling Distribution of Sample Means Tends to be: Normally Distributed Less Spread In Data
F35: Chin | G35: Gigi | H35: Tyrone
F36: Chin | G36: Gigi | H36: Kip | O36: Leads to:
F37: Chin | G37: Tyrone | H37: Kip
F38: Sheliadawn | G38: Gigi | H38: Tyrone
B39: If n/N >0.05, Must use SQRT((N-n)/(N-1)) | F39: Sheliadawn | G39: Gigi | H39: Kip
F40: Sheliadawn | G40: Tyrone | H40: Kip
B41: n/N | F41: Gigi | G41: Tyrone | H41: Kip
B42: Standard Error = Sigma/SQRT(n)*SQRT((N-n)/(N-1)) | L42: Total:
B45: Conclusion #3: when using SDofXbar, Standard Error is the Standard Deviation of the SDofXbar

Sheet SDofXbar(1 an)
B2: Pop Size = N = | D2: =COUNTA(B7:B13) -> 7 | O2: Low | P2: =_xlfn.FLOOR.MATH(MIN(C7:C13),P4) -> 175
B3: Sample Size = n = | D3: 3 | O3: High | P3: =_xlfn.CEILING.MATH(MAX(C7:C13),P4) -> 425
B4: Number of Samples Possible: | D4: =COMBIN(D2,D3) -> 35 | O4: Increment | P4: 25
R5: Frequency | S5: Frequency
B6: Sales Rep | C6: Sales = x | F6: Sales Rep 1 | G6: Sales Rep 2 | H6: Sales Rep 3 | I6: Sales 1 | J6: Sales 2 | K6: Sales 3 | L6: Sample Mean Xbar (Random Variable Xbar) | M6: P(Sample) | O6: Lower | P6: Upper | Q6: Category | R6: Frequency Population Distibution | S6: Frequency Sampling Distribution of Xbar
B7: Jo | C7: 185 | F7: Jo | G7: Sioux | H7: Chin | I7: =_xlfn.XLOOKUP(F7:H41,B7:B13,C7:C13) -> 185 | J7: 250 | K7: 210 | L7: =AVERAGE(I7:K7) -> 215 | M7: =1/$D$4 -> 0.02857142857 | O7: =_xlfn.SEQUENCE((P3-P2)/P4,,P2,P4) -> 175 | P7: =_xlfn.ANCHORARRAY(O7)+P4 -> 200 | Q7: =O7&" up to "&P7 -> 175 up to 200 | R7: =COUNTIFS(C7:C13,">="&O7:O16,C7:C13,"<"&P7:P16) -> 1 | S7: =COUNTIFS(L7:L41,">="&O7:O16,L7:L41,"<"&P7:P16) -> 0
B8: Sioux | C8: 250 | F8: Jo | G8: Sioux | H8: Sheliadawn | I8: 185 | J8: 250 | K8: 310 | L8: =AVERAGE(I8:K8) -> 248.3333333 | M8: 0.02857142857 | O8: 200 | P8: 225 | Q8: 200 up to 225 | R8: 1 | S8: 1
B9: Chin | C9: 210 | F9: Jo | G9: Sioux | H9: Gigi | I9: 185 | J9: 250 | K9: 298 | L9: 244.3333333 | M9: 0.02857142857 | O9: 225 | P9: 250 | Q9: 225 up to 250 | R9: 0 | S9: 4
B10: Sheliadawn | C10: 310 | F10: Jo | G10: Sioux | H10: Tyrone | I10: 185 | J10: 250 | K10: 402 | L10: 279 | M10: 0.02857142857 | O10: 250 | P10: 275 | Q10: 250 up to 275 | R10: 1 | S10: 7
B11: Gigi | C11: 298 | F11: Jo | G11: Sioux | H11: Kip | I11: 185 | J11: 250 | K11: 370 | L11: 268.3333333 | M11: 0.02857142857 | O11: 275 | P11: 300 | Q11: 275 up to 300 | R11: 1 | S11: 10
B12: Tyrone | C12: 402 | F12: Jo | G12: Chin | H12: Sheliadawn | I12: 185 | J12: 210 | K12: 310 | L12: 235 | M12: 0.02857142857 | O12: 300 | P12: 325 | Q12: 300 up to 325 | R12: 1 | S12: 7
B13: Kip | C13: 370 | F13: Jo | G13: Chin | H13: Gigi | I13: 185 | J13: 210 | K13: 298 | L13: 231 | M13: 0.02857142857 | O13: 325 | P13: 350 | Q13: 325 up to 350 | R13: 0 | S13: 4
F14: Jo | G14: Chin | H14: Tyrone | I14: 185 | J14: 210 | K14: 402 | L14: 265.6666667 | M14: 0.02857142857 | O14: 350 | P14: 375 | Q14: 350 up to 375 | R14: 1 | S14: 2
B15: Pop Stand. Dev. = Sigma = | C15: =_xlfn.STDEV.P(C7:C13) -> 74.09398334 | F15: Jo | G15: Chin | H15: Kip | I15: 185 | J15: 210 | K15: 370 | L15: 255 | M15: 0.02857142857 | O15: 375 | P15: 400 | Q15: 375 up to 400 | R15: 0 | S15: 0
B16: Pop Mean = µ = | C16: =AVERAGE(C7:C13) -> 289.2857143 | F16: Jo | G16: Sheliadawn | H16: Gigi | I16: 185 | J16: 310 | K16: 298 | L16: 264.3333333 | M16: 0.02857142857 | O16: 400 | P16: 425 | Q16: 400 up to 425 | R16: 1 | S16: 0
B17: Mean of all the Means = | F17: Jo | G17: Sheliadawn | H17: Tyrone | I17: 185 | J17: 310 | K17: 402 | L17: 299 | M17: 0.02857142857 | Q17: Total: | R17: =SUM(R7:R16) -> 7 | S17: =SUM(S7:S16) -> 35
B18: Expected Value (Xbar) = | F18: Jo | G18: Sheliadawn | H18: Kip | I18: 185 | J18: 310 | K18: 370 | L18: 288.3333333 | M18: 0.02857142857
B19: E(Xbar) = | F19: Jo | G19: Gigi | H19: Tyrone | I19: 185 | J19: 298 | K19: 402 | L19: 295 | M19: 0.02857142857
B20: µXbar = | C20: =AVERAGE(L7:L41) -> 289.2857143 | F20: Jo | G20: Gigi | H20: Kip | I20: 185 | J20: 298 | K20: 370 | L20: 284.3333333 | M20: 0.02857142857
B21: This is called "unbiased" | F21: Jo | G21: Tyrone | H21: Kip | I21: 185 | J21: 402 | K21: 370 | L21: 319 | M21: 0.02857142857
B22: Because point estimator = pop parameter | F22: Sioux | G22: Chin | H22: Sheliadawn | I22: 250 | J22: 210 | K22: 310 | L22: 256.6666667 | M22: 0.02857142857
F23: Sioux | G23: Chin | H23: Gigi | I23: 250 | J23: 210 | K23: 298 | L23: 252.6666667 | M23: 0.02857142857
B24: Conclusion #1: µ = E(Xbar) | F24: Sioux | G24: Chin | H24: Tyrone | I24: 250 | J24: 210 | K24: 402 | L24: 287.3333333 | M24: 0.02857142857
F25: Sioux | G25: Chin | H25: Kip | I25: 250 | J25: 210 | K25: 370 | L25: 276.6666667 | M25: 0.02857142857
B26: What is Standard Deviation for SDofXbar? | F26: Sioux | G26: Sheliadawn | H26: Gigi | I26: 250 | J26: 310 | K26: 298 | L26: 286 | M26: 0.02857142857
F27: Sioux | G27: Sheliadawn | H27: Tyrone | I27: 250 | J27: 310 | K27: 402 | L27: 320.6666667 | M27: 0.02857142857
B28: SigmaXbar = | C28: =_xlfn.STDEV.P(L7:L41) -> 34.92823871 | F28: Sioux | G28: Sheliadawn | H28: Kip | I28: 250 | J28: 310 | K28: 370 | L28: 310 | M28: 0.02857142857
F29: Sioux | G29: Gigi | H29: Tyrone | I29: 250 | J29: 298 | K29: 402 | L29: 316.6666667 | M29: 0.02857142857
B30: But what if we do not have SDofXbar? | F30: Sioux | G30: Gigi | H30: Kip | I30: 250 | J30: 298 | K30: 370 | L30: 306 | M30: 0.02857142857
B31: Here is formula: | F31: Sioux | G31: Tyrone | H31: Kip | I31: 250 | J31: 402 | K31: 370 | L31: 340.6666667 | M31: 0.02857142857
F32: Chin | G32: Sheliadawn | H32: Gigi | I32: 210 | J32: 310 | K32: 298 | L32: 272.6666667 | M32: 0.02857142857
F33: Chin | G33: Sheliadawn | H33: Tyrone | I33: 210 | J33: 310 | K33: 402 | L33: 307.3333333 | M33: 0.02857142857
F34: Chin | G34: Sheliadawn | H34: Kip | I34: 210 | J34: 310 | K34: 370 | L34: 296.6666667 | M34: 0.02857142857 | O34: Conclusion #2: Sampling Distribution of Sample Means Tends to be: Normally Distributed Less Spread In Data
F35: Chin | G35: Gigi | H35: Tyrone | I35: 210 | J35: 298 | K35: 402 | L35: 303.3333333 | M35: 0.02857142857
F36: Chin | G36: Gigi | H36: Kip | I36: 210 | J36: 298 | K36: 370 | L36: 292.6666667 | M36: 0.02857142857 | O36: Leads to:
F37: Chin | G37: Tyrone | H37: Kip | I37: 210 | J37: 402 | K37: 370 | L37: 327.3333333 | M37: 0.02857142857
F38: Sheliadawn | G38: Gigi | H38: Tyrone | I38: 310 | J38: 298 | K38: 402 | L38: 336.6666667 | M38: 0.02857142857
B39: If n/N >0.05, Must use SQRT((N-n)/(N-1)) | F39: Sheliadawn | G39: Gigi | H39: Kip | I39: 310 | J39: 298 | K39: 370 | L39: 326 | M39: 0.02857142857
F40: Sheliadawn | G40: Tyrone | H40: Kip | I40: 310 | J40: 402 | K40: 370 | L40: 360.6666667 | M40: 0.02857142857
B41: n/N | C41: =D3/D2 -> 0.4285714286 | F41: Gigi | G41: Tyrone | H41: Kip | I41: 298 | J41: 402 | K41: 370 | L41: 356.6666667 | M41: 0.02857142857
B42: Standard Error = Sigma/SQRT(n)*SQRT((N-n)/(N-1)) | C42: =C15/SQRT(D3)*SQRT((D2-D3)/(D2-1)) -> 34.92823871 | L42: Total: | M42: =SUM(M7:M41) -> 1
B45: Conclusion #3: when using SDofXbar, Standard Error is the Standard Deviation of the SDofXbar

Sheet SE & Correction Factor
B2: Population Standard Deviation shows the "How spread out the data is"
B3: Sampling Distribution of Xbar is less spread out because the distribution is made up of averages, (values near middle), not actual values
B4: This means we must have a formula to reduce the size of the given Population Standard Deviation
B5: Formula for Standard Deviation of Sampling Distribution of Xbar is
B6: If n/N <= 0.05 for finite population or population is infinite use: Sigma/(SQRT(n)
B7: If n/N > 0.05 for finite population use: [Sigma/(SQRT(n)]*SQRT((N-n)/(N-1))
B9: Sigma | C9: 195 | D9: Population standard deviation
B10: n | C10: 300 | D10: Sample Size
B12: N = Pop Size | C12: n/N | D12: n/N > 0.05 ? | E12: Correction Factor | F12: Standard Error | G12: Standard Error w Correction Factor
B13: 300000
B14: 168000
B15: 25000
B16: 10000
B17: 3000

Sheet SE & Correction Factor (an)
B2: Population Standard Deviation shows the "How spread out the data is"
B3: Sampling Distribution of Xbar is less spread out because the distribution is made up of averages, (values near middle), not actual values
B4: This means we must have a formula to reduce the size of the given Population Standard Deviation
B5: Formula for Standard Deviation of Sampling Distribution of Xbar is
B6: If n/N <= 0.05 for finite population or population is infinite use: Sigma/(SQRT(n)
B7: If n/N > 0.05 for finite population use: [Sigma/(SQRT(n)]*SQRT((N-n)/(N-1))
B9: Sigma | C9: 195 | D9: Population standard deviation
B10: n | C10: 300 | D10: Sample Size
B12: N = Pop Size | C12: n/N | D12: n/N > 0.05 ? | E12: Correction Factor | F12: Standard Error | G12: Standard Error w Correction Factor
B13: 300000 | C13: =C10/B13:B17 -> 0.001 | D13: =_xlfn.ANCHORARRAY(C13)>0.05 -> FALSE | E13: =SQRT((B13:B17-C10)/(B13:B17-1)) -> 0.9995015408 | F13: =$C$9/SQRT($C$10) -> 11.25833025 | G13: =F13:F17*_xlfn.ANCHORARRAY(E13) -> 11.25271843
B14: 168000 | C14: 0.001785714286 | D14: FALSE | E14: 0.9991097174 | F14: =$C$9/SQRT($C$10) -> 11.25833025 | G14: 11.24830715
B15: 25000 | C15: 0.012 | D15: FALSE | E15: 0.9940017714 | F15: 11.25833025 | G15: 11.19080021
B16: 10000 | C16: 0.03 | D16: FALSE | E16: 0.9849350282 | F16: 11.25833025 | G16: 11.08872382
B17: 3000 | C17: 0.1 | D17: TRUE | E17: 0.9488414515 | F17: 11.25833025 | G17: 10.68237041

Sheet n and Prob
B2: ="An insurance company claims that the average cost per year for a policy is "&DOLLAR(C6,0) -> An insurance company claims that the average cost per year for a policy is $822
B3: They issued 35,000 policies this year.
B4: The standard deviation for the population is $202
B6: Pop Mean = μ | C6: 822
B7: Pop S.D. = Sigma = σ | C7: 202
B8: # S.D. = z = | C8: 2
B10: What happens to standard error as n increases?
B12: n | C12: Standard Error | D12: Margin of Error | E12: Lower Xbar | F12: Upper Xbar | G12: Normal Curve Probability | H12: p(Xbar)
B13: 50 | G13: =IF(F13:F17="","","P("&DOLLAR(E13:E17,0)&" <= Xbar <= "&DOLLAR(F13:F17,0)&")") ->  | H13: =IF(F13:F17="","",_xlfn.NORM.DIST(_xlfn.ANCHORARRAY(F13),C6,_xlfn.ANCHORARRAY(C13),1)-_xlfn.NORM.DIST(_xlfn.ANCHORARRAY(E13),C6,_xlfn.ANCHORARRAY(C13),1)) -> 
B14: 100
B15: 300
B16: 500
B17: 1000
B19: * As n increases, standard error decreases, margin of error decreases, and interval as a given number of z-scores decreases | J19: n | K19: 100 | L19: 500
B21: Margin of error | C21: 30
B22: Pop Mean = μ | C22: =C6 -> 822
B23: Pop S.D. = Sigma = σ | C23: =C7 -> 202
B25: What happens to probability at a fixed margin of error as n increases?
B27: n | C27: Lower Xbar | D27: Upper Xbar | E27: Standard Error | F27: p(Xbar) | G27: Normal Curve Probability
B28: =B13 -> 50 | C28: =$C$6-$C$21 -> 792 | D28: =$C$6+$C$21 -> 852 | G28: ="P("&DOLLAR(C28:C32,0)&" <= Xbar <= "&DOLLAR(D28:D32,0)&")" -> P($792 <= Xbar <= $852)
B29: 100 | C29: =$C$6-$C$21 -> 792 | D29: =$C$6+$C$21 -> 852 | G29: P($792 <= Xbar <= $852)
B30: 300 | C30: =$C$6-$C$21 -> 792 | D30: =$C$6+$C$21 -> 852 | G30: P($792 <= Xbar <= $852)
B31: 500 | C31: =$C$6-$C$21 -> 792 | D31: =$C$6+$C$21 -> 852 | G31: P($792 <= Xbar <= $852)
B32: 1000 | C32: =$C$6-$C$21 -> 792 | D32: =$C$6+$C$21 -> 852 | G32: P($792 <= Xbar <= $852)
B34: *As n increases, Standard Error decreases, which means there is higher probability that Xbar falls within specified distance of Pop Mean
B38: SE | C38: =C7/SQRT(K19:L19) -> 20.2 | D38: 9.033714629
B39: Xbar | C39: ="Plot @ N = "&K19 -> Plot @ N = 100 | D39: ="Plot @ N = "&L19 -> Plot @ N = 500
B40: 741 | C40: =_xlfn.NORM.DIST($B$40:$B$201,$C$6,C38,0) -> 6.367687954e-06 | D40: =_xlfn.NORM.DIST($B$40:$B$201,$C$6,D38,0) -> 1.538718165e-19
B41: 742 | C41: 7.756421067e-06 | D41: 4.126264875e-19
B42: 743 | C42: 9.424897566e-06 | D42: 1.093033344e-18
B43: 744 | C43: 1.142424629e-05 | D43: 2.860144688e-18
B44: 745 | C44: 1.381383083e-05 | D44: 7.393002995e-18
B45: 746 | C45: 1.666235434e-05 | D45: 1.887695959e-17
B46: 747 | C46: 2.004907109e-05 | D46: 4.761255588e-17
B47: 748 | C47: 2.406510732e-05 | D47: 1.186285522e-16
B48: 749 | C48: 2.88148927e-05 | D48: 2.91967997e-16
B49: 750 | C49: 3.441770183e-05 | D49: 7.098385088e-16
B50: 751 | C50: 4.100930282e-05 | D50: 1.704755684e-15
B51: 752 | C51: 4.874370777e-05 | D51: 4.044296838e-15
B52: 753 | C52: 5.779501674e-05 | D52: 9.477683154e-15
B53: 754 | C53: 6.835934351e-05 | D53: 2.194015206e-14
B54: 755 | C54: 8.065680784e-05 | D54: 5.017130137e-14
B55: 756 | C55: 9.493357451e-05 | D55: 1.133311732e-13
B56: 757 | C56: 0.0001114639154 | D56: 2.528841956e-13
B57: 758 | C57: 0.0001305522654 | D57: 5.574068191e-13
B58: 759 | C58: 0.0001525352391 | D58: 1.213671495e-12
B59: 760 | C59: 0.0001777835685 | D59: 2.610407521e-12
B60: 761 | C60: 0.0002067039178 | D60: 5.54617741e-12
B61: 762 | C61: 0.0002397405263 | D61: 1.164012083e-11
B62: 763 | C62: 0.0002773766238 | D62: 2.413234386e-11
B63: 764 | C63: 0.0003201355605 | D63: 4.942194201e-11
B64: 765 | C64: 0.0003685815868 | D64: 9.998121129e-11
B65: 766 | C65: 0.0004233202169 | D65: 1.997999001e-10
B66: 767 | C66: 0.0004849981049 | D66: 3.94412277e-10
B67: 768 | C67: 0.0005543023635 | D67: 7.69101872e-10
B68: 769 | C68: 0.0006319592517 | D68: 1.481479333e-09
B69: 770 | C69: 0.0007187321617 | D69: 2.81893857e-09
B70: 771 | C70: 0.0008154188354 | D70: 5.298511873e-09
B71: 772 | C71: 0.0009228477466 | D71: 9.837856811e-09
B72: 773 | C72: 0.001041873592 | D72: 1.804369045e-08
B73: 774 | C73: 0.001173371841 | D73: 3.269102398e-08
B74: 775 | C74: 0.001318232303 | D74: 5.850728775e-08
B75: 776 | C75: 0.001477351697 | D75: 1.034355178e-07
B76: 777 | C76: 0.001651625189 | D76: 1.806374132e-07
B77: 778 | C77: 0.001841936938 | D77: 3.11619053e-07
B78: 779 | C78: 0.00204914964 | D78: 5.310294253e-07
B79: 780 | C79: 0.002274093138 | D79: 8.939051835e-07
B80: 781 | C80: 0.002517552168 | D80: 1.486423661e-06
B81: 782 | C81: 0.002780253311 | D81: 2.441586133e-06
B82: 783 | C82: 0.003062851294 | D82: 3.961683483e-06
B83: 784 | C83: 0.003365914762 | D83: 6.349883909e-06
B84: 785 | C84: 0.003689911695 | D84: 1.005379629e-05
B85: 786 | C85: 0.004035194652 | D85: 1.572434859e-05
B86: 787 | C86: 0.004401986057 | D86: 2.429369249e-05
B87: 788 | C87: 0.004790363759 | D87: 3.707598367e-05
B88: 789 | C88: 0.005200247102 | D88: 5.589463442e-05
B89: 790 | C89: 0.005631383776 | D89: 8.323880625e-05
B90: 791 | C90: 0.006083337717 | D90: 0.0001224502996
B91: 792 | C91: 0.006555478326 | D91: 0.0001779394099
B92: 793 | C92: 0.007046971284 | D92: 0.0002554246021
B93: 794 | C93: 0.00755677123 | D93: 0.0003621859429
B94: 795 | C94: 0.008083616559 | D94: 0.000507316212
B95: 796 | C95: 0.00862602658 | D95: 0.000701946765
B96: 797 | C96: 0.009182301238 | D96: 0.0009594180796
B97: 798 | C97: 0.009750523597 | D97: 0.001295358278
B98: 799 | C98: 0.01032856522 | D98: 0.001727627853
B99: 800 | C99: 0.01091409455 | D99: 0.002276086562
B100: 801 | C100: 0.01150458837 | D100: 0.002962140389
B101: 802 | C101: 0.01209734633 | D101: 0.003808033728
B102: 803 | C102: 0.01268950849 | D102: 0.004835865577
B103: 804 | C103: 0.01327807583 | D103: 0.006066328715
B104: 805 | C104: 0.01385993347 | D104: 0.00751719722
B105: 806 | C105: 0.01443187649 | D105: 0.00920161874
B106: 807 | C106: 0.01499063807 | D106: 0.01112630115
B107: 808 | C107: 0.01553291948 | D107: 0.01328971512
B108: 809 | C108: 0.01605542182 | D108: 0.01568046069
B109: 810 | C109: 0.01655487884 | D109: 0.01827596216
B110: 811 | C110: 0.01702809052 | D110: 0.02104165849
B111: 812 | C111: 0.01747195694 | D111: 0.02393084151
B112: 813 | C112: 0.01788351192 | D112: 0.02688526112
B113: 814 | C113: 0.01825995585 | D113: 0.02983656569
B114: 815 | C114: 0.0185986874 | D114: 0.03270858012
B115: 816 | C115: 0.01889733334 | D115: 0.03542034903
B116: 817 | C116: 0.01915377626 | D116: 0.03788979596
B117: 818 | C117: 0.01936617951 | D117: 0.04003777937
B118: 819 | C118: 0.01953300914 | D118: 0.04179227212
B119: 820 | C119: 0.01965305233 | D119: 0.04309235901
B120: 821 | C120: 0.01972543207 | D120: 0.04389174438
B121: 822 | C121: 0.01974961784 | D121: 0.04416148802
B122: 823 | C122: 0.01972543207 | D122: 0.04389174438
B123: 824 | C123: 0.01965305233 | D123: 0.04309235901
B124: 825 | C124: 0.01953300914 | D124: 0.04179227212
B125: 826 | C125: 0.01936617951 | D125: 0.04003777937
B126: 827 | C126: 0.01915377626 | D126: 0.03788979596
B127: 828 | C127: 0.01889733334 | D127: 0.03542034903
B128: 829 | C128: 0.0185986874 | D128: 0.03270858012
B129: 830 | C129: 0.01825995585 | D129: 0.02983656569
B130: 831 | C130: 0.01788351192 | D130: 0.02688526112
B131: 832 | C131: 0.01747195694 | D131: 0.02393084151
B132: 833 | C132: 0.01702809052 | D132: 0.02104165849
B133: 834 | C133: 0.01655487884 | D133: 0.01827596216
B134: 835 | C134: 0.01605542182 | D134: 0.01568046069
B135: 836 | C135: 0.01553291948 | D135: 0.01328971512
B136: 837 | C136: 0.01499063807 | D136: 0.01112630115
B137: 838 | C137: 0.01443187649 | D137: 0.00920161874
B138: 839 | C138: 0.01385993347 | D138: 0.00751719722
B139: 840 | C139: 0.01327807583 | D139: 0.006066328715
B140: 841 | C140: 0.01268950849 | D140: 0.004835865577
B141: 842 | C141: 0.01209734633 | D141: 0.003808033728
B142: 843 | C142: 0.01150458837 | D142: 0.002962140389
B143: 844 | C143: 0.01091409455 | D143: 0.002276086562
B144: 845 | C144: 0.01032856522 | D144: 0.001727627853
B145: 846 | C145: 0.009750523597 | D145: 0.001295358278
B146: 847 | C146: 0.009182301238 | D146: 0.0009594180796
B147: 848 | C147: 0.00862602658 | D147: 0.000701946765
B148: 849 | C148: 0.008083616559 | D148: 0.000507316212
B149: 850 | C149: 0.00755677123 | D149: 0.0003621859429
B150: 851 | C150: 0.007046971284 | D150: 0.0002554246021
B151: 852 | C151: 0.006555478326 | D151: 0.0001779394099
B152: 853 | C152: 0.006083337717 | D152: 0.0001224502996
B153: 854 | C153: 0.005631383776 | D153: 8.323880625e-05
B154: 855 | C154: 0.005200247102 | D154: 5.589463442e-05
B155: 856 | C155: 0.004790363759 | D155: 3.707598367e-05
B156: 857 | C156: 0.004401986057 | D156: 2.429369249e-05
B157: 858 | C157: 0.004035194652 | D157: 1.572434859e-05
B158: 859 | C158: 0.003689911695 | D158: 1.005379629e-05
B159: 860 | C159: 0.003365914762 | D159: 6.349883909e-06
B160: 861 | C160: 0.003062851294 | D160: 3.961683483e-06
B161: 862 | C161: 0.002780253311 | D161: 2.441586133e-06
B162: 863 | C162: 0.002517552168 | D162: 1.486423661e-06
B163: 864 | C163: 0.002274093138 | D163: 8.939051835e-07
B164: 865 | C164: 0.00204914964 | D164: 5.310294253e-07
B165: 866 | C165: 0.001841936938 | D165: 3.11619053e-07
B166: 867 | C166: 0.001651625189 | D166: 1.806374132e-07
B167: 868 | C167: 0.001477351697 | D167: 1.034355178e-07
B168: 869 | C168: 0.001318232303 | D168: 5.850728775e-08
B169: 870 | C169: 0.001173371841 | D169: 3.269102398e-08
B170: 871 | C170: 0.001041873592 | D170: 1.804369045e-08
B171: 872 | C171: 0.0009228477466 | D171: 9.837856811e-09
B172: 873 | C172: 0.0008154188354 | D172: 5.298511873e-09
B173: 874 | C173: 0.0007187321617 | D173: 2.81893857e-09
B174: 875 | C174: 0.0006319592517 | D174: 1.481479333e-09
B175: 876 | C175: 0.0005543023635 | D175: 7.69101872e-10
B176: 877 | C176: 0.0004849981049 | D176: 3.94412277e-10
B177: 878 | C177: 0.0004233202169 | D177: 1.997999001e-10
B178: 879 | C178: 0.0003685815868 | D178: 9.998121129e-11
B179: 880 | C179: 0.0003201355605 | D179: 4.942194201e-11
B180: 881 | C180: 0.0002773766238 | D180: 2.413234386e-11
B181: 882 | C181: 0.0002397405263 | D181: 1.164012083e-11
B182: 883 | C182: 0.0002067039178 | D182: 5.54617741e-12
B183: 884 | C183: 0.0001777835685 | D183: 2.610407521e-12
B184: 885 | C184: 0.0001525352391 | D184: 1.213671495e-12
B185: 886 | C185: 0.0001305522654 | D185: 5.574068191e-13
B186: 887 | C186: 0.0001114639154 | D186: 2.528841956e-13
B187: 888 | C187: 9.493357451e-05 | D187: 1.133311732e-13
B188: 889 | C188: 8.065680784e-05 | D188: 5.017130137e-14
B189: 890 | C189: 6.835934351e-05 | D189: 2.194015206e-14
B190: 891 | C190: 5.779501674e-05 | D190: 9.477683154e-15
B191: 892 | C191: 4.874370777e-05 | D191: 4.044296838e-15
B192: 893 | C192: 4.100930282e-05 | D192: 1.704755684e-15
B193: 894 | C193: 3.441770183e-05 | D193: 7.098385088e-16
B194: 895 | C194: 2.88148927e-05 | D194: 2.91967997e-16
B195: 896 | C195: 2.406510732e-05 | D195: 1.186285522e-16
B196: 897 | C196: 2.004907109e-05 | D196: 4.761255588e-17
B197: 898 | C197: 1.666235434e-05 | D197: 1.887695959e-17
B198: 899 | C198: 1.381383083e-05 | D198: 7.393002995e-18
B199: 900 | C199: 1.142424629e-05 | D199: 2.860144688e-18
B200: 901 | C200: 9.424897566e-06 | D200: 1.093033344e-18
B201: 902 | C201: 7.756421067e-06 | D201: 4.126264875e-19
B214: =_xlfn.LET(_xlpm.low,C6-4*C38,_xlpm.high,C6+4*C38,_xlpm.r,_xlpm.high-_xlpm.low+1,_xlfn.SEQUENCE(_xlpm.r,,_xlpm.low)) -> 741.2
B215: 742.2
B216: 743.2
B217: 744.2
B218: 745.2
B219: 746.2
B220: 747.2
B221: 748.2
B222: 749.2
B223: 750.2
B224: 751.2
... 151 more rows

Sheet n and Prob (an)
B2: ="An insurance company claims that the average cost per year for a policy is "&DOLLAR(C6,0) -> An insurance company claims that the average cost per year for a policy is $822
B3: They issued 35,000 policies this year.
B4: The standard deviation for the population is $202
B6: Pop Mean = μ | C6: 822
B7: Pop S.D. = Sigma = σ | C7: 202
B8: # S.D. = z = | C8: 2
B10: What happens to standard error as n increases?
B12: n | C12: Standard Error | D12: Margin of Error | E12: Lower Xbar | F12: Upper Xbar | G12: Normal Curve Probability | H12: p(Xbar)
B13: 50 | C13: =C7/SQRT(B13:B17) -> 28.56711396 | D13: =_xlfn.ANCHORARRAY(C13)*C8 -> 57.13422792 | E13: =C6-_xlfn.ANCHORARRAY(D13) -> 764.8657721 | F13: =C6+_xlfn.ANCHORARRAY(D13) -> 879.1342279 | G13: =IF(F13:F17="","","P("&DOLLAR(E13:E17,0)&" <= Xbar <= "&DOLLAR(F13:F17,0)&")") -> P($765 <= Xbar <= $879) | H13: =IF(F13:F17="","",_xlfn.NORM.DIST(_xlfn.ANCHORARRAY(F13),C6,_xlfn.ANCHORARRAY(C13),1)-_xlfn.NORM.DIST(_xlfn.ANCHORARRAY(E13),C6,_xlfn.ANCHORARRAY(C13),1)) -> 0.9544997361
B14: 100 | C14: 20.2 | D14: 40.4 | E14: 781.6 | F14: 862.4 | G14: P($782 <= Xbar <= $862) | H14: 0.9544997361
B15: 300 | C15: 11.66247544 | D15: 23.32495088 | E15: 798.6750491 | F15: 845.3249509 | G15: P($799 <= Xbar <= $845) | H15: 0.9544997361
B16: 500 | C16: 9.033714629 | D16: 18.06742926 | E16: 803.9325707 | F16: 840.0674293 | G16: P($804 <= Xbar <= $840) | H16: 0.9544997361
B17: 1000 | C17: 6.387800874 | D17: 12.77560175 | E17: 809.2243983 | F17: 834.7756017 | G17: P($809 <= Xbar <= $835) | H17: 0.9544997361
B19: * As n increases, standard error decreases, margin of error decreases, and interval as a given number of z-scores decreases | J19: n | K19: 100 | L19: 500
B21: Margin of error | C21: 30
B22: Pop Mean = μ | C22: =C6 -> 822
B23: Pop S.D. = Sigma = σ | C23: =C7 -> 202
B25: What happens to probability at a fixed margin of error as n increases?
B27: n | C27: Lower Xbar | D27: Upper Xbar | E27: Standard Error | F27: p(Xbar) | G27: Normal Curve Probability
B28: =B13 -> 50 | C28: =$C$6-$C$21 -> 792 | D28: =$C$6+$C$21 -> 852 | E28: =C23/SQRT(B28:B32) -> 28.56711396 | F28: =_xlfn.NORM.DIST(D28:D32,C22,_xlfn.ANCHORARRAY(E28),1)-_xlfn.NORM.DIST(C28:C32,C22,_xlfn.ANCHORARRAY(E28),1) -> 0.7063547933 | G28: ="P("&DOLLAR(C28:C32,0)&" <= Xbar <= "&DOLLAR(D28:D32,0)&")" -> P($792 <= Xbar <= $852)
B29: 100 | C29: =$C$6-$C$21 -> 792 | D29: =$C$6+$C$21 -> 852 | E29: 20.2 | F29: 0.8624955131 | G29: P($792 <= Xbar <= $852)
B30: 300 | C30: =$C$6-$C$21 -> 792 | D30: =$C$6+$C$21 -> 852 | E30: 11.66247544 | F30: 0.9898990066 | G30: P($792 <= Xbar <= $852)
B31: 500 | C31: =$C$6-$C$21 -> 792 | D31: =$C$6+$C$21 -> 852 | E31: 9.033714629 | F31: 0.9991027008 | G31: P($792 <= Xbar <= $852)
B32: 1000 | C32: =$C$6-$C$21 -> 792 | D32: =$C$6+$C$21 -> 852 | E32: 6.387800874 | F32: 0.9999973528 | G32: P($792 <= Xbar <= $852)
B34: *As n increases, Standard Error decreases, which means there is higher probability that Xbar falls within specified distance of Pop Mean
B38: SE | C38: =C7/SQRT(K19:L19) -> 20.2 | D38: 9.033714629
B39: Xbar | C39: ="Plot @ N = "&K19 -> Plot @ N = 100 | D39: ="Plot @ N = "&L19 -> Plot @ N = 500
B40: 741 | C40: =_xlfn.NORM.DIST($B$40:$B$201,$C$6,C38,0) -> 6.367687954e-06 | D40: =_xlfn.NORM.DIST($B$40:$B$201,$C$6,D38,0) -> 1.538718165e-19
B41: 742 | C41: 7.756421067e-06 | D41: 4.126264875e-19
B42: 743 | C42: 9.424897566e-06 | D42: 1.093033344e-18
B43: 744 | C43: 1.142424629e-05 | D43: 2.860144688e-18
B44: 745 | C44: 1.381383083e-05 | D44: 7.393002995e-18
B45: 746 | C45: 1.666235434e-05 | D45: 1.887695959e-17
B46: 747 | C46: 2.004907109e-05 | D46: 4.761255588e-17
B47: 748 | C47: 2.406510732e-05 | D47: 1.186285522e-16
B48: 749 | C48: 2.88148927e-05 | D48: 2.91967997e-16
B49: 750 | C49: 3.441770183e-05 | D49: 7.098385088e-16
B50: 751 | C50: 4.100930282e-05 | D50: 1.704755684e-15
B51: 752 | C51: 4.874370777e-05 | D51: 4.044296838e-15
B52: 753 | C52: 5.779501674e-05 | D52: 9.477683154e-15
B53: 754 | C53: 6.835934351e-05 | D53: 2.194015206e-14
B54: 755 | C54: 8.065680784e-05 | D54: 5.017130137e-14
B55: 756 | C55: 9.493357451e-05 | D55: 1.133311732e-13
B56: 757 | C56: 0.0001114639154 | D56: 2.528841956e-13
B57: 758 | C57: 0.0001305522654 | D57: 5.574068191e-13
B58: 759 | C58: 0.0001525352391 | D58: 1.213671495e-12
B59: 760 | C59: 0.0001777835685 | D59: 2.610407521e-12
B60: 761 | C60: 0.0002067039178 | D60: 5.54617741e-12
B61: 762 | C61: 0.0002397405263 | D61: 1.164012083e-11
B62: 763 | C62: 0.0002773766238 | D62: 2.413234386e-11
B63: 764 | C63: 0.0003201355605 | D63: 4.942194201e-11
B64: 765 | C64: 0.0003685815868 | D64: 9.998121129e-11
B65: 766 | C65: 0.0004233202169 | D65: 1.997999001e-10
B66: 767 | C66: 0.0004849981049 | D66: 3.94412277e-10
B67: 768 | C67: 0.0005543023635 | D67: 7.69101872e-10
B68: 769 | C68: 0.0006319592517 | D68: 1.481479333e-09
B69: 770 | C69: 0.0007187321617 | D69: 2.81893857e-09
B70: 771 | C70: 0.0008154188354 | D70: 5.298511873e-09
B71: 772 | C71: 0.0009228477466 | D71: 9.837856811e-09
B72: 773 | C72: 0.001041873592 | D72: 1.804369045e-08
B73: 774 | C73: 0.001173371841 | D73: 3.269102398e-08
B74: 775 | C74: 0.001318232303 | D74: 5.850728775e-08
B75: 776 | C75: 0.001477351697 | D75: 1.034355178e-07
B76: 777 | C76: 0.001651625189 | D76: 1.806374132e-07
B77: 778 | C77: 0.001841936938 | D77: 3.11619053e-07
B78: 779 | C78: 0.00204914964 | D78: 5.310294253e-07
B79: 780 | C79: 0.002274093138 | D79: 8.939051835e-07
B80: 781 | C80: 0.002517552168 | D80: 1.486423661e-06
B81: 782 | C81: 0.002780253311 | D81: 2.441586133e-06
B82: 783 | C82: 0.003062851294 | D82: 3.961683483e-06
B83: 784 | C83: 0.003365914762 | D83: 6.349883909e-06
B84: 785 | C84: 0.003689911695 | D84: 1.005379629e-05
B85: 786 | C85: 0.004035194652 | D85: 1.572434859e-05
B86: 787 | C86: 0.004401986057 | D86: 2.429369249e-05
B87: 788 | C87: 0.004790363759 | D87: 3.707598367e-05
B88: 789 | C88: 0.005200247102 | D88: 5.589463442e-05
B89: 790 | C89: 0.005631383776 | D89: 8.323880625e-05
B90: 791 | C90: 0.006083337717 | D90: 0.0001224502996
B91: 792 | C91: 0.006555478326 | D91: 0.0001779394099
B92: 793 | C92: 0.007046971284 | D92: 0.0002554246021
B93: 794 | C93: 0.00755677123 | D93: 0.0003621859429
B94: 795 | C94: 0.008083616559 | D94: 0.000507316212
B95: 796 | C95: 0.00862602658 | D95: 0.000701946765
B96: 797 | C96: 0.009182301238 | D96: 0.0009594180796
B97: 798 | C97: 0.009750523597 | D97: 0.001295358278
B98: 799 | C98: 0.01032856522 | D98: 0.001727627853
B99: 800 | C99: 0.01091409455 | D99: 0.002276086562
B100: 801 | C100: 0.01150458837 | D100: 0.002962140389
B101: 802 | C101: 0.01209734633 | D101: 0.003808033728
B102: 803 | C102: 0.01268950849 | D102: 0.004835865577
B103: 804 | C103: 0.01327807583 | D103: 0.006066328715
B104: 805 | C104: 0.01385993347 | D104: 0.00751719722
B105: 806 | C105: 0.01443187649 | D105: 0.00920161874
B106: 807 | C106: 0.01499063807 | D106: 0.01112630115
B107: 808 | C107: 0.01553291948 | D107: 0.01328971512
B108: 809 | C108: 0.01605542182 | D108: 0.01568046069
B109: 810 | C109: 0.01655487884 | D109: 0.01827596216
B110: 811 | C110: 0.01702809052 | D110: 0.02104165849
B111: 812 | C111: 0.01747195694 | D111: 0.02393084151
B112: 813 | C112: 0.01788351192 | D112: 0.02688526112
B113: 814 | C113: 0.01825995585 | D113: 0.02983656569
B114: 815 | C114: 0.0185986874 | D114: 0.03270858012
B115: 816 | C115: 0.01889733334 | D115: 0.03542034903
B116: 817 | C116: 0.01915377626 | D116: 0.03788979596
B117: 818 | C117: 0.01936617951 | D117: 0.04003777937
B118: 819 | C118: 0.01953300914 | D118: 0.04179227212
B119: 820 | C119: 0.01965305233 | D119: 0.04309235901
B120: 821 | C120: 0.01972543207 | D120: 0.04389174438
B121: 822 | C121: 0.01974961784 | D121: 0.04416148802
B122: 823 | C122: 0.01972543207 | D122: 0.04389174438
B123: 824 | C123: 0.01965305233 | D123: 0.04309235901
B124: 825 | C124: 0.01953300914 | D124: 0.04179227212
B125: 826 | C125: 0.01936617951 | D125: 0.04003777937
B126: 827 | C126: 0.01915377626 | D126: 0.03788979596
B127: 828 | C127: 0.01889733334 | D127: 0.03542034903
B128: 829 | C128: 0.0185986874 | D128: 0.03270858012
B129: 830 | C129: 0.01825995585 | D129: 0.02983656569
B130: 831 | C130: 0.01788351192 | D130: 0.02688526112
B131: 832 | C131: 0.01747195694 | D131: 0.02393084151
B132: 833 | C132: 0.01702809052 | D132: 0.02104165849
B133: 834 | C133: 0.01655487884 | D133: 0.01827596216
B134: 835 | C134: 0.01605542182 | D134: 0.01568046069
B135: 836 | C135: 0.01553291948 | D135: 0.01328971512
B136: 837 | C136: 0.01499063807 | D136: 0.01112630115
B137: 838 | C137: 0.01443187649 | D137: 0.00920161874
B138: 839 | C138: 0.01385993347 | D138: 0.00751719722
B139: 840 | C139: 0.01327807583 | D139: 0.006066328715
B140: 841 | C140: 0.01268950849 | D140: 0.004835865577
B141: 842 | C141: 0.01209734633 | D141: 0.003808033728
B142: 843 | C142: 0.01150458837 | D142: 0.002962140389
B143: 844 | C143: 0.01091409455 | D143: 0.002276086562
B144: 845 | C144: 0.01032856522 | D144: 0.001727627853
B145: 846 | C145: 0.009750523597 | D145: 0.001295358278
B146: 847 | C146: 0.009182301238 | D146: 0.0009594180796
B147: 848 | C147: 0.00862602658 | D147: 0.000701946765
B148: 849 | C148: 0.008083616559 | D148: 0.000507316212
B149: 850 | C149: 0.00755677123 | D149: 0.0003621859429
B150: 851 | C150: 0.007046971284 | D150: 0.0002554246021
B151: 852 | C151: 0.006555478326 | D151: 0.0001779394099
B152: 853 | C152: 0.006083337717 | D152: 0.0001224502996
B153: 854 | C153: 0.005631383776 | D153: 8.323880625e-05
B154: 855 | C154: 0.005200247102 | D154: 5.589463442e-05
B155: 856 | C155: 0.004790363759 | D155: 3.707598367e-05
B156: 857 | C156: 0.004401986057 | D156: 2.429369249e-05
B157: 858 | C157: 0.004035194652 | D157: 1.572434859e-05
B158: 859 | C158: 0.003689911695 | D158: 1.005379629e-05
B159: 860 | C159: 0.003365914762 | D159: 6.349883909e-06
B160: 861 | C160: 0.003062851294 | D160: 3.961683483e-06
B161: 862 | C161: 0.002780253311 | D161: 2.441586133e-06
B162: 863 | C162: 0.002517552168 | D162: 1.486423661e-06
B163: 864 | C163: 0.002274093138 | D163: 8.939051835e-07
B164: 865 | C164: 0.00204914964 | D164: 5.310294253e-07
B165: 866 | C165: 0.001841936938 | D165: 3.11619053e-07
B166: 867 | C166: 0.001651625189 | D166: 1.806374132e-07
B167: 868 | C167: 0.001477351697 | D167: 1.034355178e-07
B168: 869 | C168: 0.001318232303 | D168: 5.850728775e-08
B169: 870 | C169: 0.001173371841 | D169: 3.269102398e-08
B170: 871 | C170: 0.001041873592 | D170: 1.804369045e-08
B171: 872 | C171: 0.0009228477466 | D171: 9.837856811e-09
B172: 873 | C172: 0.0008154188354 | D172: 5.298511873e-09
B173: 874 | C173: 0.0007187321617 | D173: 2.81893857e-09
B174: 875 | C174: 0.0006319592517 | D174: 1.481479333e-09
B175: 876 | C175: 0.0005543023635 | D175: 7.69101872e-10
B176: 877 | C176: 0.0004849981049 | D176: 3.94412277e-10
B177: 878 | C177: 0.0004233202169 | D177: 1.997999001e-10
B178: 879 | C178: 0.0003685815868 | D178: 9.998121129e-11
B179: 880 | C179: 0.0003201355605 | D179: 4.942194201e-11
B180: 881 | C180: 0.0002773766238 | D180: 2.413234386e-11
B181: 882 | C181: 0.0002397405263 | D181: 1.164012083e-11
B182: 883 | C182: 0.0002067039178 | D182: 5.54617741e-12
B183: 884 | C183: 0.0001777835685 | D183: 2.610407521e-12
B184: 885 | C184: 0.0001525352391 | D184: 1.213671495e-12
B185: 886 | C185: 0.0001305522654 | D185: 5.574068191e-13
B186: 887 | C186: 0.0001114639154 | D186: 2.528841956e-13
B187: 888 | C187: 9.493357451e-05 | D187: 1.133311732e-13
B188: 889 | C188: 8.065680784e-05 | D188: 5.017130137e-14
B189: 890 | C189: 6.835934351e-05 | D189: 2.194015206e-14
B190: 891 | C190: 5.779501674e-05 | D190: 9.477683154e-15
B191: 892 | C191: 4.874370777e-05 | D191: 4.044296838e-15
B192: 893 | C192: 4.100930282e-05 | D192: 1.704755684e-15
B193: 894 | C193: 3.441770183e-05 | D193: 7.098385088e-16
B194: 895 | C194: 2.88148927e-05 | D194: 2.91967997e-16
B195: 896 | C195: 2.406510732e-05 | D195: 1.186285522e-16
B196: 897 | C196: 2.004907109e-05 | D196: 4.761255588e-17
B197: 898 | C197: 1.666235434e-05 | D197: 1.887695959e-17
B198: 899 | C198: 1.381383083e-05 | D198: 7.393002995e-18
B199: 900 | C199: 1.142424629e-05 | D199: 2.860144688e-18
B200: 901 | C200: 9.424897566e-06 | D200: 1.093033344e-18
B201: 902 | C201: 7.756421067e-06 | D201: 4.126264875e-19
B214: =_xlfn.LET(_xlpm.low,C6-4*C38,_xlpm.high,C6+4*C38,_xlpm.r,_xlpm.high-_xlpm.low+1,_xlfn.SEQUENCE(_xlpm.r,,_xlpm.low)) -> 741.2
B215: 742.2
B216: 743.2
B217: 744.2
B218: 745.2
B219: 746.2
B220: 747.2
B221: 748.2
B222: 749.2
B223: 750.2
B224: 751.2
... 151 more rows

Sheet SDofXbar(2)
B2: Population Values | D2: Sample Size = n | F2: Value 1 | G2: Value 2 | H2: Value 3 | I2: Sample Mean Xbar (Random Variable Xbar) | K2: Lower | L2: Upper | M2: Group | N2: Frequency Population Distibution | O2: Frequency Sampling Distribution of Xbar
B3: 1 | D3: 3 | F3: 1 | G3: 1 | H3: 1 | I3: =AVERAGE(F3:H3) -> 1 | K3: =_xlfn.ANCHORARRAY(L3)-1 -> 0 | L3: =_xlfn.UNIQUE(B3:B30) -> 1 | M3: =_xlfn.ANCHORARRAY(K3)&"<= "&CHAR(10)&"Value <"&_xlfn.ANCHORARRAY(L3) -> 0<= Value <1 | N3: =COUNTIFS(B3:B30,">="&_xlfn.ANCHORARRAY(K3),B3:B30,"<"&_xlfn.ANCHORARRAY(L3)) -> 0 | O3: =COUNTIFS(I3:I3278,">="&_xlfn.ANCHORARRAY(K3),I3:I3278,"<"&_xlfn.ANCHORARRAY(L3)) -> 0 | Q3: Pop Stand. Dev. = Sigma = | R3: =_xlfn.STDEV.P(B3:B30) -> 1.732050808
B4: 1 | F4: 1 | G4: 1 | H4: 1 | I4: =AVERAGE(F4:H4) -> 1 | K4: 1 | L4: 2 | M4: 1<= Value <2 | N4: 7 | O4: 371 | Q4: Pop Mean = µ = | R4: =AVERAGE(B3:B30) -> 3
B5: 1 | D5: Pop Size = N | F5: 1 | G5: 1 | H5: 1 | I5: 1 | K5: 2 | L5: 3 | M5: 2<= Value <3 | N5: 6 | O5: 1118
B6: 1 | D6: =COUNT(B3:B30) -> 28 | F6: 1 | G6: 1 | H6: 1 | I6: 1 | K6: 3 | L6: 4 | M6: 3<= Value <4 | N6: 5 | O6: 1138 | Q6: µXbar = | R6: =AVERAGE(I3:I3278) -> 3
B7: 1 | F7: 1 | G7: 1 | H7: 1 | I7: 1 | K7: 4 | L7: 5 | M7: 4<= Value <5 | N7: 4 | O7: 533 | Q7: SigmaXbar = | R7: =_xlfn.STDEV.P(I3:I3278) -> 0.9622504486
B8: 1 | D8: Combinations | F8: 1 | G8: 1 | H8: 2 | I8: 1.333333333 | K8: 5 | L8: 6 | M8: 5<= Value <6 | N8: 3 | O8: 109 | Q8: n/N | R8: =D3/D6 -> 0.1071428571
B9: 1 | D9: =COMBIN(D6,D3) -> 3276 | F9: 1 | G9: 1 | H9: 2 | I9: 1.333333333 | K9: 6 | L9: 7 | M9: 6<= Value <7 | N9: 2 | O9: 7 | Q9: Standard Error = | R9: =R3/SQRT(D3)*SQRT((D6-D3)/(D6-1)) -> 0.9622504486
B10: 2 | F10: 1 | G10: 1 | H10: 2 | I10: 1.333333333 | M10: Total | N10: =SUM(_xlfn.ANCHORARRAY(N3)) -> 27 | O10: =SUM(_xlfn.ANCHORARRAY(O3)) -> 3276
B11: 2 | F11: 1 | G11: 1 | H11: 2 | I11: 1.333333333
B12: 2 | F12: 1 | G12: 1 | H12: 2 | I12: 1.333333333
B13: 2 | F13: 1 | G13: 1 | H13: 2 | I13: 1.333333333
B14: 2 | F14: 1 | G14: 1 | H14: 3 | I14: 1.666666667
B15: 2 | F15: 1 | G15: 1 | H15: 3 | I15: 1.666666667
B16: 3 | F16: 1 | G16: 1 | H16: 3 | I16: 1.666666667
B17: 3 | F17: 1 | G17: 1 | H17: 3 | I17: 1.666666667
B18: 3 | F18: 1 | G18: 1 | H18: 3 | I18: 1.666666667
B19: 3 | F19: 1 | G19: 1 | H19: 4 | I19: 2
B20: 3 | F20: 1 | G20: 1 | H20: 4 | I20: 2
B21: 4 | F21: 1 | G21: 1 | H21: 4 | I21: 2
B22: 4 | F22: 1 | G22: 1 | H22: 4 | I22: 2
B23: 4 | F23: 1 | G23: 1 | H23: 5 | I23: 2.333333333
B24: 4 | F24: 1 | G24: 1 | H24: 5 | I24: 2.333333333
B25: 5 | F25: 1 | G25: 1 | H25: 5 | I25: 2.333333333
B26: 5 | F26: 1 | G26: 1 | H26: 6 | I26: 2.666666667
B27: 5 | F27: 1 | G27: 1 | H27: 6 | I27: 2.666666667
B28: 6 | F28: 1 | G28: 1 | H28: 7 | I28: 3
B29: 6 | F29: 1 | G29: 1 | H29: 1 | I29: 1
B30: 7 | F30: 1 | G30: 1 | H30: 1 | I30: 1
F31: 1 | G31: 1 | H31: 1 | I31: 1
F32: 1 | G32: 1 | H32: 1 | I32: 1
F33: 1 | G33: 1 | H33: 2 | I33: 1.333333333
F34: 1 | G34: 1 | H34: 2 | I34: 1.333333333
F35: 1 | G35: 1 | H35: 2 | I35: 1.333333333
F36: 1 | G36: 1 | H36: 2 | I36: 1.333333333
F37: 1 | G37: 1 | H37: 2 | I37: 1.333333333
F38: 1 | G38: 1 | H38: 2 | I38: 1.333333333
F39: 1 | G39: 1 | H39: 3 | I39: 1.666666667
F40: 1 | G40: 1 | H40: 3 | I40: 1.666666667
F41: 1 | G41: 1 | H41: 3 | I41: 1.666666667
F42: 1 | G42: 1 | H42: 3 | I42: 1.666666667
F43: 1 | G43: 1 | H43: 3 | I43: 1.666666667
F44: 1 | G44: 1 | H44: 4 | I44: 2
F45: 1 | G45: 1 | H45: 4 | I45: 2
F46: 1 | G46: 1 | H46: 4 | I46: 2
F47: 1 | G47: 1 | H47: 4 | I47: 2
F48: 1 | G48: 1 | H48: 5 | I48: 2.333333333
F49: 1 | G49: 1 | H49: 5 | I49: 2.333333333
F50: 1 | G50: 1 | H50: 5 | I50: 2.333333333
F51: 1 | G51: 1 | H51: 6 | I51: 2.666666667
F52: 1 | G52: 1 | H52: 6 | I52: 2.666666667
F53: 1 | G53: 1 | H53: 7 | I53: 3
F54: 1 | G54: 1 | H54: 1 | I54: 1
F55: 1 | G55: 1 | H55: 1 | I55: 1
F56: 1 | G56: 1 | H56: 1 | I56: 1
F57: 1 | G57: 1 | H57: 2 | I57: 1.333333333
F58: 1 | G58: 1 | H58: 2 | I58: 1.333333333
F59: 1 | G59: 1 | H59: 2 | I59: 1.333333333
F60: 1 | G60: 1 | H60: 2 | I60: 1.333333333
F61: 1 | G61: 1 | H61: 2 | I61: 1.333333333
F62: 1 | G62: 1 | H62: 2 | I62: 1.333333333
F63: 1 | G63: 1 | H63: 3 | I63: 1.666666667
F64: 1 | G64: 1 | H64: 3 | I64: 1.666666667
F65: 1 | G65: 1 | H65: 3 | I65: 1.666666667
F66: 1 | G66: 1 | H66: 3 | I66: 1.666666667
F67: 1 | G67: 1 | H67: 3 | I67: 1.666666667
F68: 1 | G68: 1 | H68: 4 | I68: =AVERAGE(F68:H68) -> 2
F69: 1 | G69: 1 | H69: 4 | I69: 2
F70: 1 | G70: 1 | H70: 4 | I70: 2
F71: 1 | G71: 1 | H71: 4 | I71: 2
F72: 1 | G72: 1 | H72: 5 | I72: 2.333333333
F73: 1 | G73: 1 | H73: 5 | I73: 2.333333333
F74: 1 | G74: 1 | H74: 5 | I74: 2.333333333
F75: 1 | G75: 1 | H75: 6 | I75: 2.666666667
F76: 1 | G76: 1 | H76: 6 | I76: 2.666666667
F77: 1 | G77: 1 | H77: 7 | I77: 3
F78: 1 | G78: 1 | H78: 1 | I78: 1
F79: 1 | G79: 1 | H79: 1 | I79: 1
F80: 1 | G80: 1 | H80: 2 | I80: 1.333333333
F81: 1 | G81: 1 | H81: 2 | I81: 1.333333333
F82: 1 | G82: 1 | H82: 2 | I82: 1.333333333
F83: 1 | G83: 1 | H83: 2 | I83: 1.333333333
F84: 1 | G84: 1 | H84: 2 | I84: 1.333333333
F85: 1 | G85: 1 | H85: 2 | I85: 1.333333333
F86: 1 | G86: 1 | H86: 3 | I86: 1.666666667
F87: 1 | G87: 1 | H87: 3 | I87: 1.666666667
F88: 1 | G88: 1 | H88: 3 | I88: 1.666666667
F89: 1 | G89: 1 | H89: 3 | I89: 1.666666667
F90: 1 | G90: 1 | H90: 3 | I90: 1.666666667
F91: 1 | G91: 1 | H91: 4 | I91: 2
F92: 1 | G92: 1 | H92: 4 | I92: 2
F93: 1 | G93: 1 | H93: 4 | I93: 2
F94: 1 | G94: 1 | H94: 4 | I94: 2
F95: 1 | G95: 1 | H95: 5 | I95: 2.333333333
F96: 1 | G96: 1 | H96: 5 | I96: 2.333333333
F97: 1 | G97: 1 | H97: 5 | I97: 2.333333333
F98: 1 | G98: 1 | H98: 6 | I98: 2.666666667
F99: 1 | G99: 1 | H99: 6 | I99: 2.666666667
F100: 1 | G100: 1 | H100: 7 | I100: 3
F101: 1 | G101: 1 | H101: 1 | I101: 1
F102: 1 | G102: 1 | H102: 2 | I102: 1.333333333
F103: 1 | G103: 1 | H103: 2 | I103: 1.333333333
F104: 1 | G104: 1 | H104: 2 | I104: 1.333333333
F105: 1 | G105: 1 | H105: 2 | I105: 1.333333333
F106: 1 | G106: 1 | H106: 2 | I106: 1.333333333
F107: 1 | G107: 1 | H107: 2 | I107: 1.333333333
F108: 1 | G108: 1 | H108: 3 | I108: 1.666666667
F109: 1 | G109: 1 | H109: 3 | I109: 1.666666667
F110: 1 | G110: 1 | H110: 3 | I110: 1.666666667
F111: 1 | G111: 1 | H111: 3 | I111: 1.666666667
F112: 1 | G112: 1 | H112: 3 | I112: 1.666666667
F113: 1 | G113: 1 | H113: 4 | I113: 2
F114: 1 | G114: 1 | H114: 4 | I114: 2
F115: 1 | G115: 1 | H115: 4 | I115: 2
F116: 1 | G116: 1 | H116: 4 | I116: 2
F117: 1 | G117: 1 | H117: 5 | I117: 2.333333333
F118: 1 | G118: 1 | H118: 5 | I118: 2.333333333
F119: 1 | G119: 1 | H119: 5 | I119: 2.333333333
F120: 1 | G120: 1 | H120: 6 | I120: 2.666666667
F121: 1 | G121: 1 | H121: 6 | I121: 2.666666667
F122: 1 | G122: 1 | H122: 7 | I122: 3
F123: 1 | G123: 1 | H123: 2 | I123: 1.333333333
F124: 1 | G124: 1 | H124: 2 | I124: 1.333333333
F125: 1 | G125: 1 | H125: 2 | I125: 1.333333333
F126: 1 | G126: 1 | H126: 2 | I126: 1.333333333
F127: 1 | G127: 1 | H127: 2 | I127: 1.333333333
F128: 1 | G128: 1 | H128: 2 | I128: 1.333333333
F129: 1 | G129: 1 | H129: 3 | I129: 1.666666667
F130: 1 | G130: 1 | H130: 3 | I130: 1.666666667
F131: 1 | G131: 1 | H131: 3 | I131: 1.666666667
F132: 1 | G132: 1 | H132: 3 | I132: =AVERAGE(F132:H132) -> 1.666666667
F133: 1 | G133: 1 | H133: 3 | I133: 1.666666667
F134: 1 | G134: 1 | H134: 4 | I134: 2
F135: 1 | G135: 1 | H135: 4 | I135: 2
F136: 1 | G136: 1 | H136: 4 | I136: 2
F137: 1 | G137: 1 | H137: 4 | I137: 2
F138: 1 | G138: 1 | H138: 5 | I138: 2.333333333
F139: 1 | G139: 1 | H139: 5 | I139: 2.333333333
F140: 1 | G140: 1 | H140: 5 | I140: 2.333333333
F141: 1 | G141: 1 | H141: 6 | I141: 2.666666667
F142: 1 | G142: 1 | H142: 6 | I142: 2.666666667
F143: 1 | G143: 1 | H143: 7 | I143: 3
F144: 1 | G144: 2 | H144: 2 | I144: 1.666666667
F145: 1 | G145: 2 | H145: 2 | I145: 1.666666667
F146: 1 | G146: 2 | H146: 2 | I146: 1.666666667
F147: 1 | G147: 2 | H147: 2 | I147: 1.666666667
F148: 1 | G148: 2 | H148: 2 | I148: 1.666666667
F149: 1 | G149: 2 | H149: 3 | I149: 2
F150: 1 | G150: 2 | H150: 3 | I150: 2
F151: 1 | G151: 2 | H151: 3 | I151: 2
F152: 1 | G152: 2 | H152: 3 | I152: 2
F153: 1 | G153: 2 | H153: 3 | I153: 2
F154: 1 | G154: 2 | H154: 4 | I154: 2.333333333
F155: 1 | G155: 2 | H155: 4 | I155: 2.333333333
F156: 1 | G156: 2 | H156: 4 | I156: 2.333333333
F157: 1 | G157: 2 | H157: 4 | I157: 2.333333333
F158: 1 | G158: 2 | H158: 5 | I158: 2.666666667
F159: 1 | G159: 2 | H159: 5 | I159: 2.666666667
F160: 1 | G160: 2 | H160: 5 | I160: 2.666666667
F161: 1 | G161: 2 | H161: 6 | I161: 3
F162: 1 | G162: 2 | H162: 6 | I162: 3
F163: 1 | G163: 2 | H163: 7 | I163: 3.333333333
F164: 1 | G164: 2 | H164: 2 | I164: 1.666666667
F165: 1 | G165: 2 | H165: 2 | I165: 1.666666667
F166: 1 | G166: 2 | H166: 2 | I166: 1.666666667
F167: 1 | G167: 2 | H167: 2 | I167: 1.666666667
F168: 1 | G168: 2 | H168: 3 | I168: 2
F169: 1 | G169: 2 | H169: 3 | I169: 2
F170: 1 | G170: 2 | H170: 3 | I170: 2
F171: 1 | G171: 2 | H171: 3 | I171: 2
F172: 1 | G172: 2 | H172: 3 | I172: 2
F173: 1 | G173: 2 | H173: 4 | I173: 2.333333333
F174: 1 | G174: 2 | H174: 4 | I174: 2.333333333
F175: 1 | G175: 2 | H175: 4 | I175: 2.333333333
F176: 1 | G176: 2 | H176: 4 | I176: 2.333333333
F177: 1 | G177: 2 | H177: 5 | I177: 2.666666667
F178: 1 | G178: 2 | H178: 5 | I178: 2.666666667
F179: 1 | G179: 2 | H179: 5 | I179: 2.666666667
F180: 1 | G180: 2 | H180: 6 | I180: 3
F181: 1 | G181: 2 | H181: 6 | I181: 3
F182: 1 | G182: 2 | H182: 7 | I182: 3.333333333
F183: 1 | G183: 2 | H183: 2 | I183: 1.666666667
F184: 1 | G184: 2 | H184: 2 | I184: 1.666666667
F185: 1 | G185: 2 | H185: 2 | I185: 1.666666667
F186: 1 | G186: 2 | H186: 3 | I186: 2
F187: 1 | G187: 2 | H187: 3 | I187: 2
F188: 1 | G188: 2 | H188: 3 | I188: 2
F189: 1 | G189: 2 | H189: 3 | I189: 2
F190: 1 | G190: 2 | H190: 3 | I190: 2
F191: 1 | G191: 2 | H191: 4 | I191: 2.333333333
F192: 1 | G192: 2 | H192: 4 | I192: 2.333333333
F193: 1 | G193: 2 | H193: 4 | I193: 2.333333333
F194: 1 | G194: 2 | H194: 4 | I194: 2.333333333
F195: 1 | G195: 2 | H195: 5 | I195: 2.666666667
F196: 1 | G196: 2 | H196: 5 | I196: =AVERAGE(F196:H196) -> 2.666666667
F197: 1 | G197: 2 | H197: 5 | I197: 2.666666667
F198: 1 | G198: 2 | H198: 6 | I198: 3
F199: 1 | G199: 2 | H199: 6 | I199: 3
F200: 1 | G200: 2 | H200: 7 | I200: 3.333333333
F201: 1 | G201: 2 | H201: 2 | I201: 1.666666667
... 3077 more rows

Sheet SDofXbar(3)
B2: SalesRep | C2: Sales = x | E2: Sample Size = n | G2: Name 1 | H2: Name 2 | I2: Name 3 | J2: Name 4 | K2: Name 5 | L2: Sales 1 | M2: Sales 2 | N2: Sales 3 | O2: Sales 4 | P2: Sales 5 | Q2: Sample Mean Xbar (Random Variable x) | V2: Lower | W2: Upper | X2: Group | Y2: Frequency Population Distibution | Z2: Frequency Sampling Distribution of Xbar
B3: Ashleigh | C3: 83064 | E3: 5 | G3: Ashleigh | H3: Chauncey | I3: Chin | J3: Delila | K3: Elina | L3: =_xlfn.XLOOKUP(G3:K6190,B3:B19,C3:C19) -> 83064 | M3: 43040 | N3: 83768 | O3: 101112 | P3: 19868 | Q3: =_xlfn.BYROW(_xlfn.ANCHORARRAY(L3),_xlfn.LAMBDA(_xlpm.r,AVERAGE(_xlpm.r))) -> 66170.4 | S3: Low | T3: =_xlfn.FLOOR.MATH(MIN(C3:C19),T5) -> 10000 | V3: =_xlfn.SEQUENCE((T4-T3)/T5,,T3,T5) -> 10000 | W3: =_xlfn.ANCHORARRAY(V3)+T5 -> 20000 | X3: =_xlfn.ANCHORARRAY(V3)&"<= Value <"&_xlfn.ANCHORARRAY(W3) -> 10000<= Value <20000 | Y3: =COUNTIFS(C3:C19,">="&_xlfn.ANCHORARRAY(V3),C3:C19,"<"&_xlfn.ANCHORARRAY(W3)) -> 2 | Z3: =COUNTIFS(_xlfn.ANCHORARRAY(Q3),">="&_xlfn.ANCHORARRAY(V3),_xlfn.ANCHORARRAY(Q3),"<"&_xlfn.ANCHORARRAY(W3)) -> 0 | AB3: Pop Stand. Dev. = Sigma = | AC3: =_xlfn.STDEV.P(C3:C19) -> 31691.46403
B4: Chauncey | C4: 43040 | G4: Ashleigh | H4: Chauncey | I4: Chin | J4: Delila | K4: Garland | L4: 83064 | M4: 43040 | N4: 83768 | O4: 101112 | P4: 36021 | Q4: 69401 | S4: High | T4: =_xlfn.CEILING.MATH(MAX(C3:C19),T5) -> 120000 | V4: 20000 | W4: 30000 | X4: 20000<= Value <30000 | Y4: 0 | Z4: 8 | AB4: Pop Mean = µ = | AC4: =AVERAGE(C3:C19) -> 64706
B5: Chin | C5: 83768 | E5: Pop Size = N | G5: Ashleigh | H5: Chauncey | I5: Chin | J5: Delila | K5: Gigi | L5: 83064 | M5: 43040 | N5: 83768 | O5: 101112 | P5: 12030 | Q5: 64602.8 | S5: Increment | T5: 10000 | V5: 30000 | W5: 40000 | X5: 30000<= Value <40000 | Y5: 3 | Z5: 114
B6: Delila | C6: 101112 | E6: =COUNT(C3:C19) -> 17 | G6: Ashleigh | H6: Chauncey | I6: Chin | J6: Delila | K6: Gregoria | L6: 83064 | M6: 43040 | N6: 83768 | O6: 101112 | P6: 65219 | Q6: 75240.6 | V6: 40000 | W6: 50000 | X6: 40000<= Value <50000 | Y6: 2 | Z6: 627 | AB6: µXbar = | AC6: =AVERAGE(_xlfn.ANCHORARRAY(Q3)) -> 64706
B7: Elina | C7: 19868 | G7: Ashleigh | H7: Chauncey | I7: Chin | J7: Delila | K7: Kacey | L7: 83064 | M7: 43040 | N7: 83768 | O7: 101112 | P7: 94450 | Q7: 81086.8 | V7: 50000 | W7: 60000 | X7: 50000<= Value <60000 | Y7: 1 | Z7: 1479 | AB7: SigmaXbar = | AC7: =_xlfn.STDEV.P(_xlfn.ANCHORARRAY(Q3)) -> 12274.05124
B8: Garland | C8: 36021 | E8: Combinations | G8: Ashleigh | H8: Chauncey | I8: Chin | J8: Delila | K8: Kenia | L8: 83064 | M8: 43040 | N8: 83768 | O8: 101112 | P8: 97051 | Q8: 81607 | V8: 60000 | W8: 70000 | X8: 60000<= Value <70000 | Y8: 1 | Z8: 1853 | AB8: n/N | AC8: =E3/E6 -> 0.2941176471
B9: Gigi | C9: 12030 | E9: =COMBIN(E6,E3) -> 6188 | G9: Ashleigh | H9: Chauncey | I9: Chin | J9: Delila | K9: Kip | L9: 83064 | M9: 43040 | N9: 83768 | O9: 101112 | P9: 50249 | Q9: 72246.6 | V9: 70000 | W9: 80000 | X9: 70000<= Value <80000 | Y9: 0 | Z9: 1420 | AB9: Standard Error = | AC9: =AC3/SQRT(E3)*SQRT((E6-E3)/(E6-1)) -> 12274.05124
B10: Gregoria | C10: 65219 | G10: Ashleigh | H10: Chauncey | I10: Chin | J10: Delila | K10: Paige | L10: 83064 | M10: 43040 | N10: 83768 | O10: 101112 | P10: 117461 | Q10: 85689 | V10: 80000 | W10: 90000 | X10: 80000<= Value <90000 | Y10: 3 | Z10: 588
B11: Kacey | C11: 94450 | G11: Ashleigh | H11: Chauncey | I11: Chin | J11: Delila | K11: Pham | L11: 83064 | M11: 43040 | N11: 83768 | O11: 101112 | P11: 36016 | Q11: 69400 | V11: 90000 | W11: 100000 | X11: 90000<= Value <100000 | Y11: 2 | Z11: 96
B12: Kenia | C12: 97051 | G12: Ashleigh | H12: Chauncey | I12: Chin | J12: Delila | K12: Reuben | L12: 83064 | M12: 43040 | N12: 83768 | O12: 101112 | P12: 33332 | Q12: 68863.2 | V12: 100000 | W12: 110000 | X12: 100000<= Value <110000 | Y12: 2 | Z12: 3
B13: Kip | C13: 50249 | G13: Ashleigh | H13: Chauncey | I13: Chin | J13: Delila | K13: Roslyn | L13: 83064 | M13: 43040 | N13: 83768 | O13: 101112 | P13: 41696 | Q13: 70536 | V13: 110000 | W13: 120000 | X13: 110000<= Value <120000 | Y13: 1 | Z13: 0
B14: Paige | C14: 117461 | G14: Ashleigh | H14: Chauncey | I14: Chin | J14: Delila | K14: Sheladawn | L14: 83064 | M14: 43040 | N14: 83768 | O14: 101112 | P14: 84732 | Q14: 79143.2 | X14: Total | Y14: =SUM(_xlfn.ANCHORARRAY(Y3)) -> 17 | Z14: =SUM(_xlfn.ANCHORARRAY(Z3)) -> 6188
B15: Pham | C15: 36016 | G15: Ashleigh | H15: Chauncey | I15: Chin | J15: Delila | K15: Tyrone | L15: 83064 | M15: 43040 | N15: 83768 | O15: 101112 | P15: 100893 | Q15: 82375.4
B16: Reuben | C16: 33332 | G16: Ashleigh | H16: Chauncey | I16: Chin | J16: Elina | K16: Garland | L16: 83064 | M16: 43040 | N16: 83768 | O16: 19868 | P16: 36021 | Q16: 53152.2
B17: Roslyn | C17: 41696 | G17: Ashleigh | H17: Chauncey | I17: Chin | J17: Elina | K17: Gigi | L17: 83064 | M17: 43040 | N17: 83768 | O17: 19868 | P17: 12030 | Q17: 48354
B18: Sheladawn | C18: 84732 | G18: Ashleigh | H18: Chauncey | I18: Chin | J18: Elina | K18: Gregoria | L18: 83064 | M18: 43040 | N18: 83768 | O18: 19868 | P18: 65219 | Q18: 58991.8
B19: Tyrone | C19: 100893 | G19: Ashleigh | H19: Chauncey | I19: Chin | J19: Elina | K19: Kacey | L19: 83064 | M19: 43040 | N19: 83768 | O19: 19868 | P19: 94450 | Q19: 64838
G20: Ashleigh | H20: Chauncey | I20: Chin | J20: Elina | K20: Kenia | L20: 83064 | M20: 43040 | N20: 83768 | O20: 19868 | P20: 97051 | Q20: 65358.2
G21: Ashleigh | H21: Chauncey | I21: Chin | J21: Elina | K21: Kip | L21: 83064 | M21: 43040 | N21: 83768 | O21: 19868 | P21: 50249 | Q21: 55997.8
G22: Ashleigh | H22: Chauncey | I22: Chin | J22: Elina | K22: Paige | L22: 83064 | M22: 43040 | N22: 83768 | O22: 19868 | P22: 117461 | Q22: 69440.2
G23: Ashleigh | H23: Chauncey | I23: Chin | J23: Elina | K23: Pham | L23: 83064 | M23: 43040 | N23: 83768 | O23: 19868 | P23: 36016 | Q23: 53151.2
G24: Ashleigh | H24: Chauncey | I24: Chin | J24: Elina | K24: Reuben | L24: 83064 | M24: 43040 | N24: 83768 | O24: 19868 | P24: 33332 | Q24: 52614.4
G25: Ashleigh | H25: Chauncey | I25: Chin | J25: Elina | K25: Roslyn | L25: 83064 | M25: 43040 | N25: 83768 | O25: 19868 | P25: 41696 | Q25: 54287.2
G26: Ashleigh | H26: Chauncey | I26: Chin | J26: Elina | K26: Sheladawn | L26: 83064 | M26: 43040 | N26: 83768 | O26: 19868 | P26: 84732 | Q26: 62894.4
G27: Ashleigh | H27: Chauncey | I27: Chin | J27: Elina | K27: Tyrone | L27: 83064 | M27: 43040 | N27: 83768 | O27: 19868 | P27: 100893 | Q27: 66126.6
G28: Ashleigh | H28: Chauncey | I28: Chin | J28: Garland | K28: Gigi | L28: 83064 | M28: 43040 | N28: 83768 | O28: 36021 | P28: 12030 | Q28: 51584.6
G29: Ashleigh | H29: Chauncey | I29: Chin | J29: Garland | K29: Gregoria | L29: 83064 | M29: 43040 | N29: 83768 | O29: 36021 | P29: 65219 | Q29: 62222.4
G30: Ashleigh | H30: Chauncey | I30: Chin | J30: Garland | K30: Kacey | L30: 83064 | M30: 43040 | N30: 83768 | O30: 36021 | P30: 94450 | Q30: 68068.6
G31: Ashleigh | H31: Chauncey | I31: Chin | J31: Garland | K31: Kenia | L31: 83064 | M31: 43040 | N31: 83768 | O31: 36021 | P31: 97051 | Q31: 68588.8
G32: Ashleigh | H32: Chauncey | I32: Chin | J32: Garland | K32: Kip | L32: 83064 | M32: 43040 | N32: 83768 | O32: 36021 | P32: 50249 | Q32: 59228.4
G33: Ashleigh | H33: Chauncey | I33: Chin | J33: Garland | K33: Paige | L33: 83064 | M33: 43040 | N33: 83768 | O33: 36021 | P33: 117461 | Q33: 72670.8
G34: Ashleigh | H34: Chauncey | I34: Chin | J34: Garland | K34: Pham | L34: 83064 | M34: 43040 | N34: 83768 | O34: 36021 | P34: 36016 | Q34: 56381.8
G35: Ashleigh | H35: Chauncey | I35: Chin | J35: Garland | K35: Reuben | L35: 83064 | M35: 43040 | N35: 83768 | O35: 36021 | P35: 33332 | Q35: 55845
G36: Ashleigh | H36: Chauncey | I36: Chin | J36: Garland | K36: Roslyn | L36: 83064 | M36: 43040 | N36: 83768 | O36: 36021 | P36: 41696 | Q36: 57517.8
G37: Ashleigh | H37: Chauncey | I37: Chin | J37: Garland | K37: Sheladawn | L37: 83064 | M37: 43040 | N37: 83768 | O37: 36021 | P37: 84732 | Q37: 66125
G38: Ashleigh | H38: Chauncey | I38: Chin | J38: Garland | K38: Tyrone | L38: 83064 | M38: 43040 | N38: 83768 | O38: 36021 | P38: 100893 | Q38: 69357.2
G39: Ashleigh | H39: Chauncey | I39: Chin | J39: Gigi | K39: Gregoria | L39: 83064 | M39: 43040 | N39: 83768 | O39: 12030 | P39: 65219 | Q39: 57424.2
G40: Ashleigh | H40: Chauncey | I40: Chin | J40: Gigi | K40: Kacey | L40: 83064 | M40: 43040 | N40: 83768 | O40: 12030 | P40: 94450 | Q40: 63270.4
G41: Ashleigh | H41: Chauncey | I41: Chin | J41: Gigi | K41: Kenia | L41: 83064 | M41: 43040 | N41: 83768 | O41: 12030 | P41: 97051 | Q41: 63790.6
G42: Ashleigh | H42: Chauncey | I42: Chin | J42: Gigi | K42: Kip | L42: 83064 | M42: 43040 | N42: 83768 | O42: 12030 | P42: 50249 | Q42: 54430.2
G43: Ashleigh | H43: Chauncey | I43: Chin | J43: Gigi | K43: Paige | L43: 83064 | M43: 43040 | N43: 83768 | O43: 12030 | P43: 117461 | Q43: 67872.6
G44: Ashleigh | H44: Chauncey | I44: Chin | J44: Gigi | K44: Pham | L44: 83064 | M44: 43040 | N44: 83768 | O44: 12030 | P44: 36016 | Q44: 51583.6
G45: Ashleigh | H45: Chauncey | I45: Chin | J45: Gigi | K45: Reuben | L45: 83064 | M45: 43040 | N45: 83768 | O45: 12030 | P45: 33332 | Q45: 51046.8
G46: Ashleigh | H46: Chauncey | I46: Chin | J46: Gigi | K46: Roslyn | L46: 83064 | M46: 43040 | N46: 83768 | O46: 12030 | P46: 41696 | Q46: 52719.6
G47: Ashleigh | H47: Chauncey | I47: Chin | J47: Gigi | K47: Sheladawn | L47: 83064 | M47: 43040 | N47: 83768 | O47: 12030 | P47: 84732 | Q47: 61326.8
G48: Ashleigh | H48: Chauncey | I48: Chin | J48: Gigi | K48: Tyrone | L48: 83064 | M48: 43040 | N48: 83768 | O48: 12030 | P48: 100893 | Q48: 64559
G49: Ashleigh | H49: Chauncey | I49: Chin | J49: Gregoria | K49: Kacey | L49: 83064 | M49: 43040 | N49: 83768 | O49: 65219 | P49: 94450 | Q49: 73908.2
G50: Ashleigh | H50: Chauncey | I50: Chin | J50: Gregoria | K50: Kenia | L50: 83064 | M50: 43040 | N50: 83768 | O50: 65219 | P50: 97051 | Q50: 74428.4
G51: Ashleigh | H51: Chauncey | I51: Chin | J51: Gregoria | K51: Kip | L51: 83064 | M51: 43040 | N51: 83768 | O51: 65219 | P51: 50249 | Q51: 65068
G52: Ashleigh | H52: Chauncey | I52: Chin | J52: Gregoria | K52: Paige | L52: 83064 | M52: 43040 | N52: 83768 | O52: 65219 | P52: 117461 | Q52: 78510.4
G53: Ashleigh | H53: Chauncey | I53: Chin | J53: Gregoria | K53: Pham | L53: 83064 | M53: 43040 | N53: 83768 | O53: 65219 | P53: 36016 | Q53: 62221.4
G54: Ashleigh | H54: Chauncey | I54: Chin | J54: Gregoria | K54: Reuben | L54: 83064 | M54: 43040 | N54: 83768 | O54: 65219 | P54: 33332 | Q54: 61684.6
G55: Ashleigh | H55: Chauncey | I55: Chin | J55: Gregoria | K55: Roslyn | L55: 83064 | M55: 43040 | N55: 83768 | O55: 65219 | P55: 41696 | Q55: 63357.4
G56: Ashleigh | H56: Chauncey | I56: Chin | J56: Gregoria | K56: Sheladawn | L56: 83064 | M56: 43040 | N56: 83768 | O56: 65219 | P56: 84732 | Q56: 71964.6
G57: Ashleigh | H57: Chauncey | I57: Chin | J57: Gregoria | K57: Tyrone | L57: 83064 | M57: 43040 | N57: 83768 | O57: 65219 | P57: 100893 | Q57: 75196.8
G58: Ashleigh | H58: Chauncey | I58: Chin | J58: Kacey | K58: Kenia | L58: 83064 | M58: 43040 | N58: 83768 | O58: 94450 | P58: 97051 | Q58: 80274.6
G59: Ashleigh | H59: Chauncey | I59: Chin | J59: Kacey | K59: Kip | L59: 83064 | M59: 43040 | N59: 83768 | O59: 94450 | P59: 50249 | Q59: 70914.2
G60: Ashleigh | H60: Chauncey | I60: Chin | J60: Kacey | K60: Paige | L60: 83064 | M60: 43040 | N60: 83768 | O60: 94450 | P60: 117461 | Q60: 84356.6
G61: Ashleigh | H61: Chauncey | I61: Chin | J61: Kacey | K61: Pham | L61: 83064 | M61: 43040 | N61: 83768 | O61: 94450 | P61: 36016 | Q61: 68067.6
G62: Ashleigh | H62: Chauncey | I62: Chin | J62: Kacey | K62: Reuben | L62: 83064 | M62: 43040 | N62: 83768 | O62: 94450 | P62: 33332 | Q62: 67530.8
G63: Ashleigh | H63: Chauncey | I63: Chin | J63: Kacey | K63: Roslyn | L63: 83064 | M63: 43040 | N63: 83768 | O63: 94450 | P63: 41696 | Q63: 69203.6
G64: Ashleigh | H64: Chauncey | I64: Chin | J64: Kacey | K64: Sheladawn | L64: 83064 | M64: 43040 | N64: 83768 | O64: 94450 | P64: 84732 | Q64: 77810.8
G65: Ashleigh | H65: Chauncey | I65: Chin | J65: Kacey | K65: Tyrone | L65: 83064 | M65: 43040 | N65: 83768 | O65: 94450 | P65: 100893 | Q65: 81043
G66: Ashleigh | H66: Chauncey | I66: Chin | J66: Kenia | K66: Kip | L66: 83064 | M66: 43040 | N66: 83768 | O66: 97051 | P66: 50249 | Q66: 71434.4
G67: Ashleigh | H67: Chauncey | I67: Chin | J67: Kenia | K67: Paige | L67: 83064 | M67: 43040 | N67: 83768 | O67: 97051 | P67: 117461 | Q67: 84876.8
G68: Ashleigh | H68: Chauncey | I68: Chin | J68: Kenia | K68: Pham | L68: 83064 | M68: 43040 | N68: 83768 | O68: 97051 | P68: 36016 | Q68: 68587.8
G69: Ashleigh | H69: Chauncey | I69: Chin | J69: Kenia | K69: Reuben | L69: 83064 | M69: 43040 | N69: 83768 | O69: 97051 | P69: 33332 | Q69: 68051
G70: Ashleigh | H70: Chauncey | I70: Chin | J70: Kenia | K70: Roslyn | L70: 83064 | M70: 43040 | N70: 83768 | O70: 97051 | P70: 41696 | Q70: 69723.8
G71: Ashleigh | H71: Chauncey | I71: Chin | J71: Kenia | K71: Sheladawn | L71: 83064 | M71: 43040 | N71: 83768 | O71: 97051 | P71: 84732 | Q71: 78331
G72: Ashleigh | H72: Chauncey | I72: Chin | J72: Kenia | K72: Tyrone | L72: 83064 | M72: 43040 | N72: 83768 | O72: 97051 | P72: 100893 | Q72: 81563.2
G73: Ashleigh | H73: Chauncey | I73: Chin | J73: Kip | K73: Paige | L73: 83064 | M73: 43040 | N73: 83768 | O73: 50249 | P73: 117461 | Q73: 75516.4
G74: Ashleigh | H74: Chauncey | I74: Chin | J74: Kip | K74: Pham | L74: 83064 | M74: 43040 | N74: 83768 | O74: 50249 | P74: 36016 | Q74: 59227.4
G75: Ashleigh | H75: Chauncey | I75: Chin | J75: Kip | K75: Reuben | L75: 83064 | M75: 43040 | N75: 83768 | O75: 50249 | P75: 33332 | Q75: 58690.6
G76: Ashleigh | H76: Chauncey | I76: Chin | J76: Kip | K76: Roslyn | L76: 83064 | M76: 43040 | N76: 83768 | O76: 50249 | P76: 41696 | Q76: 60363.4
G77: Ashleigh | H77: Chauncey | I77: Chin | J77: Kip | K77: Sheladawn | L77: 83064 | M77: 43040 | N77: 83768 | O77: 50249 | P77: 84732 | Q77: 68970.6
G78: Ashleigh | H78: Chauncey | I78: Chin | J78: Kip | K78: Tyrone | L78: 83064 | M78: 43040 | N78: 83768 | O78: 50249 | P78: 100893 | Q78: 72202.8
G79: Ashleigh | H79: Chauncey | I79: Chin | J79: Paige | K79: Pham | L79: 83064 | M79: 43040 | N79: 83768 | O79: 117461 | P79: 36016 | Q79: 72669.8
G80: Ashleigh | H80: Chauncey | I80: Chin | J80: Paige | K80: Reuben | L80: 83064 | M80: 43040 | N80: 83768 | O80: 117461 | P80: 33332 | Q80: 72133
G81: Ashleigh | H81: Chauncey | I81: Chin | J81: Paige | K81: Roslyn | L81: 83064 | M81: 43040 | N81: 83768 | O81: 117461 | P81: 41696 | Q81: 73805.8
G82: Ashleigh | H82: Chauncey | I82: Chin | J82: Paige | K82: Sheladawn | L82: 83064 | M82: 43040 | N82: 83768 | O82: 117461 | P82: 84732 | Q82: 82413
G83: Ashleigh | H83: Chauncey | I83: Chin | J83: Paige | K83: Tyrone | L83: 83064 | M83: 43040 | N83: 83768 | O83: 117461 | P83: 100893 | Q83: 85645.2
G84: Ashleigh | H84: Chauncey | I84: Chin | J84: Pham | K84: Reuben | L84: 83064 | M84: 43040 | N84: 83768 | O84: 36016 | P84: 33332 | Q84: 55844
G85: Ashleigh | H85: Chauncey | I85: Chin | J85: Pham | K85: Roslyn | L85: 83064 | M85: 43040 | N85: 83768 | O85: 36016 | P85: 41696 | Q85: 57516.8
G86: Ashleigh | H86: Chauncey | I86: Chin | J86: Pham | K86: Sheladawn | L86: 83064 | M86: 43040 | N86: 83768 | O86: 36016 | P86: 84732 | Q86: 66124
G87: Ashleigh | H87: Chauncey | I87: Chin | J87: Pham | K87: Tyrone | L87: 83064 | M87: 43040 | N87: 83768 | O87: 36016 | P87: 100893 | Q87: 69356.2
G88: Ashleigh | H88: Chauncey | I88: Chin | J88: Reuben | K88: Roslyn | L88: 83064 | M88: 43040 | N88: 83768 | O88: 33332 | P88: 41696 | Q88: 56980
G89: Ashleigh | H89: Chauncey | I89: Chin | J89: Reuben | K89: Sheladawn | L89: 83064 | M89: 43040 | N89: 83768 | O89: 33332 | P89: 84732 | Q89: 65587.2
G90: Ashleigh | H90: Chauncey | I90: Chin | J90: Reuben | K90: Tyrone | L90: 83064 | M90: 43040 | N90: 83768 | O90: 33332 | P90: 100893 | Q90: 68819.4
G91: Ashleigh | H91: Chauncey | I91: Chin | J91: Roslyn | K91: Sheladawn | L91: 83064 | M91: 43040 | N91: 83768 | O91: 41696 | P91: 84732 | Q91: 67260
G92: Ashleigh | H92: Chauncey | I92: Chin | J92: Roslyn | K92: Tyrone | L92: 83064 | M92: 43040 | N92: 83768 | O92: 41696 | P92: 100893 | Q92: 70492.2
G93: Ashleigh | H93: Chauncey | I93: Chin | J93: Sheladawn | K93: Tyrone | L93: 83064 | M93: 43040 | N93: 83768 | O93: 84732 | P93: 100893 | Q93: 79099.4
G94: Ashleigh | H94: Chauncey | I94: Delila | J94: Elina | K94: Garland | L94: 83064 | M94: 43040 | N94: 101112 | O94: 19868 | P94: 36021 | Q94: 56621
G95: Ashleigh | H95: Chauncey | I95: Delila | J95: Elina | K95: Gigi | L95: 83064 | M95: 43040 | N95: 101112 | O95: 19868 | P95: 12030 | Q95: 51822.8
G96: Ashleigh | H96: Chauncey | I96: Delila | J96: Elina | K96: Gregoria | L96: 83064 | M96: 43040 | N96: 101112 | O96: 19868 | P96: 65219 | Q96: 62460.6
G97: Ashleigh | H97: Chauncey | I97: Delila | J97: Elina | K97: Kacey | L97: 83064 | M97: 43040 | N97: 101112 | O97: 19868 | P97: 94450 | Q97: 68306.8
G98: Ashleigh | H98: Chauncey | I98: Delila | J98: Elina | K98: Kenia | L98: 83064 | M98: 43040 | N98: 101112 | O98: 19868 | P98: 97051 | Q98: 68827
G99: Ashleigh | H99: Chauncey | I99: Delila | J99: Elina | K99: Kip | L99: 83064 | M99: 43040 | N99: 101112 | O99: 19868 | P99: 50249 | Q99: 59466.6
G100: Ashleigh | H100: Chauncey | I100: Delila | J100: Elina | K100: Paige | L100: 83064 | M100: 43040 | N100: 101112 | O100: 19868 | P100: 117461 | Q100: 72909
G101: Ashleigh | H101: Chauncey | I101: Delila | J101: Elina | K101: Pham | L101: 83064 | M101: 43040 | N101: 101112 | O101: 19868 | P101: 36016 | Q101: 56620
G102: Ashleigh | H102: Chauncey | I102: Delila | J102: Elina | K102: Reuben | L102: 83064 | M102: 43040 | N102: 101112 | O102: 19868 | P102: 33332 | Q102: 56083.2
G103: Ashleigh | H103: Chauncey | I103: Delila | J103: Elina | K103: Roslyn | L103: 83064 | M103: 43040 | N103: 101112 | O103: 19868 | P103: 41696 | Q103: 57756
G104: Ashleigh | H104: Chauncey | I104: Delila | J104: Elina | K104: Sheladawn | L104: 83064 | M104: 43040 | N104: 101112 | O104: 19868 | P104: 84732 | Q104: 66363.2
G105: Ashleigh | H105: Chauncey | I105: Delila | J105: Elina | K105: Tyrone | L105: 83064 | M105: 43040 | N105: 101112 | O105: 19868 | P105: 100893 | Q105: 69595.4
G106: Ashleigh | H106: Chauncey | I106: Delila | J106: Garland | K106: Gigi | L106: 83064 | M106: 43040 | N106: 101112 | O106: 36021 | P106: 12030 | Q106: 55053.4
G107: Ashleigh | H107: Chauncey | I107: Delila | J107: Garland | K107: Gregoria | L107: 83064 | M107: 43040 | N107: 101112 | O107: 36021 | P107: 65219 | Q107: 65691.2
G108: Ashleigh | H108: Chauncey | I108: Delila | J108: Garland | K108: Kacey | L108: 83064 | M108: 43040 | N108: 101112 | O108: 36021 | P108: 94450 | Q108: 71537.4
G109: Ashleigh | H109: Chauncey | I109: Delila | J109: Garland | K109: Kenia | L109: 83064 | M109: 43040 | N109: 101112 | O109: 36021 | P109: 97051 | Q109: 72057.6
G110: Ashleigh | H110: Chauncey | I110: Delila | J110: Garland | K110: Kip | L110: 83064 | M110: 43040 | N110: 101112 | O110: 36021 | P110: 50249 | Q110: 62697.2
G111: Ashleigh | H111: Chauncey | I111: Delila | J111: Garland | K111: Paige | L111: 83064 | M111: 43040 | N111: 101112 | O111: 36021 | P111: 117461 | Q111: 76139.6
G112: Ashleigh | H112: Chauncey | I112: Delila | J112: Garland | K112: Pham | L112: 83064 | M112: 43040 | N112: 101112 | O112: 36021 | P112: 36016 | Q112: 59850.6
G113: Ashleigh | H113: Chauncey | I113: Delila | J113: Garland | K113: Reuben | L113: 83064 | M113: 43040 | N113: 101112 | O113: 36021 | P113: 33332 | Q113: 59313.8
G114: Ashleigh | H114: Chauncey | I114: Delila | J114: Garland | K114: Roslyn | L114: 83064 | M114: 43040 | N114: 101112 | O114: 36021 | P114: 41696 | Q114: 60986.6
G115: Ashleigh | H115: Chauncey | I115: Delila | J115: Garland | K115: Sheladawn | L115: 83064 | M115: 43040 | N115: 101112 | O115: 36021 | P115: 84732 | Q115: 69593.8
G116: Ashleigh | H116: Chauncey | I116: Delila | J116: Garland | K116: Tyrone | L116: 83064 | M116: 43040 | N116: 101112 | O116: 36021 | P116: 100893 | Q116: 72826
G117: Ashleigh | H117: Chauncey | I117: Delila | J117: Gigi | K117: Gregoria | L117: 83064 | M117: 43040 | N117: 101112 | O117: 12030 | P117: 65219 | Q117: 60893
G118: Ashleigh | H118: Chauncey | I118: Delila | J118: Gigi | K118: Kacey | L118: 83064 | M118: 43040 | N118: 101112 | O118: 12030 | P118: 94450 | Q118: 66739.2
G119: Ashleigh | H119: Chauncey | I119: Delila | J119: Gigi | K119: Kenia | L119: 83064 | M119: 43040 | N119: 101112 | O119: 12030 | P119: 97051 | Q119: 67259.4
G120: Ashleigh | H120: Chauncey | I120: Delila | J120: Gigi | K120: Kip | L120: 83064 | M120: 43040 | N120: 101112 | O120: 12030 | P120: 50249 | Q120: 57899
G121: Ashleigh | H121: Chauncey | I121: Delila | J121: Gigi | K121: Paige | L121: 83064 | M121: 43040 | N121: 101112 | O121: 12030 | P121: 117461 | Q121: 71341.4
G122: Ashleigh | H122: Chauncey | I122: Delila | J122: Gigi | K122: Pham | L122: 83064 | M122: 43040 | N122: 101112 | O122: 12030 | P122: 36016 | Q122: 55052.4
G123: Ashleigh | H123: Chauncey | I123: Delila | J123: Gigi | K123: Reuben | L123: 83064 | M123: 43040 | N123: 101112 | O123: 12030 | P123: 33332 | Q123: 54515.6
G124: Ashleigh | H124: Chauncey | I124: Delila | J124: Gigi | K124: Roslyn | L124: 83064 | M124: 43040 | N124: 101112 | O124: 12030 | P124: 41696 | Q124: 56188.4
G125: Ashleigh | H125: Chauncey | I125: Delila | J125: Gigi | K125: Sheladawn | L125: 83064 | M125: 43040 | N125: 101112 | O125: 12030 | P125: 84732 | Q125: 64795.6
G126: Ashleigh | H126: Chauncey | I126: Delila | J126: Gigi | K126: Tyrone | L126: 83064 | M126: 43040 | N126: 101112 | O126: 12030 | P126: 100893 | Q126: 68027.8
G127: Ashleigh | H127: Chauncey | I127: Delila | J127: Gregoria | K127: Kacey | L127: 83064 | M127: 43040 | N127: 101112 | O127: 65219 | P127: 94450 | Q127: 77377
G128: Ashleigh | H128: Chauncey | I128: Delila | J128: Gregoria | K128: Kenia | L128: 83064 | M128: 43040 | N128: 101112 | O128: 65219 | P128: 97051 | Q128: 77897.2
G129: Ashleigh | H129: Chauncey | I129: Delila | J129: Gregoria | K129: Kip | L129: 83064 | M129: 43040 | N129: 101112 | O129: 65219 | P129: 50249 | Q129: 68536.8
G130: Ashleigh | H130: Chauncey | I130: Delila | J130: Gregoria | K130: Paige | L130: 83064 | M130: 43040 | N130: 101112 | O130: 65219 | P130: 117461 | Q130: 81979.2
G131: Ashleigh | H131: Chauncey | I131: Delila | J131: Gregoria | K131: Pham | L131: 83064 | M131: 43040 | N131: 101112 | O131: 65219 | P131: 36016 | Q131: 65690.2
G132: Ashleigh | H132: Chauncey | I132: Delila | J132: Gregoria | K132: Reuben | L132: 83064 | M132: 43040 | N132: 101112 | O132: 65219 | P132: 33332 | Q132: 65153.4
G133: Ashleigh | H133: Chauncey | I133: Delila | J133: Gregoria | K133: Roslyn | L133: 83064 | M133: 43040 | N133: 101112 | O133: 65219 | P133: 41696 | Q133: 66826.2
G134: Ashleigh | H134: Chauncey | I134: Delila | J134: Gregoria | K134: Sheladawn | L134: 83064 | M134: 43040 | N134: 101112 | O134: 65219 | P134: 84732 | Q134: 75433.4
G135: Ashleigh | H135: Chauncey | I135: Delila | J135: Gregoria | K135: Tyrone | L135: 83064 | M135: 43040 | N135: 101112 | O135: 65219 | P135: 100893 | Q135: 78665.6
G136: Ashleigh | H136: Chauncey | I136: Delila | J136: Kacey | K136: Kenia | L136: 83064 | M136: 43040 | N136: 101112 | O136: 94450 | P136: 97051 | Q136: 83743.4
G137: Ashleigh | H137: Chauncey | I137: Delila | J137: Kacey | K137: Kip | L137: 83064 | M137: 43040 | N137: 101112 | O137: 94450 | P137: 50249 | Q137: 74383
G138: Ashleigh | H138: Chauncey | I138: Delila | J138: Kacey | K138: Paige | L138: 83064 | M138: 43040 | N138: 101112 | O138: 94450 | P138: 117461 | Q138: 87825.4
G139: Ashleigh | H139: Chauncey | I139: Delila | J139: Kacey | K139: Pham | L139: 83064 | M139: 43040 | N139: 101112 | O139: 94450 | P139: 36016 | Q139: 71536.4
G140: Ashleigh | H140: Chauncey | I140: Delila | J140: Kacey | K140: Reuben | L140: 83064 | M140: 43040 | N140: 101112 | O140: 94450 | P140: 33332 | Q140: 70999.6
G141: Ashleigh | H141: Chauncey | I141: Delila | J141: Kacey | K141: Roslyn | L141: 83064 | M141: 43040 | N141: 101112 | O141: 94450 | P141: 41696 | Q141: 72672.4
G142: Ashleigh | H142: Chauncey | I142: Delila | J142: Kacey | K142: Sheladawn | L142: 83064 | M142: 43040 | N142: 101112 | O142: 94450 | P142: 84732 | Q142: 81279.6
G143: Ashleigh | H143: Chauncey | I143: Delila | J143: Kacey | K143: Tyrone | L143: 83064 | M143: 43040 | N143: 101112 | O143: 94450 | P143: 100893 | Q143: 84511.8
G144: Ashleigh | H144: Chauncey | I144: Delila | J144: Kenia | K144: Kip | L144: 83064 | M144: 43040 | N144: 101112 | O144: 97051 | P144: 50249 | Q144: 74903.2
G145: Ashleigh | H145: Chauncey | I145: Delila | J145: Kenia | K145: Paige | L145: 83064 | M145: 43040 | N145: 101112 | O145: 97051 | P145: 117461 | Q145: 88345.6
G146: Ashleigh | H146: Chauncey | I146: Delila | J146: Kenia | K146: Pham | L146: 83064 | M146: 43040 | N146: 101112 | O146: 97051 | P146: 36016 | Q146: 72056.6
G147: Ashleigh | H147: Chauncey | I147: Delila | J147: Kenia | K147: Reuben | L147: 83064 | M147: 43040 | N147: 101112 | O147: 97051 | P147: 33332 | Q147: 71519.8
G148: Ashleigh | H148: Chauncey | I148: Delila | J148: Kenia | K148: Roslyn | L148: 83064 | M148: 43040 | N148: 101112 | O148: 97051 | P148: 41696 | Q148: 73192.6
G149: Ashleigh | H149: Chauncey | I149: Delila | J149: Kenia | K149: Sheladawn | L149: 83064 | M149: 43040 | N149: 101112 | O149: 97051 | P149: 84732 | Q149: 81799.8
G150: Ashleigh | H150: Chauncey | I150: Delila | J150: Kenia | K150: Tyrone | L150: 83064 | M150: 43040 | N150: 101112 | O150: 97051 | P150: 100893 | Q150: 85032
G151: Ashleigh | H151: Chauncey | I151: Delila | J151: Kip | K151: Paige | L151: 83064 | M151: 43040 | N151: 101112 | O151: 50249 | P151: 117461 | Q151: 78985.2
G152: Ashleigh | H152: Chauncey | I152: Delila | J152: Kip | K152: Pham | L152: 83064 | M152: 43040 | N152: 101112 | O152: 50249 | P152: 36016 | Q152: 62696.2
G153: Ashleigh | H153: Chauncey | I153: Delila | J153: Kip | K153: Reuben | L153: 83064 | M153: 43040 | N153: 101112 | O153: 50249 | P153: 33332 | Q153: 62159.4
G154: Ashleigh | H154: Chauncey | I154: Delila | J154: Kip | K154: Roslyn | L154: 83064 | M154: 43040 | N154: 101112 | O154: 50249 | P154: 41696 | Q154: 63832.2
G155: Ashleigh | H155: Chauncey | I155: Delila | J155: Kip | K155: Sheladawn | L155: 83064 | M155: 43040 | N155: 101112 | O155: 50249 | P155: 84732 | Q155: 72439.4
G156: Ashleigh | H156: Chauncey | I156: Delila | J156: Kip | K156: Tyrone | L156: 83064 | M156: 43040 | N156: 101112 | O156: 50249 | P156: 100893 | Q156: 75671.6
G157: Ashleigh | H157: Chauncey | I157: Delila | J157: Paige | K157: Pham | L157: 83064 | M157: 43040 | N157: 101112 | O157: 117461 | P157: 36016 | Q157: 76138.6
G158: Ashleigh | H158: Chauncey | I158: Delila | J158: Paige | K158: Reuben | L158: 83064 | M158: 43040 | N158: 101112 | O158: 117461 | P158: 33332 | Q158: 75601.8
G159: Ashleigh | H159: Chauncey | I159: Delila | J159: Paige | K159: Roslyn | L159: 83064 | M159: 43040 | N159: 101112 | O159: 117461 | P159: 41696 | Q159: 77274.6
G160: Ashleigh | H160: Chauncey | I160: Delila | J160: Paige | K160: Sheladawn | L160: 83064 | M160: 43040 | N160: 101112 | O160: 117461 | P160: 84732 | Q160: 85881.8
G161: Ashleigh | H161: Chauncey | I161: Delila | J161: Paige | K161: Tyrone | L161: 83064 | M161: 43040 | N161: 101112 | O161: 117461 | P161: 100893 | Q161: 89114
G162: Ashleigh | H162: Chauncey | I162: Delila | J162: Pham | K162: Reuben | L162: 83064 | M162: 43040 | N162: 101112 | O162: 36016 | P162: 33332 | Q162: 59312.8
G163: Ashleigh | H163: Chauncey | I163: Delila | J163: Pham | K163: Roslyn | L163: 83064 | M163: 43040 | N163: 101112 | O163: 36016 | P163: 41696 | Q163: 60985.6
G164: Ashleigh | H164: Chauncey | I164: Delila | J164: Pham | K164: Sheladawn | L164: 83064 | M164: 43040 | N164: 101112 | O164: 36016 | P164: 84732 | Q164: 69592.8
G165: Ashleigh | H165: Chauncey | I165: Delila | J165: Pham | K165: Tyrone | L165: 83064 | M165: 43040 | N165: 101112 | O165: 36016 | P165: 100893 | Q165: 72825
G166: Ashleigh | H166: Chauncey | I166: Delila | J166: Reuben | K166: Roslyn | L166: 83064 | M166: 43040 | N166: 101112 | O166: 33332 | P166: 41696 | Q166: 60448.8
G167: Ashleigh | H167: Chauncey | I167: Delila | J167: Reuben | K167: Sheladawn | L167: 83064 | M167: 43040 | N167: 101112 | O167: 33332 | P167: 84732 | Q167: 69056
G168: Ashleigh | H168: Chauncey | I168: Delila | J168: Reuben | K168: Tyrone | L168: 83064 | M168: 43040 | N168: 101112 | O168: 33332 | P168: 100893 | Q168: 72288.2
G169: Ashleigh | H169: Chauncey | I169: Delila | J169: Roslyn | K169: Sheladawn | L169: 83064 | M169: 43040 | N169: 101112 | O169: 41696 | P169: 84732 | Q169: 70728.8
G170: Ashleigh | H170: Chauncey | I170: Delila | J170: Roslyn | K170: Tyrone | L170: 83064 | M170: 43040 | N170: 101112 | O170: 41696 | P170: 100893 | Q170: 73961
G171: Ashleigh | H171: Chauncey | I171: Delila | J171: Sheladawn | K171: Tyrone | L171: 83064 | M171: 43040 | N171: 101112 | O171: 84732 | P171: 100893 | Q171: 82568.2
G172: Ashleigh | H172: Chauncey | I172: Elina | J172: Garland | K172: Gigi | L172: 83064 | M172: 43040 | N172: 19868 | O172: 36021 | P172: 12030 | Q172: 38804.6
G173: Ashleigh | H173: Chauncey | I173: Elina | J173: Garland | K173: Gregoria | L173: 83064 | M173: 43040 | N173: 19868 | O173: 36021 | P173: 65219 | Q173: 49442.4
G174: Ashleigh | H174: Chauncey | I174: Elina | J174: Garland | K174: Kacey | L174: 83064 | M174: 43040 | N174: 19868 | O174: 36021 | P174: 94450 | Q174: 55288.6
G175: Ashleigh | H175: Chauncey | I175: Elina | J175: Garland | K175: Kenia | L175: 83064 | M175: 43040 | N175: 19868 | O175: 36021 | P175: 97051 | Q175: 55808.8
G176: Ashleigh | H176: Chauncey | I176: Elina | J176: Garland | K176: Kip | L176: 83064 | M176: 43040 | N176: 19868 | O176: 36021 | P176: 50249 | Q176: 46448.4
G177: Ashleigh | H177: Chauncey | I177: Elina | J177: Garland | K177: Paige | L177: 83064 | M177: 43040 | N177: 19868 | O177: 36021 | P177: 117461 | Q177: 59890.8
G178: Ashleigh | H178: Chauncey | I178: Elina | J178: Garland | K178: Pham | L178: 83064 | M178: 43040 | N178: 19868 | O178: 36021 | P178: 36016 | Q178: 43601.8
G179: Ashleigh | H179: Chauncey | I179: Elina | J179: Garland | K179: Reuben | L179: 83064 | M179: 43040 | N179: 19868 | O179: 36021 | P179: 33332 | Q179: 43065
G180: Ashleigh | H180: Chauncey | I180: Elina | J180: Garland | K180: Roslyn | L180: 83064 | M180: 43040 | N180: 19868 | O180: 36021 | P180: 41696 | Q180: 44737.8
G181: Ashleigh | H181: Chauncey | I181: Elina | J181: Garland | K181: Sheladawn | L181: 83064 | M181: 43040 | N181: 19868 | O181: 36021 | P181: 84732 | Q181: 53345
G182: Ashleigh | H182: Chauncey | I182: Elina | J182: Garland | K182: Tyrone | L182: 83064 | M182: 43040 | N182: 19868 | O182: 36021 | P182: 100893 | Q182: 56577.2
G183: Ashleigh | H183: Chauncey | I183: Elina | J183: Gigi | K183: Gregoria | L183: 83064 | M183: 43040 | N183: 19868 | O183: 12030 | P183: 65219 | Q183: 44644.2
G184: Ashleigh | H184: Chauncey | I184: Elina | J184: Gigi | K184: Kacey | L184: 83064 | M184: 43040 | N184: 19868 | O184: 12030 | P184: 94450 | Q184: 50490.4
G185: Ashleigh | H185: Chauncey | I185: Elina | J185: Gigi | K185: Kenia | L185: 83064 | M185: 43040 | N185: 19868 | O185: 12030 | P185: 97051 | Q185: 51010.6
G186: Ashleigh | H186: Chauncey | I186: Elina | J186: Gigi | K186: Kip | L186: 83064 | M186: 43040 | N186: 19868 | O186: 12030 | P186: 50249 | Q186: 41650.2
G187: Ashleigh | H187: Chauncey | I187: Elina | J187: Gigi | K187: Paige | L187: 83064 | M187: 43040 | N187: 19868 | O187: 12030 | P187: 117461 | Q187: 55092.6
G188: Ashleigh | H188: Chauncey | I188: Elina | J188: Gigi | K188: Pham | L188: 83064 | M188: 43040 | N188: 19868 | O188: 12030 | P188: 36016 | Q188: 38803.6
G189: Ashleigh | H189: Chauncey | I189: Elina | J189: Gigi | K189: Reuben | L189: 83064 | M189: 43040 | N189: 19868 | O189: 12030 | P189: 33332 | Q189: 38266.8
G190: Ashleigh | H190: Chauncey | I190: Elina | J190: Gigi | K190: Roslyn | L190: 83064 | M190: 43040 | N190: 19868 | O190: 12030 | P190: 41696 | Q190: 39939.6
G191: Ashleigh | H191: Chauncey | I191: Elina | J191: Gigi | K191: Sheladawn | L191: 83064 | M191: 43040 | N191: 19868 | O191: 12030 | P191: 84732 | Q191: 48546.8
G192: Ashleigh | H192: Chauncey | I192: Elina | J192: Gigi | K192: Tyrone | L192: 83064 | M192: 43040 | N192: 19868 | O192: 12030 | P192: 100893 | Q192: 51779
G193: Ashleigh | H193: Chauncey | I193: Elina | J193: Gregoria | K193: Kacey | L193: 83064 | M193: 43040 | N193: 19868 | O193: 65219 | P193: 94450 | Q193: 61128.2
G194: Ashleigh | H194: Chauncey | I194: Elina | J194: Gregoria | K194: Kenia | L194: 83064 | M194: 43040 | N194: 19868 | O194: 65219 | P194: 97051 | Q194: 61648.4
G195: Ashleigh | H195: Chauncey | I195: Elina | J195: Gregoria | K195: Kip | L195: 83064 | M195: 43040 | N195: 19868 | O195: 65219 | P195: 50249 | Q195: 52288
G196: Ashleigh | H196: Chauncey | I196: Elina | J196: Gregoria | K196: Paige | L196: 83064 | M196: 43040 | N196: 19868 | O196: 65219 | P196: 117461 | Q196: 65730.4
G197: Ashleigh | H197: Chauncey | I197: Elina | J197: Gregoria | K197: Pham | L197: 83064 | M197: 43040 | N197: 19868 | O197: 65219 | P197: 36016 | Q197: 49441.4
G198: Ashleigh | H198: Chauncey | I198: Elina | J198: Gregoria | K198: Reuben | L198: 83064 | M198: 43040 | N198: 19868 | O198: 65219 | P198: 33332 | Q198: 48904.6
G199: Ashleigh | H199: Chauncey | I199: Elina | J199: Gregoria | K199: Roslyn | L199: 83064 | M199: 43040 | N199: 19868 | O199: 65219 | P199: 41696 | Q199: 50577.4
G200: Ashleigh | H200: Chauncey | I200: Elina | J200: Gregoria | K200: Sheladawn | L200: 83064 | M200: 43040 | N200: 19868 | O200: 65219 | P200: 84732 | Q200: 59184.6
G201: Ashleigh | H201: Chauncey | I201: Elina | J201: Gregoria | K201: Tyrone | L201: 83064 | M201: 43040 | N201: 19868 | O201: 65219 | P201: 100893 | Q201: 62416.8
... 4299 more rows

Sheet SDofXbar(4)

Sheet UseSDofXbar
S1: 838
B2: Mu = population mean = μ | S2: 1074
B3: Sigma = population standard deviation = s | S3: 824
B4: Standard Error = Standard Deviation for the Sampling distribution of Xbar = SE | S4: 1074
B5: Hypothesized Value of Population Mean = μ0 = Assumed Value of Population Mean used for testing procedure | S5: 601
B6: sample size = n | S6: 824
B7: Sample Mean = Xbar | S7: 873
B8: Sample Standard Deviation (for when sigma not known) = s | S8: 1074
B9: Alpha = a = Risk of rejecting (Original Statement) H0 when it is actually true = Type 1 Error | S9: 673
B10: Test Statistic = Used to determine whether to reject H0 and accept Ha = Number of SE above or below hypothesized mean | S10: 678
B11: Use z test statistic if Sigma known or can be estimated, or you are significance Testing a Proportion and all 4 binomial tests have been met | S11: 722
B12: Use t test statistic if Sigma NOT known or can be estimated | S12: 722
B14: How to use Sampling Distribution of Xbar to help make business decisions:
A16: 1 | B16: If Population Mean is known, and we want to test to see if a claim is reasonable, we can use Hypothesis Testing (H.T.), or, Confidence Internals (C.I.)
A17: 2 | B17: If Population Mean is NOT known, and we to estimate what a reasonable range of values is for the population mean, we can use Confidence Intervals
B19: For Hypothesis Testing, or, Confidence Internals we can use:
A21: 1 | B21: z distribution when population standard deviation is known as a model that represents the Sampling Distribution of Xbar
A22: 2 | B22: t distribution when population standard deviation is NOT known as a model that represents the Sampling Distribution of Xbar
B24: An insurance company claims that the average cost per year for a policy is $822. | I24: Same, but we don't know pop standard deviation, so we use t distribution
B25: The standard deviation for the population is $202.
B26: If you take a random sample and get a sample mean (Xbar) of $850 (n = 300), is the original claim reasonable? | S26: Sample
I27: Pop Mean = mu = μ | J27: 822 | S27: 716
B28: Pop Mean = Mu = μ | C28: 822 | I28: Pop Standard Dev. (Sigma) = σ | J28: ? | S28: 926
B29: Pop Standard Dev. (Sigma) = σ | C29: 202 | I29: Sample Standard Dev. = s | J29: =_xlfn.STDEV.S(S27:S314) -> 168.7466281 | L29: =_xlfn.IFNA(_xlfn.FORMULATEXT(J29),"") -> =STDEV.S(S27:S314) | S29: 722
B30: Distribution to use: | C30: z | D30: z distribution = Standard Normal (Bell) Curve with z-scores on horizontal axis | I30: Distribution to use: | J30: t | S30: 810
B31: Pop size = N | C31: 35000 | I31: Pop size = N | J31: 35000 | S31: 873
B32: Sample size = n | C32: 300 | I32: Sample size = n | J32: 300 | S32: 873
B33: Xbar | C33: 850 | I33: Xbar | J33: =AVERAGE(S27:S314) -> 851.0868056 | L33: =_xlfn.IFNA(_xlfn.FORMULATEXT(J33),"") -> =AVERAGE(S27:S314) | S33: 1074
B34: Sampling Error | E34: =_xlfn.IFNA(_xlfn.FORMULATEXT(C34),"") ->  | I34: Sampling Error | J34: =J33-J27 -> 29.08680556 | L34: =J33-J27 | S34: 1135
B35: n/N | I35: n/N | J35: =J32/J31 -> 0.008571428571 | L35: =J32/J31 | S35: 763
B36: Standard Error | I36: Standard Error | J36: =J29/SQRT(J32) -> 9.742591116 | L36: =J29/SQRT(J32) | S36: 1074
B37: Level of Significance = alpha = α | C37: 0.05 | I37: Level Significance = alpha = α | J37: 0.05 | S37: 675
B38: Confidence Level | I38: Confidence Level | J38: =1-J37 -> 0.95 | L38: =1-J37 | S38: 824
B39: Alpha/2 | I39: Alpha/2 | J39: =J37/2 -> 0.025 | L39: =J37/2 | S39: 988
B40: z = # Standard Deviations = | D40: Critical Value | I40: z = # Standard Deviations = | J40: =_xlfn.T.INV(1-J39,J32-1) -> 1.967929669 | L40: =T.INV(1-J39,J32-1) | S40: 873
B41: Margin of error | E41: =_xlfn.IFNA(_xlfn.FORMULATEXT(C41),"") ->  | I41: Test Statistic = # SE for mean | J41: =(J33-J27)/J36 -> 2.98553077 | L41: =(J33-J27)/J36 | S41: 824
B42: Lower Xbar for H.T. | E42: =_xlfn.IFNA(_xlfn.FORMULATEXT(C42),"") ->  | I42: p-value | J42: =1-_xlfn.T.DIST(J41,J32-1,1) -> 0.001532403523 | L42: =1-T.DIST(J41,J32-1,1) | S42: 873
B43: Upper Xbar for H.T. | E43: =_xlfn.IFNA(_xlfn.FORMULATEXT(C43),"") ->  | I43: Margin of error | J43: =J36*J40 -> 19.17273411 | L43: =J36*J40 | S43: 622
B44: Test Statistic = # SE for Xbar | I44: Lower Xbar for H.T. | J44: =J27-J43 -> 802.8272659 | L44: =J27-J43 | S44: 1074
B45: p-value | I45: Upper Xbar for H.T. | J45: =J27+J43 -> 841.1727341 | L45: =J27+J43 | S45: 867
B46: H.T.: Compare Sample Mean to Sampling Distribution of Xbar. | I46: H.T.: Compare Sample Mean to Sampling Distribution of Xbar. | S46: 824
B47: Since the sample mean of 850 is not in between the H.T. Lower and Upper Xbar, the original claim does not seem reasonable. | I47: Since Sample of 850 is not in between the H.T. Lower and Upper Xbar, the original claim does not seem reasonable. | S47: 722
B48: Lower Xbar for C.I. | I48: Lower Xbar for C.I. | J48: =J33-J43 -> 831.9140714 | L48: =J33-J43 | S48: 703
B49: Upper Xbar for C.I | I49: Upper Xbar for C.I | J49: =J33+J43 -> 870.2595397 | L49: =J33+J43 | S49: 824
B50: C.I.: Compare Original Claim Mean to constructed Confidence Interval. | I50: C.I.: Compare Original Claim Mean to constructed Confidence Interval. | S50: 824
B51: Since Confidence Interval does not contain Original Claim Mean, the original claim does not seem reasonable. | I51: Since Confidence Interval does not contain Original Claim Mean, the original claim does not seem reasonable. | S51: 424
S52: 962
B53: Printers Manufacturers is a manufacturer of computer printers and printer | S53: 1002
B54: cartridges. They would like to create an ad that says how many pages a | S54: 926
B55: customer could expect from the cartridge. | S55: 988
B56: Something like: "A customer can expect an average of XXX within the margin | S56: 926
B57: of error of XXX." | S57: 1105
S58: 761
B59: Sample # Pages From Cartridge | D59: Pop Mean = Mu = μ | E59: ? | S59: 926
B60: 1907 | D60: Pop Standard Dev. (Sigma) = σ | E60: ? | S60: 886
B61: 2501 | D61: Distribution to use: | E61: t | F61: t distribution = t (Bell) Curve with t-scores on horizontal axis | S61: 1035
B62: 2258 | D62: Pop size = N | E62: ? | S62: 775
B63: 2410 | D63: Sample size = n | E63: =COUNT(B60:B69) -> 10 | G63: =_xlfn.IFNA(_xlfn.FORMULATEXT(E63),"") -> =COUNT(B60:B69) | S63: 724
B64: 2942 | D64: Xbar | E64: =AVERAGE(B60:B69) -> 2408.8 | G64: =_xlfn.IFNA(_xlfn.FORMULATEXT(E64),"") -> =AVERAGE(B60:B69) | S64: 671
B65: 2455 | D65: s (pages) | E65: =_xlfn.STDEV.S(B60:B69) -> 304.0032164 | G65: =STDEV.S(B60:B69) | S65: 905
B66: 2058 | D66: # of samples | E66: 1 | S66: 915
B67: 2298 | D67: n/N | E67: ? | S67: 516
B68: 2751 | D68: Standard Error | S68: 926
B69: 2508 | D69: Level Significance = alpha = α | E69: 0.05 | S69: 715
D70: Confidence Level | S70: 842
D71: Alpha/2 | S71: 618
D72: t = # Standard Deviations = | I72: Critical Value | S72: 988
D73: Margin of error | S73: 872
D74: Lower Xbar for C.I. | S74: 769
D75: Upper Xbar for C.I | S75: 819
S76: 549
D77: From sample data we are estimating a range of values that we reasonably believe contains the population mean | S77: 843
S78: 921
D79: We are 95% sure that the population mean lies between 2191 and 2626 pages | S79: 1074
S80: 926
D81: A customer can expect an average of 2409 pages within the margin | S81: 824
D82: of error of 217 pages | S82: 1030
S83: 870
S84: 476
S85: 988
S86: 745
S87: 736
S88: 873
S89: 905
S90: 988
S91: 988
S92: 1074
S93: 1184
S94: 775
S95: 824
S96: 926
S97: 588
S98: 761
S99: 739
S100: 907
S101: 722
S102: 1108
S103: 722
S104: 1074
S105: 1074
S106: 824
S107: 532
S108: 824
S109: 760
S110: 926
S111: 1074
S112: 1074
S113: 873
S114: 1074
S115: 910
S116: 528
S117: 873
S118: 686
S119: 390
S120: 873
S121: 852
S122: 1074
S123: 692
S124: 816
S125: 873
S126: 996
S127: 717
S128: 926
S129: 775
S130: 1074
S131: 806
S132: 722
S133: 775
S134: 836
S135: 743
S136: 885
S137: 991
S138: 1226
S139: 763
S140: 673
S141: 951
S142: 771
S143: 926
S144: 758
S145: 988
S146: 628
S147: 824
S148: 1074
S149: 626
S150: 1074
S151: 954
S152: 788
S153: 1020
S154: 988
S155: 1010
S156: 605
S157: 775
S158: 775
S159: 926
S160: 722
S161: 1074
S162: 500
S163: 952
S164: 740
S165: 824
S166: 775
S167: 1232
S168: 926
S169: 765
S170: 460
S171: 436
S172: 601
S173: 967
S174: 988
S175: 776
S176: 706
S177: 571
S178: 906
S179: 769
S180: 616
S181: 1074
S182: 873
S183: 557
S184: 873
S185: 1268
S186: 1074
S187: 926
S188: 753
S189: 988
S190: 1050
S191: 710
S192: 403
S193: 775
S194: 926
S195: 824
S196: 886
S197: 1021
S198: 926
S199: 873
S200: 722
S201: 1074
S202: 687
S203: 873
S204: 1081
S205: 562
... 109 more rows

Sheet UseSDofXbar (an)
S1: 838
B2: Mu = population mean = μ | S2: 1074
B3: Sigma = population standard deviation = s | S3: 824
B4: Standard Error = Standard Deviation for the Sampling distribution of Xbar = SE | S4: 1074
B5: Hypothesized Value of Population Mean = μ0 = Assumed Value of Population Mean used for testing procedure | S5: 601
B6: sample size = n | S6: 824
B7: Sample Mean = Xbar | S7: 873
B8: Sample Standard Deviation (for when sigma not known) = s | S8: 1074
B9: Alpha = a = Risk of rejecting (Original Statement) H0 when it is actually true = Type 1 Error | S9: 673
B10: Test Statistic = Used to determine whether to reject H0 and accept Ha = Number of SE above or below hypothesized mean | S10: 678
B11: Use z test statistic if Sigma known or can be estimated, or you are significance Testing a Proportion and all 4 binomial tests have been met | S11: 722
B12: Use t test statistic if Sigma NOT known or can be estimated | S12: 722
B14: How to use Sampling Distribution of Xbar to help make business decisions:
A16: 1 | B16: If Population Mean is known, and we want to test to see if a claim is reasonable, we can use Hypothesis Testing (H.T.), or, Confidence Internals (C.I.)
A17: 2 | B17: If Population Mean is NOT known, and we to estimate what a reasonable range of values is for the population mean, we can use Confidence Intervals
B19: For Hypothesis Testing, or, Confidence Internals we can use:
A21: 1 | B21: z distribution when population standard deviation is known as a model that represents the Sampling Distribution of Xbar
A22: 2 | B22: t distribution when population standard deviation is NOT known as a model that represents the Sampling Distribution of Xbar
B24: An insurance company claims that the average cost per year for a policy is $822. | I24: Same, but we don't know pop standard deviation, so we use t distribution
B25: The standard deviation for the population is $202.
B26: If you take a random sample and get a sample mean (Xbar) of $850 (n = 300), is the original claim reasonable? | S26: Sample
I27: Pop Mean = mu = μ | J27: 822 | S27: 716
B28: Pop Mean = Mu = μ | C28: 822 | I28: Pop Standard Dev. (Sigma) = σ | J28: ? | S28: 926
B29: Pop Standard Dev. (Sigma) = σ | C29: 202 | I29: Sample Standard Dev. = s | J29: =_xlfn.STDEV.S(S27:S314) -> 168.7466281 | L29: =_xlfn.IFNA(_xlfn.FORMULATEXT(J29),"") -> =STDEV.S(S27:S314) | S29: 722
B30: Distribution to use: | C30: z | D30: z distribution = Standard Normal (Bell) Curve with z-scores on horizontal axis | I30: Distribution to use: | J30: t | S30: 810
B31: Pop size = N | C31: 35000 | I31: Pop size = N | J31: 35000 | S31: 873
B32: Sample size = n | C32: 300 | I32: Sample size = n | J32: 300 | S32: 873
B33: Xbar | C33: 850 | I33: Xbar | J33: =AVERAGE(S27:S314) -> 851.0868056 | L33: =_xlfn.IFNA(_xlfn.FORMULATEXT(J33),"") -> =AVERAGE(S27:S314) | S33: 1074
B34: Sampling Error | C34: =C33-C28 -> 28 | E34: =_xlfn.IFNA(_xlfn.FORMULATEXT(C34),"") -> =C33-C28 | I34: Sampling Error | J34: =J33-J27 -> 29.08680556 | L34: =J33-J27 | S34: 1135
B35: n/N | C35: =C32/C31 -> 0.008571428571 | E35: =C32/C31 | I35: n/N | J35: =J32/J31 -> 0.008571428571 | L35: =J32/J31 | S35: 763
B36: Standard Error | C36: =C29/SQRT(C32) -> 11.66247544 | E36: =C29/SQRT(C32) | I36: Standard Error | J36: =J29/SQRT(J32) -> 9.742591116 | L36: =J29/SQRT(J32) | S36: 1074
B37: Level of Significance = alpha = α | C37: 0.05 | I37: Level Significance = alpha = α | J37: 0.05 | S37: 675
B38: Confidence Level | C38: =1-C37 -> 0.95 | E38: =1-C37 | I38: Confidence Level | J38: =1-J37 -> 0.95 | L38: =1-J37 | S38: 824
B39: Alpha/2 | C39: =C37/2 -> 0.025 | E39: =C37/2 | I39: Alpha/2 | J39: =J37/2 -> 0.025 | L39: =J37/2 | S39: 988
B40: z = # Standard Deviations = | C40: =_xlfn.NORM.S.INV(1-C39) -> 1.959963985 | D40: Critical Value | E40: =NORM.S.INV(1-C39) | I40: z = # Standard Deviations = | J40: =_xlfn.T.INV(1-J39,J32-1) -> 1.967929669 | L40: =T.INV(1-J39,J32-1) | S40: 873
B41: Margin of error | C41: =C36*C40 -> 22.85803183 | E41: =_xlfn.IFNA(_xlfn.FORMULATEXT(C41),"") -> =C36*C40 | I41: Test Statistic = # SE for mean | J41: =(J33-J27)/J36 -> 2.98553077 | L41: =(J33-J27)/J36 | S41: 824
B42: Lower Xbar for H.T. | C42: =C28-C41 -> 799.1419682 | E42: =_xlfn.IFNA(_xlfn.FORMULATEXT(C42),"") -> =C28-C41 | I42: p-value | J42: =1-_xlfn.T.DIST(J41,J32-1,1) -> 0.001532403523 | L42: =1-T.DIST(J41,J32-1,1) | S42: 873
B43: Upper Xbar for H.T. | C43: =C28+C41 -> 844.8580318 | E43: =_xlfn.IFNA(_xlfn.FORMULATEXT(C43),"") -> =C28+C41 | I43: Margin of error | J43: =J36*J40 -> 19.17273411 | L43: =J36*J40 | S43: 622
B44: Test Statistic = # SE for Xbar | C44: =C34/C36 -> 2.400862506 | E44: =C34/C36 | I44: Lower Xbar for H.T. | J44: =J27-J43 -> 802.8272659 | L44: =J27-J43 | S44: 1074
B45: p-value | C45: =(1-_xlfn.NORM.S.DIST(C44,1))*2 -> 0.016356481 | E45: =(1-NORM.S.DIST(C44,1))*2 | I45: Upper Xbar for H.T. | J45: =J27+J43 -> 841.1727341 | L45: =J27+J43 | S45: 867
B46: H.T.: Compare Sample Mean to Sampling Distribution of Xbar. | I46: H.T.: Compare Sample Mean to Sampling Distribution of Xbar. | S46: 824
B47: Since the sample mean of 850 is not in between the H.T. Lower and Upper Xbar, the original claim does not seem reasonable. | I47: Since Sample of 850 is not in between the H.T. Lower and Upper Xbar, the original claim does not seem reasonable. | S47: 722
B48: Lower Xbar for C.I. | C48: =C33-C41 -> 827.1419682 | E48: =C33-C41 | I48: Lower Xbar for C.I. | J48: =J33-J43 -> 831.9140714 | L48: =J33-J43 | S48: 703
B49: Upper Xbar for C.I | C49: =C33+C41 -> 872.8580318 | E49: =C33+C41 | I49: Upper Xbar for C.I | J49: =J33+J43 -> 870.2595397 | L49: =J33+J43 | S49: 824
B50: C.I.: Compare Original Claim Mean to constructed Confidence Interval. | I50: C.I.: Compare Original Claim Mean to constructed Confidence Interval. | S50: 824
B51: Since Confidence Interval does not contain Original Claim Mean, the original claim does not seem reasonable. | I51: Since Confidence Interval does not contain Original Claim Mean, the original claim does not seem reasonable. | S51: 424
S52: 962
B53: Printers Manufacturers is a manufacturer of computer printers and printer | S53: 1002
B54: cartridges. They would like to create an ad that says how many pages a | S54: 926
B55: customer could expect from the cartridge. | S55: 988
B56: Something like: "A customer can expect an average of XXX within the margin | S56: 926
B57: of error of XXX." | S57: 1105
S58: 761
B59: Sample # Pages From Cartridge | D59: Pop Mean = Mu = μ | E59: ? | S59: 926
B60: 1907 | D60: Pop Standard Dev. (Sigma) = σ | E60: ? | S60: 886
B61: 2501 | D61: Distribution to use: | E61: t | F61: t distribution = t (Bell) Curve with t-scores on horizontal axis | S61: 1035
B62: 2258 | D62: Pop size = N | E62: ? | S62: 775
B63: 2410 | D63: Sample size = n | E63: =COUNT(B60:B69) -> 10 | G63: =_xlfn.IFNA(_xlfn.FORMULATEXT(E63),"") -> =COUNT(B60:B69) | S63: 724
B64: 2942 | D64: Xbar | E64: =AVERAGE(B60:B69) -> 2408.8 | G64: =_xlfn.IFNA(_xlfn.FORMULATEXT(E64),"") -> =AVERAGE(B60:B69) | S64: 671
B65: 2455 | D65: s (pages) | E65: =_xlfn.STDEV.S(B60:B69) -> 304.0032164 | G65: =STDEV.S(B60:B69) | S65: 905
B66: 2058 | D66: # of samples | E66: 1 | S66: 915
B67: 2298 | D67: n/N | E67: ? | S67: 516
B68: 2751 | D68: Standard Error | E68: =E65/SQRT(E63) -> 96.13425797 | G68: =E65/SQRT(E63) | S68: 926
B69: 2508 | D69: Level Significance = alpha = α | E69: 0.05 | S69: 715
D70: Confidence Level | E70: =1-E69 -> 0.95 | G70: =1-E69 | S70: 842
D71: Alpha/2 | E71: =E69/2 -> 0.025 | G71: =E69/2 | S71: 618
D72: t = # Standard Deviations = | E72: =_xlfn.T.INV(1-E71,E63-E66) -> 2.262157163 | G72: =T.INV(1-E71,E63-E66) | I72: Critical Value | S72: 988
D73: Margin of error | E73: =E68*E72 -> 217.4708003 | G73: =E68*E72 | S73: 872
D74: Lower Xbar for C.I. | E74: =E64-E73 -> 2191.3292 | G74: =E64-E73 | S74: 769
D75: Upper Xbar for C.I | E75: =E64+E73 -> 2626.2708 | G75: =E64+E73 | S75: 819
S76: 549
D77: From sample data we are estimating a range of values that we reasonably believe contains the population mean | S77: 843
S78: 921
D79: We are 95% sure that the population mean lies between 2191 and 2626 pages | S79: 1074
S80: 926
D81: A customer can expect an average of 2409 pages within the margin | S81: 824
D82: of error of 217 pages | S82: 1030
S83: 870
S84: 476
S85: 988
S86: 745
S87: 736
S88: 873
S89: 905
S90: 988
S91: 988
S92: 1074
S93: 1184
S94: 775
S95: 824
S96: 926
S97: 588
S98: 761
S99: 739
S100: 907
S101: 722
S102: 1108
S103: 722
S104: 1074
S105: 1074
S106: 824
S107: 532
S108: 824
S109: 760
S110: 926
S111: 1074
S112: 1074
S113: 873
S114: 1074
S115: 910
S116: 528
S117: 873
S118: 686
S119: 390
S120: 873
S121: 852
S122: 1074
S123: 692
S124: 816
S125: 873
S126: 996
S127: 717
S128: 926
S129: 775
S130: 1074
S131: 806
S132: 722
S133: 775
S134: 836
S135: 743
S136: 885
S137: 991
S138: 1226
S139: 763
S140: 673
S141: 951
S142: 771
S143: 926
S144: 758
S145: 988
S146: 628
S147: 824
S148: 1074
S149: 626
S150: 1074
S151: 954
S152: 788
S153: 1020
S154: 988
S155: 1010
S156: 605
S157: 775
S158: 775
S159: 926
S160: 722
S161: 1074
S162: 500
S163: 952
S164: 740
S165: 824
S166: 775
S167: 1232
S168: 926
S169: 765
S170: 460
S171: 436
S172: 601
S173: 967
S174: 988
S175: 776
S176: 706
S177: 571
S178: 906
S179: 769
S180: 616
S181: 1074
S182: 873
S183: 557
S184: 873
S185: 1268
S186: 1074
S187: 926
S188: 753
S189: 988
S190: 1050
S191: 710
S192: 403
S193: 775
S194: 926
S195: 824
S196: 886
S197: 1021
S198: 926
S199: 873
S200: 722
S201: 1074
S202: 687
S203: 873
S204: 1081
S205: 562
... 109 more rows

Sheet z t
B2: Pop Mean = Mu = μ | C2: 822 | H2: # Standard Deviations | I2: 4 | L2: Pop Mean = Mu = μ | M2: 822 | R2: # Standard Deviations | S2: 4
B3: Pop Standard Dev. (Sigma) = σ | C3: 202 | H3: Lower Xbar | I3: =C2-C10*I2 -> 774 | L3: Pop Standard Dev. (Sigma) = σ not known, but estimated | M3: 202 | R3: Lower Xbar | S3: =M2-M10*S2 -> 614
B4: Distribution to use: | C4: z | H4: Upper Xbar | I4: =C2+C10*I2 -> 870 | L4: Distribution to use: | M4: t | R4: Upper Xbar | S4: =M2+M10*S2 -> 1030
B5: Pop size = N | C5: 35000 | L5: Pop size = N | M5: 35000
B6: Sample size = n | C6: 300 | L6: Sample size = n | M6: 15
B7: Xbar | C7: 850 | L7: Xbar | M7: 850
B8: Sampling Error | C8: =C7-C2 -> 28 | E8: Xbar | F8: Z | G8: Prob | H8: P(Lower<=Xbar<=Upper) | L8: Sampling Error | M8: =M7-M2 -> 28 | O8: Xbar | P8: t | Q8: Prob | R8: P(Lower<=Xbar<=Upper)
B9: n/N | C9: =C6/C5 -> 0.008571428571 | E9: =_xlfn.SEQUENCE(I4-I3+1,,I3) -> 774 | F9: =(_xlfn.ANCHORARRAY(E9)-C2)/C10 -> -4 | G9: =_xlfn.NORM.DIST(_xlfn.ANCHORARRAY(E9),C2,C10,0) -> 1.115251881e-05 | H9: =IF((_xlfn.ANCHORARRAY(E9)>=C16)*(_xlfn.ANCHORARRAY(E9)<=C17),_xlfn.ANCHORARRAY(G9),"") ->  | L9: n/N | M9: =M6/M5 -> 0.0004285714286 | O9: =_xlfn.SEQUENCE(S4-S3+1,,S3) -> 614 | P9: =(_xlfn.ANCHORARRAY(O9)-M2)/M10 -> -4 | Q9: =_xlfn.T.DIST(_xlfn.ANCHORARRAY(P9),M6-1,0) -> 0.001290363944 | R9: =IF((_xlfn.ANCHORARRAY(O9)>=M16)*(_xlfn.ANCHORARRAY(O9)<=M17),_xlfn.ANCHORARRAY(Q9),"") -> 
B10: Standard Error | C10: =ROUND(C3/SQRT(C6),0) -> 12 | E10: 775 | F10: -3.916666667 | G10: 1.551064382e-05 | L10: Standard Error | M10: =ROUND(M3/SQRT(M6),0) -> 52 | O10: 615 | P10: -3.980769231 | Q10: 0.001340968173
B11: Level of Significance = alpha = α | C11: 0.05 | E11: 776 | F11: -3.833333333 | G11: 2.142252959e-05 | L11: Level of Significance = alpha = α | M11: 0.05 | O11: 616 | P11: -3.961538462 | Q11: 0.001393572972
B12: Confidence Level | C12: =1-C11 -> 0.95 | E12: 777 | F12: -3.75 | G12: 2.938297353e-05 | L12: Confidence Level | M12: =1-M11 -> 0.95 | O12: 617 | P12: -3.942307692 | Q12: 0.001448256834
B13: Alpha/2 | C13: =C11/2 -> 0.025 | E13: 778 | F13: -3.666666667 | G13: 4.00225543e-05 | L13: Alpha/2 | M13: =M11/2 -> 0.025 | O13: 618 | P13: -3.923076923 | Q13: 0.001505101243
B14: z = # Standard Deviations = | C14: =_xlfn.NORM.S.INV(1-C13) -> 1.959963985 | E14: 779 | F14: -3.583333333 | G14: 5.413746641e-05 | L14: z = # Standard Deviations = | M14: =_xlfn.T.INV(1-M13,M6-1) -> 2.144786688 | O14: 619 | P14: -3.903846154 | Q14: 0.001564190773
B15: Margin of error | C15: =C10*C14 -> 23.51956781 | E15: 780 | F15: -3.5 | G15: 7.272355792e-05 | L15: Margin of error | M15: =M10*M14 -> 111.5289078 | O15: 620 | P15: -3.884615385 | Q15: 0.001625613206
B16: Lower Xbar for H.T. | C16: =C2-C15 -> 798.4804322 | E16: 781 | F16: -3.416666667 | G16: 9.701443864e-05 | L16: Lower Xbar for H.T. | M16: =M2-M15 -> 710.4710922 | O16: 621 | P16: -3.865384615 | Q16: 0.001689459639
B17: Upper Xbar for H.T. | C17: =C2+C15 -> 845.5195678 | E17: 782 | F17: -3.333333333 | G17: 0.0001285232497 | L17: Upper Xbar for H.T. | M17: =M2+M15 -> 933.5289078 | O17: 622 | P17: -3.846153846 | Q17: 0.001755824601
E18: 783 | F18: -3.25 | G18: 0.0001690873381 | O18: 623 | P18: -3.826923077 | Q18: 0.001824806177
E19: 784 | F19: -3.166666667 | G19: 0.0002209146629 | O19: 624 | P19: -3.807692308 | Q19: 0.001896506123
E20: 785 | F20: -3.083333333 | G20: 0.0002866302773 | O20: 625 | P20: -3.788461538 | Q20: 0.001971029998
E21: 786 | F21: -3 | G21: 0.000369320701 | O21: 626 | P21: -3.769230769 | Q21: 0.002048487295
E22: 787 | F22: -2.916666667 | G22: 0.000472573435 | O22: 627 | P22: -3.75 | Q22: 0.002128991571
E23: 788 | F23: -2.833333333 | G23: 0.0006005083137 | O23: 628 | P23: -3.730769231 | Q23: 0.002212660586
E24: 789 | F24: -2.75 | G24: 0.0007577968751 | O24: 629 | P24: -3.711538462 | Q24: 0.002299616445
E25: 790 | F25: -2.666666667 | G25: 0.000949665502 | O25: 630 | P25: -3.692307692 | Q25: 0.002389985742
E26: 791 | F26: -2.583333333 | G26: 0.001181877813 | O26: 631 | P26: -3.673076923 | Q26: 0.002483899707
E27: 792 | F27: -2.5 | G27: 0.001460691708 | O27: 632 | P27: -3.653846154 | Q27: 0.002581494362
E28: 793 | F28: -2.416666667 | G28: 0.001792786668 | O28: 633 | P28: -3.634615385 | Q28: 0.002682910674
E29: 794 | F29: -2.333333333 | G29: 0.002185157424 | O29: 634 | P29: -3.615384615 | Q29: 0.002788294719
E30: 795 | F30: -2.25 | G30: 0.002644970986 | O30: 635 | P30: -3.596153846 | Q30: 0.00289779784
E31: 796 | F31: -2.166666667 | G31: 0.003179385292 | O31: 636 | P31: -3.576923077 | Q31: 0.003011576821
E32: 797 | F32: -2.083333333 | G32: 0.003795329406 | O32: 637 | P32: -3.557692308 | Q32: 0.003129794052
E33: 798 | F33: -2 | G33: 0.004499247209 | O33: 638 | P33: -3.538461538 | Q33: 0.003252617713
E34: 799 | F34: -1.916666667 | G34: 0.005296808876 | H34: 0.005296808876 | O34: 639 | P34: -3.519230769 | Q34: 0.003380221945
E35: 800 | F35: -1.833333333 | G35: 0.006192596963 | H35: 0.006192596963 | O35: 640 | P35: -3.5 | Q35: 0.003512787038
E36: 801 | F36: -1.75 | G36: 0.007189776569 | H36: 0.007189776569 | O36: 641 | P36: -3.480769231 | Q36: 0.003650499615
E37: 802 | F37: -1.666666667 | G37: 0.008289761566 | H37: 0.008289761566 | O37: 642 | P37: -3.461538462 | Q37: 0.003793552825
E38: 803 | F38: -1.583333333 | G38: 0.009491891177 | H38: 0.009491891177 | O38: 643 | P38: -3.442307692 | Q38: 0.003942146534
E39: 804 | F39: -1.5 | G39: 0.01079313297 | H39: 0.01079313297 | O39: 644 | P39: -3.423076923 | Q39: 0.004096487524
E40: 805 | F40: -1.416666667 | G40: 0.01218782952 | H40: 0.01218782952 | O40: 645 | P40: -3.403846154 | Q40: 0.004256789695
E41: 806 | F41: -1.333333333 | G41: 0.01366750622 | H41: 0.01366750622 | O41: 646 | P41: -3.384615385 | Q41: 0.004423274267
E42: 807 | F42: -1.25 | G42: 0.01522075712 | H42: 0.01522075712 | O42: 647 | P42: -3.365384615 | Q42: 0.004596169989
E43: 808 | F43: -1.166666667 | G43: 0.0168332238 | H43: 0.0168332238 | O43: 648 | P43: -3.346153846 | Q43: 0.004775713345
E44: 809 | F44: -1.083333333 | G44: 0.01848767956 | H44: 0.01848767956 | O44: 649 | P44: -3.326923077 | Q44: 0.004962148776
E45: 810 | F45: -1 | G45: 0.02016422704 | H45: 0.02016422704 | O45: 650 | P45: -3.307692308 | Q45: 0.005155728888
E46: 811 | F46: -0.9166666667 | G46: 0.02184061276 | H46: 0.02184061276 | O46: 651 | P46: -3.288461538 | Q46: 0.00535671467
E47: 812 | F47: -0.8333333333 | G47: 0.02349265628 | H47: 0.02349265628 | O47: 652 | P47: -3.269230769 | Q47: 0.005565375723
E48: 813 | F48: -0.75 | G48: 0.02509478601 | H48: 0.02509478601 | O48: 653 | P48: -3.25 | Q48: 0.005781990473
E49: 814 | F49: -0.6666666667 | G49: 0.02662066713 | H49: 0.02662066713 | O49: 654 | P49: -3.230769231 | Q49: 0.0060068464
E50: 815 | F50: -0.5833333333 | G50: 0.0280439019 | H50: 0.0280439019 | O50: 655 | P50: -3.211538462 | Q50: 0.006240240264
E51: 816 | F51: -0.5 | G51: 0.02933877723 | H51: 0.02933877723 | O51: 656 | P51: -3.192307692 | Q51: 0.006482478329
E52: 817 | F52: -0.4166666667 | G52: 0.03048103053 | H52: 0.03048103053 | O52: 657 | P52: -3.173076923 | Q52: 0.006733876595
E53: 818 | F53: -0.3333333333 | G53: 0.03144860231 | H53: 0.03144860231 | O53: 658 | P53: -3.153846154 | Q53: 0.006994761022
E54: 819 | F54: -0.25 | G54: 0.03222234307 | H54: 0.03222234307 | O54: 659 | P54: -3.134615385 | Q54: 0.007265467761
E55: 820 | F55: -0.1666666667 | G55: 0.03278664301 | H55: 0.03278664301 | O55: 660 | P55: -3.115384615 | Q55: 0.007546343377
E56: 821 | F56: -0.08333333333 | G56: 0.03312995552 | H56: 0.03312995552 | O56: 661 | P56: -3.096153846 | Q56: 0.007837745083
E57: 822 | F57: 0 | G57: 0.03324519003 | H57: 0.03324519003 | O57: 662 | P57: -3.076923077 | Q57: 0.00814004096
E58: 823 | F58: 0.08333333333 | G58: 0.03312995552 | H58: 0.03312995552 | O58: 663 | P58: -3.057692308 | Q58: 0.008453610181
E59: 824 | F59: 0.1666666667 | G59: 0.03278664301 | H59: 0.03278664301 | O59: 664 | P59: -3.038461538 | Q59: 0.008778843232
E60: 825 | F60: 0.25 | G60: 0.03222234307 | H60: 0.03222234307 | O60: 665 | P60: -3.019230769 | Q60: 0.009116142133
E61: 826 | F61: 0.3333333333 | G61: 0.03144860231 | H61: 0.03144860231 | O61: 666 | P61: -3 | Q61: 0.009465920648
E62: 827 | F62: 0.4166666667 | G62: 0.03048103053 | H62: 0.03048103053 | O62: 667 | P62: -2.980769231 | Q62: 0.009828604496
E63: 828 | F63: 0.5 | G63: 0.02933877723 | H63: 0.02933877723 | O63: 668 | P63: -2.961538462 | Q63: 0.01020463156
E64: 829 | F64: 0.5833333333 | G64: 0.0280439019 | H64: 0.0280439019 | O64: 669 | P64: -2.942307692 | Q64: 0.01059445206
E65: 830 | F65: 0.6666666667 | G65: 0.02662066713 | H65: 0.02662066713 | O65: 670 | P65: -2.923076923 | Q65: 0.01099852881
E66: 831 | F66: 0.75 | G66: 0.02509478601 | H66: 0.02509478601 | O66: 671 | P66: -2.903846154 | Q66: 0.01141733731
E67: 832 | F67: 0.8333333333 | G67: 0.02349265628 | H67: 0.02349265628 | O67: 672 | P67: -2.884615385 | Q67: 0.01185136599
E68: 833 | F68: 0.9166666667 | G68: 0.02184061276 | H68: 0.02184061276 | O68: 673 | P68: -2.865384615 | Q68: 0.01230111637
E69: 834 | F69: 1 | G69: 0.02016422704 | H69: 0.02016422704 | O69: 674 | P69: -2.846153846 | Q69: 0.01276710318
E70: 835 | F70: 1.083333333 | G70: 0.01848767956 | H70: 0.01848767956 | O70: 675 | P70: -2.826923077 | Q70: 0.01324985452
E71: 836 | F71: 1.166666667 | G71: 0.0168332238 | H71: 0.0168332238 | O71: 676 | P71: -2.807692308 | Q71: 0.01374991204
E72: 837 | F72: 1.25 | G72: 0.01522075712 | H72: 0.01522075712 | O72: 677 | P72: -2.788461538 | Q72: 0.01426783096
E73: 838 | F73: 1.333333333 | G73: 0.01366750622 | H73: 0.01366750622 | O73: 678 | P73: -2.769230769 | Q73: 0.01480418026
E74: 839 | F74: 1.416666667 | G74: 0.01218782952 | H74: 0.01218782952 | O74: 679 | P74: -2.75 | Q74: 0.01535954273
E75: 840 | F75: 1.5 | G75: 0.01079313297 | H75: 0.01079313297 | O75: 680 | P75: -2.730769231 | Q75: 0.01593451505
E76: 841 | F76: 1.583333333 | G76: 0.009491891177 | H76: 0.009491891177 | O76: 681 | P76: -2.711538462 | Q76: 0.01652970782
E77: 842 | F77: 1.666666667 | G77: 0.008289761566 | H77: 0.008289761566 | O77: 682 | P77: -2.692307692 | Q77: 0.01714574561
E78: 843 | F78: 1.75 | G78: 0.007189776569 | H78: 0.007189776569 | O78: 683 | P78: -2.673076923 | Q78: 0.01778326697
E79: 844 | F79: 1.833333333 | G79: 0.006192596963 | H79: 0.006192596963 | O79: 684 | P79: -2.653846154 | Q79: 0.01844292441
E80: 845 | F80: 1.916666667 | G80: 0.005296808876 | H80: 0.005296808876 | O80: 685 | P80: -2.634615385 | Q80: 0.01912538434
E81: 846 | F81: 2 | G81: 0.004499247209 | O81: 686 | P81: -2.615384615 | Q81: 0.01983132706
E82: 847 | F82: 2.083333333 | G82: 0.003795329406 | O82: 687 | P82: -2.596153846 | Q82: 0.02056144659
E83: 848 | F83: 2.166666667 | G83: 0.003179385292 | O83: 688 | P83: -2.576923077 | Q83: 0.02131645062
E84: 849 | F84: 2.25 | G84: 0.002644970986 | O84: 689 | P84: -2.557692308 | Q84: 0.0220970603
E85: 850 | F85: 2.333333333 | G85: 0.002185157424 | O85: 690 | P85: -2.538461538 | Q85: 0.02290401009
E86: 851 | F86: 2.416666667 | G86: 0.001792786668 | O86: 691 | P86: -2.519230769 | Q86: 0.02373804752
E87: 852 | F87: 2.5 | G87: 0.001460691708 | O87: 692 | P87: -2.5 | Q87: 0.02459993293
E88: 853 | F88: 2.583333333 | G88: 0.001181877813 | O88: 693 | P88: -2.480769231 | Q88: 0.02549043917
E89: 854 | F89: 2.666666667 | G89: 0.000949665502 | O89: 694 | P89: -2.461538462 | Q89: 0.02641035128
E90: 855 | F90: 2.75 | G90: 0.0007577968751 | O90: 695 | P90: -2.442307692 | Q90: 0.02736046609
E91: 856 | F91: 2.833333333 | G91: 0.0006005083137 | O91: 696 | P91: -2.423076923 | Q91: 0.02834159179
E92: 857 | F92: 2.916666667 | G92: 0.000472573435 | O92: 697 | P92: -2.403846154 | Q92: 0.0293545475
E93: 858 | F93: 3 | G93: 0.000369320701 | O93: 698 | P93: -2.384615385 | Q93: 0.03040016269
E94: 859 | F94: 3.083333333 | G94: 0.0002866302773 | O94: 699 | P94: -2.365384615 | Q94: 0.03147927664
E95: 860 | F95: 3.166666667 | G95: 0.0002209146629 | O95: 700 | P95: -2.346153846 | Q95: 0.03259273783
E96: 861 | F96: 3.25 | G96: 0.0001690873381 | O96: 701 | P96: -2.326923077 | Q96: 0.03374140324
E97: 862 | F97: 3.333333333 | G97: 0.0001285232497 | O97: 702 | P97: -2.307692308 | Q97: 0.03492613765
E98: 863 | F98: 3.416666667 | G98: 9.701443864e-05 | O98: 703 | P98: -2.288461538 | Q98: 0.03614781278
E99: 864 | F99: 3.5 | G99: 7.272355792e-05 | O99: 704 | P99: -2.269230769 | Q99: 0.03740730653
E100: 865 | F100: 3.583333333 | G100: 5.413746641e-05 | O100: 705 | P100: -2.25 | Q100: 0.038705502
E101: 866 | F101: 3.666666667 | G101: 4.00225543e-05 | O101: 706 | P101: -2.230769231 | Q101: 0.04004328653
E102: 867 | F102: 3.75 | G102: 2.938297353e-05 | O102: 707 | P102: -2.211538462 | Q102: 0.0414215507
E103: 868 | F103: 3.833333333 | G103: 2.142252959e-05 | O103: 708 | P103: -2.192307692 | Q103: 0.04284118714
E104: 869 | F104: 3.916666667 | G104: 1.551064382e-05 | O104: 709 | P104: -2.173076923 | Q104: 0.04430308944
E105: 870 | F105: 4 | G105: 1.115251881e-05 | O105: 710 | P105: -2.153846154 | Q105: 0.04580815085
O106: 711 | P106: -2.134615385 | Q106: 0.04735726296 | R106: 0.04735726296
O107: 712 | P107: -2.115384615 | Q107: 0.04895131435 | R107: 0.04895131435
O108: 713 | P108: -2.096153846 | Q108: 0.05059118909 | R108: 0.05059118909
O109: 714 | P109: -2.076923077 | Q109: 0.05227776523 | R109: 0.05227776523
O110: 715 | P110: -2.057692308 | Q110: 0.05401191315 | R110: 0.05401191315
O111: 716 | P111: -2.038461538 | Q111: 0.0557944939 | R111: 0.0557944939
O112: 717 | P112: -2.019230769 | Q112: 0.05762635745 | R112: 0.05762635745
O113: 718 | P113: -2 | Q113: 0.05950834078 | R113: 0.05950834078
O114: 719 | P114: -1.980769231 | Q114: 0.06144126605 | R114: 0.06144126605
O115: 720 | P115: -1.961538462 | Q115: 0.06342593854 | R115: 0.06342593854
O116: 721 | P116: -1.942307692 | Q116: 0.06546314461 | R116: 0.06546314461
O117: 722 | P117: -1.923076923 | Q117: 0.06755364955 | R117: 0.06755364955
O118: 723 | P118: -1.903846154 | Q118: 0.06969819535 | R118: 0.06969819535
O119: 724 | P119: -1.884615385 | Q119: 0.07189749844 | R119: 0.07189749844
O120: 725 | P120: -1.865384615 | Q120: 0.07415224728 | R120: 0.07415224728
O121: 726 | P121: -1.846153846 | Q121: 0.07646309999 | R121: 0.07646309999
O122: 727 | P122: -1.826923077 | Q122: 0.07883068178 | R122: 0.07883068178
O123: 728 | P123: -1.807692308 | Q123: 0.08125558246 | R123: 0.08125558246
O124: 729 | P124: -1.788461538 | Q124: 0.08373835379 | R124: 0.08373835379
O125: 730 | P125: -1.769230769 | Q125: 0.08627950678 | R125: 0.08627950678
O126: 731 | P126: -1.75 | Q126: 0.088879509 | R126: 0.088879509
O127: 732 | P127: -1.730769231 | Q127: 0.09153878178 | R127: 0.09153878178
O128: 733 | P128: -1.711538462 | Q128: 0.09425769736 | R128: 0.09425769736
O129: 734 | P129: -1.692307692 | Q129: 0.09703657609 | R129: 0.09703657609
O130: 735 | P130: -1.673076923 | Q130: 0.09987568347 | R130: 0.09987568347
O131: 736 | P131: -1.653846154 | Q131: 0.1027752273 | R131: 0.1027752273
O132: 737 | P132: -1.634615385 | Q132: 0.1057353545 | R132: 0.1057353545
O133: 738 | P133: -1.615384615 | Q133: 0.1087561486 | R133: 0.1087561486
O134: 739 | P134: -1.596153846 | Q134: 0.1118376264 | R134: 0.1118376264
O135: 740 | P135: -1.576923077 | Q135: 0.1149797349 | R135: 0.1149797349
O136: 741 | P136: -1.557692308 | Q136: 0.1181823489 | R136: 0.1181823489
O137: 742 | P137: -1.538461538 | Q137: 0.1214452675 | R137: 0.1214452675
O138: 743 | P138: -1.519230769 | Q138: 0.1247682114 | R138: 0.1247682114
O139: 744 | P139: -1.5 | Q139: 0.1281508201 | R139: 0.1281508201
O140: 745 | P140: -1.480769231 | Q140: 0.1315926488 | R140: 0.1315926488
O141: 746 | P141: -1.461538462 | Q141: 0.135093166 | R141: 0.135093166
O142: 747 | P142: -1.442307692 | Q142: 0.1386517504 | R142: 0.1386517504
O143: 748 | P143: -1.423076923 | Q143: 0.1422676886 | R143: 0.1422676886
O144: 749 | P144: -1.403846154 | Q144: 0.1459401723 | R144: 0.1459401723
O145: 750 | P145: -1.384615385 | Q145: 0.149668296 | R145: 0.149668296
O146: 751 | P146: -1.365384615 | Q146: 0.1534510546 | R146: 0.1534510546
O147: 752 | P147: -1.346153846 | Q147: 0.1572873412 | R147: 0.1572873412
O148: 753 | P148: -1.326923077 | Q148: 0.161175945 | R148: 0.161175945
O149: 754 | P149: -1.307692308 | Q149: 0.1651155493 | R149: 0.1651155493
O150: 755 | P150: -1.288461538 | Q150: 0.1691047299 | R150: 0.1691047299
O151: 756 | P151: -1.269230769 | Q151: 0.1731419535 | R151: 0.1731419535
O152: 757 | P152: -1.25 | Q152: 0.1772255759 | R152: 0.1772255759
O153: 758 | P153: -1.230769231 | Q153: 0.1813538414 | R153: 0.1813538414
O154: 759 | P154: -1.211538462 | Q154: 0.1855248811 | R154: 0.1855248811
O155: 760 | P155: -1.192307692 | Q155: 0.1897367127 | R155: 0.1897367127
O156: 761 | P156: -1.173076923 | Q156: 0.1939872395 | R156: 0.1939872395
O157: 762 | P157: -1.153846154 | Q157: 0.1982742505 | R157: 0.1982742505
O158: 763 | P158: -1.134615385 | Q158: 0.2025954198 | R158: 0.2025954198
O159: 764 | P159: -1.115384615 | Q159: 0.2069483072 | R159: 0.2069483072
O160: 765 | P160: -1.096153846 | Q160: 0.2113303587 | R160: 0.2113303587
O161: 766 | P161: -1.076923077 | Q161: 0.2157389068 | R161: 0.2157389068
O162: 767 | P162: -1.057692308 | Q162: 0.2201711721 | R162: 0.2201711721
O163: 768 | P163: -1.038461538 | Q163: 0.2246242643 | R163: 0.2246242643
O164: 769 | P164: -1.019230769 | Q164: 0.2290951839 | R164: 0.2290951839
O165: 770 | P165: -1 | Q165: 0.2335808243 | R165: 0.2335808243
O166: 771 | P166: -0.9807692308 | Q166: 0.238077974 | R166: 0.238077974
O167: 772 | P167: -0.9615384615 | Q167: 0.2425833191 | R167: 0.2425833191
O168: 773 | P168: -0.9423076923 | Q168: 0.2470934465 | R168: 0.2470934465
O169: 774 | P169: -0.9230769231 | Q169: 0.2516048469 | R169: 0.2516048469
O170: 775 | P170: -0.9038461538 | Q170: 0.2561139187 | R170: 0.2561139187
O171: 776 | P171: -0.8846153846 | Q171: 0.2606169714 | R171: 0.2606169714
O172: 777 | P172: -0.8653846154 | Q172: 0.2651102307 | R172: 0.2651102307
O173: 778 | P173: -0.8461538462 | Q173: 0.2695898423 | R173: 0.2695898423
O174: 779 | P174: -0.8269230769 | Q174: 0.2740518774 | R174: 0.2740518774
O175: 780 | P175: -0.8076923077 | Q175: 0.2784923373 | R175: 0.2784923373
O176: 781 | P176: -0.7884615385 | Q176: 0.2829071599 | R176: 0.2829071599
O177: 782 | P177: -0.7692307692 | Q177: 0.2872922247 | R177: 0.2872922247
O178: 783 | P178: -0.75 | Q178: 0.2916433592 | R178: 0.2916433592
O179: 784 | P179: -0.7307692308 | Q179: 0.2959563458 | R179: 0.2959563458
O180: 785 | P180: -0.7115384615 | Q180: 0.3002269278 | R180: 0.3002269278
O181: 786 | P181: -0.6923076923 | Q181: 0.3044508172 | R181: 0.3044508172
O182: 787 | P182: -0.6730769231 | Q182: 0.3086237011 | R182: 0.3086237011
O183: 788 | P183: -0.6538461538 | Q183: 0.3127412499 | R183: 0.3127412499
O184: 789 | P184: -0.6346153846 | Q184: 0.3167991246 | R184: 0.3167991246
O185: 790 | P185: -0.6153846154 | Q185: 0.3207929847 | R185: 0.3207929847
O186: 791 | P186: -0.5961538462 | Q186: 0.3247184964 | R186: 0.3247184964
O187: 792 | P187: -0.5769230769 | Q187: 0.3285713407 | R187: 0.3285713407
O188: 793 | P188: -0.5576923077 | Q188: 0.3323472221 | R188: 0.3323472221
O189: 794 | P189: -0.5384615385 | Q189: 0.3360418764 | R189: 0.3360418764
O190: 795 | P190: -0.5192307692 | Q190: 0.3396510799 | R190: 0.3396510799
O191: 796 | P191: -0.5 | Q191: 0.3431706577 | R191: 0.3431706577
O192: 797 | P192: -0.4807692308 | Q192: 0.3465964924 | R192: 0.3465964924
O193: 798 | P193: -0.4615384615 | Q193: 0.3499245327 | R193: 0.3499245327
O194: 799 | P194: -0.4423076923 | Q194: 0.3531508022 | R194: 0.3531508022
O195: 800 | P195: -0.4230769231 | Q195: 0.356271408 | R195: 0.356271408
O196: 801 | P196: -0.4038461538 | Q196: 0.359282549 | R196: 0.359282549
O197: 802 | P197: -0.3846153846 | Q197: 0.3621805245 | R197: 0.3621805245
O198: 803 | P198: -0.3653846154 | Q198: 0.3649617427 | R198: 0.3649617427
O199: 804 | P199: -0.3461538462 | Q199: 0.3676227282 | R199: 0.3676227282
O200: 805 | P200: -0.3269230769 | Q200: 0.3701601308 | R200: 0.3701601308
O201: 806 | P201: -0.3076923077 | Q201: 0.3725707325 | R201: 0.3725707325
... 224 more rows

Sheet Ex1
B20: Population Mean = mu = μ | C20: 14 | D20: oz.
B21: Population Standard Deviation = Sigma = σ | C21: 0.4 | D21: oz.
B22: Sample Mean = Xbar = | C22: 14.17 | D22: =D21 -> oz.
B23: Sample Size = n = | C23: 30
B24: Sampling Error | E24: =_xlfn.IFNA(_xlfn.FORMULATEXT(C24),"") -> 
B25: Standard Error | E25: =_xlfn.IFNA(_xlfn.FORMULATEXT(C25),"") -> 
B26: z = # Standard Deviations Xbar is above mu =
B27: ="p-value = Probability of getting a z-score of 2.33 or higher =" -> p-value = Probability of getting a z-score of 2.33 or higher =
B28: ="p-value = Probability of getting an Xbar of "&C22&" oz. =" -> p-value = Probability of getting an Xbar of 14.17 oz. =
B30: Conclusion:
B31: =IF(C28="","","The probability associated with Xbar = 14.17 oz is very small. It is unlikely that we could have taken a sample of 14.17 & had the sampling error occur by chance. It is reasonable to assume that the machine is filling boxes with too much cereal.") -> 

Sheet Ex1 (an)
B20: Population Mean = mu = μ | C20: 14 | D20: oz.
B21: Population Standard Deviation = Sigma = σ | C21: 0.4 | D21: oz.
B22: Sample Mean = Xbar = | C22: 14.17 | D22: =D21 -> oz.
B23: Sample Size = n = | C23: 30
B24: Sampling Error | C24: =C22-C20 -> 0.17 | E24: =_xlfn.IFNA(_xlfn.FORMULATEXT(C24),"") -> =C22-C20
B25: Standard Error | C25: =C21/SQRT(C23) -> 0.07302967433 | E25: =_xlfn.IFNA(_xlfn.FORMULATEXT(C25),"") -> =C21/SQRT(C23)
B26: z = # Standard Deviations Xbar is above mu = | C26: =C24/C25 -> 2.327820869 | E26: =C24/C25
B27: ="p-value = Probability of getting a z-score of 2.33 or higher =" -> p-value = Probability of getting a z-score of 2.33 or higher = | C27: =1-_xlfn.NORM.S.DIST(C26,1) -> 0.009960808719 | E27: =1-NORM.S.DIST(C26,1)
B28: ="p-value = Probability of getting an Xbar of "&C22&" oz. =" -> p-value = Probability of getting an Xbar of 14.17 oz. = | C28: =1-_xlfn.NORM.DIST(C22,C20,C25,1) -> 0.009960808719 | E28: =1-NORM.DIST(C22,C20,C25,1)
B30: Conclusion:
B31: =IF(C28="","","The probability associated with Xbar = 14.17 oz is very small. It is unlikely that we could have taken a sample of 14.17 & had the sampling error occur by chance. It is reasonable to assume that the machine is filling boxes with too much cereal.") -> The probability associated with Xbar = 14.17 oz is very small. It is unlikely that we could have taken a sample of 14.17 & had the sampling error occur by chance. It is reasonable to assume that the machine is filling boxes with too much cereal.

Sheet Pbar(1)
B2: ="Assume Population Proportion = p = proportion of Americans that balance their checkbook = "&C4&". If the number of checking accounts in the USA is "&TEXT(C6,"#.00,,")&" M and we take a sample of "&C7&" Americans, answer the following questions:" -> Assume Population Proportion = p = proportion of Americans that balance their checkbook = 0.55. If the number of checking accounts in the USA is 1.28 M and we take a sample of 300 Americans, answer the following questions:
B4: p = | C4: 0.55 | D4: Balance checkbook
B5: 1-p | D5: NOT balance checkbook
B6: N | C6: 1280000
B7: n | C7: 300
B8: E(pbar) =
B9: n/N<=.05? | D9: =IF(C9="","",C9<=0.05) -> 
B10: Standard Error = | D10: sigmapbar | E10: SQRT(p*(1-p)/n)
B11: Can we use Normal?
B12: n*p>5 | D12: =IF(C12="","",C12>5) -> 
B13: n*(1-p)>5 | D13: =IF(C13="","",C13>5) -> 
B14: Question | C14: Margin of Error | D14: Pbar1 | E14: Pbar2 | F14: P(Pbar) | G14: Answer
B15: ="What is probability that the sample proportion will be within+/-"&C15&" of the population proportion?" -> What is probability that the sample proportion will be within+/-0.02 of the population proportion? | C15: 0.02 | G15: =IF(F15="","","The probability that the sample proportion will be within+/-"&C15&" of the population proportion is "&TEXT(F15,"0.00%")) -> 
B16: ="What is probability that the sample proportion will be within+/-"&C16&" of the population proportion?" -> What is probability that the sample proportion will be within+/-0.04 of the population proportion? | C16: 0.04 | G16: =IF(F16="","","The probability that the sample proportion will be within+/-"&C16&" of the population proportion is "&TEXT(F16,"0.00%")) -> 

Sheet Pbar(an)Old (hidden)
B2: ="Assume Population Proportion = p = proportion of Americans that balance their checkbook = "&C4&". If the population in the USA is "&TEXT(C6,"#,,")&" M and we take a sample of "&C7&" Americans, answer the following questions:" -> Assume Population Proportion = p = proportion of Americans that balance their checkbook = 0.56. If the population in the USA is 300 M and we take a sample of 400 Americans, answer the following questions:
B4: p = | C4: 0.56 | D4: Balance checkbook
B5: 1-p | C5: =1-C4 -> 0.44 | D5: NOT balance checkbook
B6: N | C6: 300000000
B7: n | C7: 400
B8: n/N<=.05? | C8: =C7/C6 -> 1.333333333e-06 | D8: =IF(C8="","",C8<=0.05) -> TRUE
B9: Standard Error = | C9: =SQRT(C4*C5/C7) -> 0.02481934729 | D9: sigmapbar | E9: SQRT(p*(1-p)/n)
B10: Can we use Normal?
B11: n*p>5 | C11: =C7*C4 -> 224 | D11: =IF(C11="","",C11>5) -> TRUE
B12: n*(1-p)>5 | C12: =C7*C5 -> 176 | D12: =IF(C12="","",C12>5) -> TRUE
B13: E(pbar) = | C13: =C4 -> 0.56
B14: Question | C14: Margin of Error | D14: Pbar1 | E14: Pbar2 | F14: P(Pbar) | G14: Answer
B15: ="What is probability that the sample proportion will be within+/-"&C15&" of the population proportion?" -> What is probability that the sample proportion will be within+/-0.02 of the population proportion? | C15: 0.02 | D15: =C13-C15 -> 0.54 | E15: =C13+C15 -> 0.58 | F15: =_xlfn.NORM.DIST(E15,$C$13,$C$9,1)-_xlfn.NORM.DIST(D15,$C$13,$C$9,1) -> 0.579655065 | G15: =IF(F15="","","The probability that the sample proportion will be within+/-"&C15&" of the population proportion is "&TEXT(F15,"0.00%")) -> The probability that the sample proportion will be within+/-0.02 of the population proportion is 57.97%
B16: ="What is probability that the sample proportion will be within+/-"&C16&" of the population proportion?" -> What is probability that the sample proportion will be within+/-0.04 of the population proportion? | C16: 0.04 | D16: =C13-C16 -> 0.52 | E16: =C13+C16 -> 0.6 | F16: =_xlfn.NORM.DIST(E16,$C$13,$C$9,1)-_xlfn.NORM.DIST(D16,$C$13,$C$9,1) -> 0.8929609897 | G16: =IF(F16="","","The probability that the sample proportion will be within+/-"&C16&" of the population proportion is "&TEXT(F16,"0.00%")) -> The probability that the sample proportion will be within+/-0.04 of the population proportion is 89.30%

Sheet Pbar(1an)
B2: ="Assume Population Proportion = p = proportion of Americans that balance their checkbook = "&C4&". If the number of checking accounts in the USA is "&TEXT(C6,"#.00,,")&" M and we take a sample of "&C7&" Americans, answer the following questions:" -> Assume Population Proportion = p = proportion of Americans that balance their checkbook = 0.55. If the number of checking accounts in the USA is 1.28 M and we take a sample of 300 Americans, answer the following questions:
B4: p = | C4: 0.55 | D4: Balance checkbook
B5: 1-p | C5: =1-C4 -> 0.45 | D5: NOT balance checkbook
B6: N | C6: 1280000
B7: n | C7: 300
B8: E(pbar) = | C8: =C4 -> 0.55
B9: n/N<=.05? | C9: =C7/C6 -> 0.000234375 | D9: =IF(C9="","",C9<=0.05) -> TRUE
B10: Standard Error = | C10: =SQRT(C4*C5/C7) -> 0.02872281323 | D10: sigmapbar | E10: SQRT(p*(1-p)/n)
B11: Can we use Normal?
B12: n*p>5 | C12: =C7*C4 -> 165 | D12: =IF(C12="","",C12>5) -> TRUE
B13: n*(1-p)>5 | C13: =C5*C7 -> 135 | D13: =IF(C13="","",C13>5) -> TRUE
B14: Question | C14: Margin of Error | D14: Pbar1 | E14: Pbar2 | F14: P(Pbar) | G14: Answer
B15: ="What is probability that the sample proportion will be within+/-"&C15&" of the population proportion?" -> What is probability that the sample proportion will be within+/-0.02 of the population proportion? | C15: 0.02 | D15: =C8-C15 -> 0.53 | E15: =C8+C15 -> 0.57 | F15: =_xlfn.NORM.DIST(E15,C8,C10,1)-_xlfn.NORM.DIST(D15,C8,C10,1) -> 0.5137656786 | G15: =IF(F15="","","The probability that the sample proportion will be within+/-"&C15&" of the population proportion is "&TEXT(F15,"0.00%")) -> The probability that the sample proportion will be within+/-0.02 of the population proportion is 51.38%
B16: ="What is probability that the sample proportion will be within+/-"&C16&" of the population proportion?" -> What is probability that the sample proportion will be within+/-0.04 of the population proportion? | C16: 0.04 | D16: =C8-C16 -> 0.51 | E16: =C8+C16 -> 0.59 | F16: =_xlfn.NORM.DIST(E16,C8,C10,1)-_xlfn.NORM.DIST(D16,C8,C10,1) -> 0.8362656457 | G16: =IF(F16="","","The probability that the sample proportion will be within+/-"&C16&" of the population proportion is "&TEXT(F16,"0.00%")) -> The probability that the sample proportion will be within+/-0.04 of the population proportion is 83.63%

Sheet Pbar2
B2: P = proportion Insurance claims settled within 1 week | C2: 0.75 | M2: ="Sampling Distribution of Pbar "&CHAR(10)&B11&" = "&ROUND(SQRT(C2*(1-C2)/C4),4)&CHAR(10)&B9&" = "&C2 -> Sampling Distribution of Pbar Standard Error for Sampling Distribution of Pbar = 0.025 Expected (Pbar) = 0.75
B3: N = | C3: 35000
B4: n | C4: 300
B5: +/- Number Standard Deviations | C5: 2
B6: Test 1: n*p>=5
B7: Test 2: n*(1-p) >=5
B8: =IF(AND(C6>5,C7>5,C7<>""),"We can use Normal to Aproximate Binomial","") -> 
B9: Expected (Pbar)
B10: n/N to see if Correction Factor is needed
B11: Standard Error for Sampling Distribution of Pbar
B12: Margin of error
B13: Pbar1
B14: Pbar2
B15: ="P("&C2-SQRT(C2*(1-C2)/C4)*C5&" <= Pbar <= "&C2+SQRT(C2*(1-C2)/C4)*C5&")" -> P(0.7 <= Pbar <= 0.8)
B17: =IF(C15="","","The probability that the sample proportion will be within+/-"&C12&" of the population proportion is "&TEXT(C15,"0.00%")) -> 
G42: Margin of error | H42: =C5*SQRT(C2*(1-C2)/C4) -> 0.05
G44: Pbar | H44: P(Pbar) | I44: =B15&" = "&ROUND(_xlfn.NORM.DIST(C2+H42,C2,SQRT(C2*(1-C2)/C4),1)-_xlfn.NORM.DIST(C2-H42,C2,SQRT(C2*(1-C2)/C4),1),4) -> P(0.7 <= Pbar <= 0.8) = 0.9545
G45: 0.65 | H45: =_xlfn.NORM.DIST(G45,$C$2,SQRT($C$2*(1-$C$2)/$C$4),0) -> 0.005353209031 | I45: =IF(AND(G45>=$C$2-$H$42,G45<=$C$2+$H$42),H45,"") -> 
G46: 0.655 | H46: =_xlfn.NORM.DIST(G46,$C$2,SQRT($C$2*(1-$C$2)/$C$4),0) -> 0.01167787703 | I46: =IF(AND(G46>=$C$2-$H$42,G46<=$C$2+$H$42),H46,"") -> 
G47: 0.66 | H47: 0.0244760772
G48: 0.665 | H48: 0.04928876674
G49: 0.67 | H49: 0.09536352806
G50: 0.675 | H50: 0.1772739365
G51: 0.68 | H51: 0.3166180633
G52: 0.685 | H52: 0.5433187693
G53: 0.69 | H53: 0.8957812118
G54: 0.695 | H54: 1.418983714
G55: 0.7 | H55: 2.159638661 | I55: 2.159638661
G56: 0.705 | H56: 3.158006332 | I56: 3.158006332
G57: 0.71 | H57: 4.436833387 | I57: 4.436833387
G58: 0.715 | H58: 5.989098625 | I58: 5.989098625
G59: 0.72 | H59: 7.767442199 | I59: 7.767442199
G60: 0.725 | H60: 9.678828981 | I60: 9.678828981
G61: 0.73 | H61: 11.58766211 | I61: 11.58766211
G62: 0.735 | H62: 13.32898412 | I62: 13.32898412
G63: 0.74 | H63: 14.73080561 | I63: 14.73080561
G64: 0.745 | H64: 15.64170776 | I64: 15.64170776
G65: 0.75 | H65: 15.95769122 | I65: 15.95769122
G66: 0.755 | H66: 15.64170776 | I66: 15.64170776
G67: 0.76 | H67: 14.73080561 | I67: 14.73080561
G68: 0.765 | H68: 13.32898412 | I68: 13.32898412
G69: 0.77 | H69: 11.58766211 | I69: 11.58766211
G70: 0.775 | H70: 9.678828981 | I70: 9.678828981
G71: 0.78 | H71: 7.767442199 | I71: 7.767442199
G72: 0.785 | H72: 5.989098625 | I72: 5.989098625
G73: 0.79 | H73: 4.436833387 | I73: 4.436833387
G74: 0.795 | H74: 3.158006332 | I74: 3.158006332
G75: 0.8 | H75: 2.159638661 | I75: 2.159638661
G76: 0.805 | H76: 1.418983714
G77: 0.81 | H77: 0.8957812118
G78: 0.815 | H78: 0.5433187693
G79: 0.82 | H79: 0.3166180633
G80: 0.825 | H80: 0.1772739365
G81: 0.83 | H81: 0.09536352806
G82: 0.835 | H82: 0.04928876674
G83: 0.84 | H83: 0.0244760772
G84: 0.845 | H84: 0.01167787703
G85: 0.85 | H85: 0.005353209031

Sheet Pbar2 (an)
B2: P = proportion Insurance claims settled within 1 week | C2: 0.75 | M2: ="Sampling Distribution of Pbar "&CHAR(10)&B11&" = "&ROUND(SQRT(C2*(1-C2)/C4),4)&CHAR(10)&B9&" = "&C2 -> Sampling Distribution of Pbar Standard Error for Sampling Distribution of Pbar = 0.025 Expected (Pbar) = 0.75
B3: N = | C3: 35000
B4: n | C4: 300
B5: +/- Number Standard Deviations | C5: 2
B6: Test 1: n*p>=5 | C6: =C4*C2 -> 225
B7: Test 2: n*(1-p) >=5 | C7: =(1-C2)*C4 -> 75
B8: =IF(AND(C6>5,C7>5,C7<>""),"We can use Normal to Aproximate Binomial","") -> We can use Normal to Aproximate Binomial
B9: Expected (Pbar) | C9: =C2 -> 0.75
B10: n/N to see if Correction Factor is needed | C10: =C4/C3 -> 0.008571428571
B11: Standard Error for Sampling Distribution of Pbar | C11: =SQRT(C2*(1-C2)/C4) -> 0.025
B12: Margin of error | C12: =C11*C5 -> 0.05
B13: Pbar1 | C13: =C2-C12 -> 0.7
B14: Pbar2 | C14: =C2+C12 -> 0.8
B15: ="P("&C2-SQRT(C2*(1-C2)/C4)*C5&" <= Pbar <= "&C2+SQRT(C2*(1-C2)/C4)*C5&")" -> P(0.7 <= Pbar <= 0.8) | C15: =_xlfn.NORM.DIST(C14,C9,C11,1)-_xlfn.NORM.DIST(C13,C9,C11,1) -> 0.9544997361
B17: =IF(C15="","","The probability that the sample proportion will be within+/-"&C12&" of the population proportion is "&TEXT(C15,"0.00%")) -> The probability that the sample proportion will be within+/-0.05 of the population proportion is 95.45%
G42: Margin of error | H42: =C5*SQRT(C2*(1-C2)/C4) -> 0.05
G44: Pbar | H44: P(Pbar) | I44: =B15&" = "&ROUND(_xlfn.NORM.DIST(C2+H42,C2,SQRT(C2*(1-C2)/C4),1)-_xlfn.NORM.DIST(C2-H42,C2,SQRT(C2*(1-C2)/C4),1),4) -> P(0.7 <= Pbar <= 0.8) = 0.9545
G45: 0.65 | H45: =_xlfn.NORM.DIST(G45,$C$2,SQRT($C$2*(1-$C$2)/$C$4),0) -> 0.005353209031 | I45: =IF(AND(G45>=$C$2-$H$42,G45<=$C$2+$H$42),H45,"") -> 
G46: 0.655 | H46: =_xlfn.NORM.DIST(G46,$C$2,SQRT($C$2*(1-$C$2)/$C$4),0) -> 0.01167787703 | I46: =IF(AND(G46>=$C$2-$H$42,G46<=$C$2+$H$42),H46,"") -> 
G47: 0.66 | H47: 0.0244760772
G48: 0.665 | H48: 0.04928876674
G49: 0.67 | H49: 0.09536352806
G50: 0.675 | H50: 0.1772739365
G51: 0.68 | H51: 0.3166180633
G52: 0.685 | H52: 0.5433187693
G53: 0.69 | H53: 0.8957812118
G54: 0.695 | H54: 1.418983714
G55: 0.7 | H55: 2.159638661 | I55: 2.159638661
G56: 0.705 | H56: 3.158006332 | I56: 3.158006332
G57: 0.71 | H57: 4.436833387 | I57: 4.436833387
G58: 0.715 | H58: 5.989098625 | I58: 5.989098625
G59: 0.72 | H59: 7.767442199 | I59: 7.767442199
G60: 0.725 | H60: 9.678828981 | I60: 9.678828981
G61: 0.73 | H61: 11.58766211 | I61: 11.58766211
G62: 0.735 | H62: 13.32898412 | I62: 13.32898412
G63: 0.74 | H63: 14.73080561 | I63: 14.73080561
G64: 0.745 | H64: 15.64170776 | I64: 15.64170776
G65: 0.75 | H65: 15.95769122 | I65: 15.95769122
G66: 0.755 | H66: 15.64170776 | I66: 15.64170776
G67: 0.76 | H67: 14.73080561 | I67: 14.73080561
G68: 0.765 | H68: 13.32898412 | I68: 13.32898412
G69: 0.77 | H69: 11.58766211 | I69: 11.58766211
G70: 0.775 | H70: 9.678828981 | I70: 9.678828981
G71: 0.78 | H71: 7.767442199 | I71: 7.767442199
G72: 0.785 | H72: 5.989098625 | I72: 5.989098625
G73: 0.79 | H73: 4.436833387 | I73: 4.436833387
G74: 0.795 | H74: 3.158006332 | I74: 3.158006332
G75: 0.8 | H75: 2.159638661 | I75: 2.159638661
G76: 0.805 | H76: 1.418983714
G77: 0.81 | H77: 0.8957812118
G78: 0.815 | H78: 0.5433187693
G79: 0.82 | H79: 0.3166180633
G80: 0.825 | H80: 0.1772739365
G81: 0.83 | H81: 0.09536352806
G82: 0.835 | H82: 0.04928876674
G83: 0.84 | H83: 0.0244760772
G84: 0.845 | H84: 0.01167787703
G85: 0.85 | H85: 0.005353209031

Sheet Pbar2 (an)OLD (hidden)
B2: P = proportion Insurance claims settled within 1 week | C2: 0.75 | G2: Pbar | H2: P(Pbar) | I2: =B14&" = "&ROUND(_xlfn.NORM.DIST(C2+C5,C2,SQRT(C2*(1-C2)/C4),1)-_xlfn.NORM.DIST(C2-C5,C2,SQRT(C2*(1-C2)/C4),1),4) -> P(0.71 <= Pbar <= 0.79) = 0.8904 | M2: ="Sampling Distribution of Pbar "&CHAR(10)&B8&" = "&ROUND(SQRT(C2*(1-C2)/C4),4)&CHAR(10)&B7&" = "&C2 -> Sampling Distribution of Pbar Standard Error for Sampling Distribution of Pbar = 0.025 Expected (Pbar) = 0.75
B3: N = | C3: 35000 | G3: 0.65 | H3: =_xlfn.NORM.DIST(G3,$C$2,SQRT($C$2*(1-$C$2)/$C$4),0) -> 0.005353209031 | I3: =IF(AND(G3>=$C$2-$C$5,G3<=$C$2+$C$5),H3,"") -> 
B4: n | C4: 300 | G4: 0.655 | H4: =_xlfn.NORM.DIST(G4,$C$2,SQRT($C$2*(1-$C$2)/$C$4),0) -> 0.01167787703
B5: Margin of error | C5: 0.04 | G5: 0.66 | H5: 0.0244760772
B6: n/N | C6: =C4/C3 -> 0.008571428571 | G6: 0.665 | H6: 0.04928876674
B7: Expected (Pbar) | C7: =C2 -> 0.75 | G7: 0.67 | H7: 0.09536352806
B8: Standard Error for Sampling Distribution of Pbar | C8: =SQRT(C2*(1-C2)/C4) -> 0.025 | G8: 0.675 | H8: 0.1772739365
B9: Pbar1 | C9: =C7-C5 -> 0.71 | G9: 0.68 | H9: 0.3166180633
B10: Pbar2 | C10: =C7+C5 -> 0.79 | G10: 0.685 | H10: 0.5433187693
B11: Test 1: n*p>=5 | C11: =C2*C4 -> 225 | G11: 0.69 | H11: 0.8957812118
B12: Test 2: n*(1-p) >=5 | C12: =(1-C2)*C4 -> 75 | G12: 0.695 | H12: 1.418983714
B13: =IF(AND(C11>5,C12>5,C12<>""),"We can use Normal to Aproximate Binomial","") -> We can use Normal to Aproximate Binomial | G13: 0.7 | H13: 2.159638661
B14: ="P("&C2-C5&" <= Pbar <= "&C2+C5&")" -> P(0.71 <= Pbar <= 0.79) | C14: =_xlfn.NORM.DIST(C10,C7,C8,1)-_xlfn.NORM.DIST(C9,C7,C8,1) -> 0.8904014166 | G14: 0.705 | H14: 3.158006332
G15: 0.71 | H15: 4.436833387 | I15: 4.436833387
G16: 0.715 | H16: 5.989098625 | I16: 5.989098625
G17: 0.72 | H17: 7.767442199 | I17: 7.767442199
G18: 0.725 | H18: 9.678828981 | I18: 9.678828981
G19: 0.73 | H19: 11.58766211 | I19: 11.58766211
G20: 0.735 | H20: 13.32898412 | I20: 13.32898412
G21: 0.74 | H21: 14.73080561 | I21: 14.73080561
G22: 0.745 | H22: 15.64170776 | I22: 15.64170776
G23: 0.75 | H23: 15.95769122 | I23: 15.95769122
G24: 0.755 | H24: 15.64170776 | I24: 15.64170776
G25: 0.76 | H25: 14.73080561 | I25: 14.73080561
G26: 0.765 | H26: 13.32898412 | I26: 13.32898412
G27: 0.77 | H27: 11.58766211 | I27: 11.58766211
G28: 0.775 | H28: 9.678828981 | I28: 9.678828981
G29: 0.78 | H29: 7.767442199 | I29: 7.767442199
G30: 0.785 | H30: 5.989098625 | I30: 5.989098625
G31: 0.79 | H31: 4.436833387 | I31: 4.436833387
G32: 0.795 | H32: 3.158006332
G33: 0.8 | H33: 2.159638661
G34: 0.805 | H34: 1.418983714
G35: 0.81 | H35: 0.8957812118
G36: 0.815 | H36: 0.5433187693
G37: 0.82 | H37: 0.3166180633
G38: 0.825 | H38: 0.1772739365
G39: 0.83 | H39: 0.09536352806
G40: 0.835 | H40: 0.04928876674
G41: 0.84 | H41: 0.0244760772
G42: 0.845 | H42: 0.01167787703
G43: 0.85 | H43: 0.005353209031
